Directorate,Department,Expenditure Type,Ref.Doc.1,Vendor Name,Expenditure Amount (exc VAT),Payment Date
Assurance,Assurance,Advertising,60032440,LETTERBOX DISTRIBUTION.COM,"8,970.00",29/09/2015
Assurance,Assurance,Agency/Interim Non Hays,60030448,REDACTED - PERSONAL DATA,150.00,09/09/2015
Assurance,Assurance,Consultants Fees,60031331,CALL CREDIT LTD,"3,800.00",29/09/2015
Assurance,Assurance,Equipment and Materials Purcha,60032078,THOMAS FATTORINI LTD,40.77,25/09/2015
Assurance,Assurance,Equipment and Materials Purcha,60030960,TWOFOLD LTD,395.13,09/09/2015
Assurance,Assurance,Equipment and Materials Purcha,60031110,TWOFOLD LTD,166.95,09/09/2015
Assurance,Assurance,General Office Expenses,40001050,OFFICE DEPOT UK LTD,5.80,23/09/2015
Assurance,Assurance,Other Indirect Employee Expens,20023703,LONDON MAYORS ASSOCIATION,40.00,23/09/2015
Assurance,Assurance,Other Services,60032244,ELECTORAL REFORM SERVICES,638.64,29/09/2015
Assurance,Assurance,Other Services,60032307,ELECTORAL REFORM SERVICES,"4,908.13",29/09/2015
Assurance,Assurance,Other Services,60032309,ELECTORAL REFORM SERVICES,98.08,29/09/2015
Assurance,Assurance,Other Services,60032427,ELECTORAL REFORM SERVICES,"1,438.15",29/09/2015
Assurance,Assurance,Other Services,60030727,REDACTED - PERSONAL DATA,175.00,17/09/2015
Assurance,Assurance,Other Services,60031388,REDACTED - PERSONAL DATA,195.00,17/09/2015
Assurance,Assurance,Postage,60031334,ROYAL MAIL GROUP LIMITED,5.92,30/09/2015
Assurance,Assurance,Postage,60031817,ROYAL MAIL GROUP LIMITED,"6,206.51",18/09/2015
Assurance,Assurance,Postage,60032390,ROYAL MAIL GROUP LIMITED,94.00,28/09/2015
Assurance,Assurance,Professional Services,60029145,PRICEWATERHOUSE COOPERS,"11,529.00",02/09/2015
Assurance,Assurance,Professional Services,60029212,PRICEWATERHOUSE COOPERS,"4,455.00",02/09/2015
Assurance,Assurance,Professional Services,60030729,PRICEWATERHOUSE COOPERS,"7,425.00",15/09/2015
Assurance,Assurance,Professional Services,60029860,RE (REGIONAL ENTERPRISE) LIMITED,939.00,01/09/2015
Assurance,Assurance,Subscriptions,60026467,COMPANIES HOUSE,11.00,15/09/2015
Assurance,Assurance,Subscriptions,60032449,COMPANIES HOUSE,9.00,28/09/2015
Assurance,Assurance,Subscriptions,60016543,TAMESIDE METROPOLITAN BOROUGH COUNC,"1,515.00",04/09/2015
Assurance,Assurance,Subscriptions,20023368,THE INFORMATION COMMISSIONER,245.00,08/09/2015
Assurance,Assurance,Subscriptions,20023370,THE INFORMATION COMMISSIONER,175.00,08/09/2015
Assurance,Assurance,Subscriptions,20023374,THE INFORMATION COMMISSIONER,245.00,08/09/2015
Assurance,Assurance,Training,60028678,ASSOCIATION OF DEMOCRATIC SERVICES OFFIC,400.00,01/09/2015
Assurance,Assurance,Training,60032226,WESTMINSTER EDUCATION FORUM,210.00,29/09/2015
Assurance,Assurance,Ttl IT & Comms,60030918,J.C.APPLICATIONS DEVELOPMENT,"3,519.00",09/09/2015
Central Expenses,Central Expenses,Bank Charges,20023842,FIRST DATA GLOBAL SERVICES LTD,"10,000.00",29/09/2015
Central Expenses,Central Expenses,Insurance Claims,20023540,ADMIRAL LAW,200.00,15/09/2015
Central Expenses,Central Expenses,Insurance Claims,20023278,ALBANY ASSISTANCE LTD,"2,966.30",04/09/2015
Central Expenses,Central Expenses,Insurance Claims,20023541,ARGENT REHABILITATION,156.00,15/09/2015
Central Expenses,Central Expenses,Insurance Claims,20023382,BERRYMANS LACE MAWER,853.66,10/09/2015
Central Expenses,Central Expenses,Insurance Claims,20023383,CHARLES DUKES ASSESSORS,150.00,11/09/2015
Central Expenses,Central Expenses,Insurance Claims,60030280,CHARLES DUKES ASSESSORS,60.00,29/09/2015
Central Expenses,Central Expenses,Insurance Claims,60029471,CLYDE & CO LLP,"1,335.00",03/09/2015
Central Expenses,Central Expenses,Insurance Claims,60029518,CLYDE & CO LLP,"1,350.00",03/09/2015
Central Expenses,Central Expenses,Insurance Claims,20023643,COMMERCIAL LEGAL LTD,"1,395.73",25/09/2015
Central Expenses,Central Expenses,Insurance Claims,20023223,DEPARTMENT FOR WORK & PENSIONS,637.00,04/09/2015
Central Expenses,Central Expenses,Insurance Claims,20023224,DEPARTMENT FOR WORK & PENSIONS,637.00,04/09/2015
Central Expenses,Central Expenses,Insurance Claims,20023288,DEPARTMENT FOR WORK & PENSIONS,637.00,08/09/2015
Central Expenses,Central Expenses,Insurance Claims,20023430,DEPARTMENT FOR WORK & PENSIONS,781.00,11/09/2015
Central Expenses,Central Expenses,Insurance Claims,20023640,DEPARTMENT FOR WORK AND PENSIONS,"3,068.68",25/09/2015
Central Expenses,Central Expenses,Insurance Claims,20023645,DRA REALISATIONS,440.59,25/09/2015
Central Expenses,Central Expenses,Insurance Claims,60025884,GOLDING COLLIE & COMPANY,60.00,07/09/2015
Central Expenses,Central Expenses,Insurance Claims,60026000,GOLDING COLLIE & COMPANY,60.00,07/09/2015
Central Expenses,Central Expenses,Insurance Claims,60027256,GOLDING COLLIE & COMPANY,60.00,07/09/2015
Central Expenses,Central Expenses,Insurance Claims,60027351,GOLDING COLLIE & COMPANY,150.00,07/09/2015
Central Expenses,Central Expenses,Insurance Claims,60028140,GOLDING COLLIE & COMPANY,150.00,07/09/2015
Central Expenses,Central Expenses,Insurance Claims,60028166,GOLDING COLLIE & COMPANY,60.00,07/09/2015
Central Expenses,Central Expenses,Insurance Claims,60028401,GOLDING COLLIE & COMPANY,60.00,07/09/2015
Central Expenses,Central Expenses,Insurance Claims,60028665,GOLDING COLLIE & COMPANY,150.00,07/09/2015
Central Expenses,Central Expenses,Insurance Claims,20023642,IBB SOLICITORS,"9,500.00",25/09/2015
Central Expenses,Central Expenses,Insurance Claims,60027732,KENNEDYS,322.00,04/09/2015
Central Expenses,Central Expenses,Insurance Claims,60028873,KENNEDYS,"1,092.00",04/09/2015
Central Expenses,Central Expenses,Insurance Claims,20023268,LAVENDALE MONTESSORI LIMITED,"15,000.00",07/09/2015
Central Expenses,Central Expenses,Insurance Claims,60021054,LEGAL COSTS NEGOTIATORS,176.83,30/09/2015
Central Expenses,Central Expenses,Insurance Claims,20023641,MICHAEL HALSALL SOLICITORS,"25,000.00",25/09/2015
Central Expenses,Central Expenses,Insurance Claims,20023313,MINISTER LAW LTD,"1,770.00",08/09/2015
Central Expenses,Central Expenses,Insurance Claims,20023167,PLEXUS LAW,"28,500.00",01/09/2015
Central Expenses,Central Expenses,Insurance Claims,20023877,RAVENSCROFT MEDICAL CENTRE,50.00,29/09/2015
Central Expenses,Central Expenses,Insurance Claims,20023271,ROMAIN COLEMAN SOLICITORS,"10,000.00",07/09/2015
Central Expenses,Central Expenses,Insurance Claims,20023367,ROYAL FREE LONDON NHS FOUNDATION TRUST,50.00,18/09/2015
Central Expenses,Central Expenses,Insurance Claims,20023668,ROYAL FREE LONDON NHS FOUNDATION TRUST,25.00,18/09/2015
Central Expenses,Central Expenses,Insurance Claims,20023646,RSA CLAIMS,308.99,25/09/2015
Central Expenses,Central Expenses,Insurance Claims,20023319,SIMONS LEVINE & CO CLIENTS SOLICITORS RE,"1,534.00",08/09/2015
Central Expenses,Central Expenses,Insurance Claims,20023279,THOMPSONS SOLICITORS,"1,304.40",04/09/2015
Central Expenses,Central Expenses,Insurance Claims,20023266,UK INSURANCE LIMITED,"3,149.21",04/09/2015
Central Expenses,Central Expenses,Insurance Claims,60027227,WEIGHTMANS LLP,287.50,07/09/2015
Central Expenses,Central Expenses,Insurance Claims,60027232,WEIGHTMANS LLP,100.00,07/09/2015
Central Expenses,Central Expenses,Insurance Claims,60028082,WEIGHTMANS LLP,212.50,07/09/2015
Central Expenses,Central Expenses,Insurance Claims,60028742,WEIGHTMANS LLP,"1,000.00",07/09/2015
Central Expenses,Central Expenses,Insurance Claims,60028751,WEIGHTMANS LLP,"2,375.60",07/09/2015
Central Expenses,Central Expenses,Insurance Claims,60028989,WEIGHTMANS LLP,610.00,07/09/2015
Central Expenses,Central Expenses,Insurance Claims,60029035,WEIGHTMANS LLP,637.50,07/09/2015
Central Expenses,Central Expenses,Insurance Claims,60029067,WEIGHTMANS LLP,775.00,07/09/2015
Central Expenses,Central Expenses,Insurance Claims,60029087,WEIGHTMANS LLP,400.00,07/09/2015
Central Expenses,Central Expenses,Insurance Claims,60031662,WEIGHTMANS LLP,200.00,30/09/2015
Central Expenses,Central Expenses,Insurance Claims,60031722,WEIGHTMANS LLP,946.86,30/09/2015
Central Expenses,Central Expenses,Insurance Claims,20023378,WILKIN CHAPMAN GRANGE SOLICITORS,"7,750.00",09/09/2015
Central Expenses,Central Expenses,Insurance Claims,20023290,WILLIAMSONS SOLICITORS,"6,090.50",08/09/2015
Central Expenses,Central Expenses,Insurance Claims,20023308,WILLIAMSONS SOLICITORS,"1,632.00",08/09/2015
Central Expenses,Central Expenses,Joint Authorities - Third Part,EBX0080449,NORTH LONDON WASTE AUTHORITY,"894,643.00",25/09/2015
Central Expenses,Central Expenses,Other Establishments - Third P,EBX0079523,ENVIRONMENT AGENCY,"75,627.75",22/09/2015
Central Expenses,Central Expenses,Other Establishments - Third P,EBX0079220,LEE VALLEY REGIONAL PARK AUTH.,"33,052.02",17/09/2015
Central Expenses,Central Expenses,Other Establishments - Third P,60029844,LONDON COUNCILS,"163,839.00",03/09/2015
Central Expenses,Central Expenses,Other Establishments - Third P,EBX0077331,LONDON PENSIONS FUND AUTHORITY,"50,154.80",02/09/2015
Central Expenses,Central Expenses,Pensions To Retired Employees,10012702,LONDON PENSIONS FUND AUTHORITY,"2,866.90",29/09/2015
Commercial,Births Deaths & Marriages,Contract Cleaning,60030687,CHURCHILL CONTRACT SERVICES,607.85,30/09/2015
Commercial,Customer Support Group,Books-CDs-Audio-Video,60030480,SM ELECTRICAL SERVICES,295.00,21/09/2015
Commercial,Customer Support Group,Building Cleaning Recharge,60030637,CHURCHILL CONTRACT SERVICES,644.40,30/09/2015
Commercial,Customer Support Group,Building Repairs & Maintenance,60029457,ABEL ALARM COMPANY LIMITED,150.00,10/09/2015
Commercial,Customer Support Group,Building Repairs & Maintenance,60030752,ABEL ALARM COMPANY LIMITED,385.00,30/09/2015
Commercial,Customer Support Group,Building Repairs & Maintenance,60030795,ABEL ALARM COMPANY LIMITED,424.00,30/09/2015
Commercial,Customer Support Group,Building Repairs & Maintenance,60030856,AJS LTD,173.25,09/09/2015
Commercial,Customer Support Group,Building Repairs & Maintenance,60030892,AJS LTD,222.75,09/09/2015
Commercial,Customer Support Group,Building Repairs & Maintenance,60030901,AJS LTD,231.00,09/09/2015
Commercial,Customer Support Group,Building Repairs & Maintenance,60030904,AJS LTD,231.00,09/09/2015
Commercial,Customer Support Group,Building Repairs & Maintenance,60030906,AJS LTD,338.25,09/09/2015
Commercial,Customer Support Group,Building Repairs & Maintenance,60030909,AJS LTD,173.25,09/09/2015
Commercial,Customer Support Group,Building Repairs & Maintenance,60030915,AJS LTD,140.25,09/09/2015
Commercial,Customer Support Group,Building Repairs & Maintenance,60030916,AJS LTD,312.50,09/09/2015
Commercial,Customer Support Group,Building Repairs & Maintenance,60030919,AJS LTD,57.75,09/09/2015
Commercial,Customer Support Group,Building Repairs & Maintenance,60029418,ASBESTOS CONSULTANTS EUROPE LTD T/A ACE,395.00,11/09/2015
Commercial,Customer Support Group,Building Repairs & Maintenance,60029447,ASBESTOS CONSULTANTS EUROPE LTD T/A ACE,650.00,11/09/2015
Commercial,Customer Support Group,Building Repairs & Maintenance,60029480,ASBESTOS CONSULTANTS EUROPE LTD T/A ACE,"1,300.00",15/09/2015
Commercial,Customer Support Group,Building Repairs & Maintenance,60029561,ASBESTOS CONSULTANTS EUROPE LTD T/A ACE,650.00,11/09/2015
Commercial,Customer Support Group,Building Repairs & Maintenance,60029573,ASBESTOS CONSULTANTS EUROPE LTD T/A ACE,495.00,11/09/2015
Commercial,Customer Support Group,Building Repairs & Maintenance,60029595,ASBESTOS CONSULTANTS EUROPE LTD T/A ACE,950.00,11/09/2015
Commercial,Customer Support Group,Building Repairs & Maintenance,60030602,ASBESTOS CONSULTANTS EUROPE LTD T/A ACE,"2,415.00",25/09/2015
Commercial,Customer Support Group,Building Repairs & Maintenance,60031587,D LONG (CONSTRUCTION) LTD,194.00,17/09/2015
Commercial,Customer Support Group,Building Repairs & Maintenance,60028260,DOORWAY-MAINTENANCE CO.,110.00,23/09/2015
Commercial,Customer Support Group,Building Repairs & Maintenance,60031829,DOORWAY-MAINTENANCE CO.,"1,314.00",28/09/2015
Commercial,Customer Support Group,Building Repairs & Maintenance,60031975,DOORWAY-MAINTENANCE CO.,340.00,21/09/2015
Commercial,Customer Support Group,Building Repairs & Maintenance,60030201,DORMA UK LTD,325.67,17/09/2015
Commercial,Customer Support Group,Building Repairs & Maintenance,60030467,DORMA UK LTD,160.00,22/09/2015
Commercial,Customer Support Group,Building Repairs & Maintenance,60031318,EARLSWOOD INDUSTRIAL SVCS LTD,269.00,25/09/2015
Commercial,Customer Support Group,Building Repairs & Maintenance,60032091,GEESINK NORBA LTD,366.58,25/09/2015
Commercial,Customer Support Group,Building Repairs & Maintenance,60028593,K G YOUNG LTD,860.00,07/09/2015
Commercial,Customer Support Group,Building Repairs & Maintenance,60027876,LEE SECURITY LONDON LIMITED,115.00,07/09/2015
Commercial,Customer Support Group,Building Repairs & Maintenance,60030855,LEE SECURITY LONDON LIMITED,80.00,09/09/2015
Commercial,Customer Support Group,Building Repairs & Maintenance,60027072,LIFT & ENGINEERING SERVICES LTD,99.16,07/09/2015
Commercial,Customer Support Group,Building Repairs & Maintenance,60027711,LIFT & ENGINEERING SERVICES LTD,49.58,07/09/2015
Commercial,Customer Support Group,Building Repairs & Maintenance,60027720,LIFT & ENGINEERING SERVICES LTD,49.58,07/09/2015
Commercial,Customer Support Group,Building Repairs & Maintenance,60027724,LIFT & ENGINEERING SERVICES LTD,99.16,07/09/2015
Commercial,Customer Support Group,Building Repairs & Maintenance,60027728,LIFT & ENGINEERING SERVICES LTD,99.17,07/09/2015
Commercial,Customer Support Group,Building Repairs & Maintenance,60027730,LIFT & ENGINEERING SERVICES LTD,74.39,07/09/2015
Commercial,Customer Support Group,Building Repairs & Maintenance,60027742,LIFT & ENGINEERING SERVICES LTD,215.16,07/09/2015
Commercial,Customer Support Group,Building Repairs & Maintenance,60027755,LIFT & ENGINEERING SERVICES LTD,99.17,08/09/2015
Commercial,Customer Support Group,Building Repairs & Maintenance,60027766,LIFT & ENGINEERING SERVICES LTD,67.50,07/09/2015
Commercial,Customer Support Group,Building Repairs & Maintenance,60027792,LIFT & ENGINEERING SERVICES LTD,67.50,07/09/2015
Commercial,Customer Support Group,Building Repairs & Maintenance,60030033,LIFT & ENGINEERING SERVICES LTD,226.20,17/09/2015
Commercial,Customer Support Group,Building Repairs & Maintenance,60030074,LIFT & ENGINEERING SERVICES LTD,87.00,17/09/2015
Commercial,Customer Support Group,Building Repairs & Maintenance,60030075,LIFT & ENGINEERING SERVICES LTD,87.00,17/09/2015
Commercial,Customer Support Group,Building Repairs & Maintenance,60028669,O KAN,375.00,15/09/2015
Commercial,Customer Support Group,Building Repairs & Maintenance,60025725,OAKRAY LIMITED,302.06,07/09/2015
Commercial,Customer Support Group,Building Repairs & Maintenance,60028422,OAKRAY LIMITED,343.37,22/09/2015
Commercial,Customer Support Group,Building Repairs & Maintenance,60028428,OAKRAY LIMITED,237.83,08/09/2015
Commercial,Customer Support Group,Building Repairs & Maintenance,60028439,OAKRAY LIMITED,119.47,08/09/2015
Commercial,Customer Support Group,Building Repairs & Maintenance,60028440,OAKRAY LIMITED,96.00,08/09/2015
Commercial,Customer Support Group,Building Repairs & Maintenance,60028441,OAKRAY LIMITED,173.75,08/09/2015
Commercial,Customer Support Group,Building Repairs & Maintenance,60028456,OAKRAY LIMITED,64.00,09/09/2015
Commercial,Customer Support Group,Building Repairs & Maintenance,60028475,OAKRAY LIMITED,395.93,22/09/2015
Commercial,Customer Support Group,Building Repairs & Maintenance,60028479,OAKRAY LIMITED,152.00,08/09/2015
Commercial,Customer Support Group,Building Repairs & Maintenance,60028483,OAKRAY LIMITED,112.00,08/09/2015
Commercial,Customer Support Group,Building Repairs & Maintenance,60028485,OAKRAY LIMITED,180.00,08/09/2015
Commercial,Customer Support Group,Building Repairs & Maintenance,60028491,OAKRAY LIMITED,"11,947.10",22/09/2015
Commercial,Customer Support Group,Building Repairs & Maintenance,60028495,OAKRAY LIMITED,104.00,08/09/2015
Commercial,Customer Support Group,Building Repairs & Maintenance,60028521,OAKRAY LIMITED,137.24,08/09/2015
Commercial,Customer Support Group,Building Repairs & Maintenance,60028522,OAKRAY LIMITED,238.85,08/09/2015
Commercial,Customer Support Group,Building Repairs & Maintenance,60028524,OAKRAY LIMITED,460.23,08/09/2015
Commercial,Customer Support Group,Building Repairs & Maintenance,60028539,OAKRAY LIMITED,80.00,08/09/2015
Commercial,Customer Support Group,Building Repairs & Maintenance,60028540,OAKRAY LIMITED,300.28,22/09/2015
Commercial,Customer Support Group,Building Repairs & Maintenance,60028550,OAKRAY LIMITED,80.00,07/09/2015
Commercial,Customer Support Group,Building Repairs & Maintenance,60028563,OAKRAY LIMITED,80.00,08/09/2015
Commercial,Customer Support Group,Building Repairs & Maintenance,60028565,OAKRAY LIMITED,139.96,08/09/2015
Commercial,Customer Support Group,Building Repairs & Maintenance,60028570,OAKRAY LIMITED,56.00,08/09/2015
Commercial,Customer Support Group,Building Repairs & Maintenance,60028579,OAKRAY LIMITED,80.00,08/09/2015
Commercial,Customer Support Group,Building Repairs & Maintenance,60030925,OAKRAY LIMITED,429.20,28/09/2015
Commercial,Customer Support Group,Building Repairs & Maintenance,60030935,OAKRAY LIMITED,80.00,28/09/2015
Commercial,Customer Support Group,Building Repairs & Maintenance,60030936,OAKRAY LIMITED,56.00,28/09/2015
Commercial,Customer Support Group,Building Repairs & Maintenance,60030950,OAKRAY LIMITED,64.00,28/09/2015
Commercial,Customer Support Group,Building Repairs & Maintenance,60030985,OAKRAY LIMITED,64.00,28/09/2015
Commercial,Customer Support Group,Building Repairs & Maintenance,60030990,OAKRAY LIMITED,399.32,28/09/2015
Commercial,Customer Support Group,Building Repairs & Maintenance,60031077,OAKRAY LIMITED,56.00,28/09/2015
Commercial,Customer Support Group,Building Repairs & Maintenance,60031078,OAKRAY LIMITED,112.00,28/09/2015
Commercial,Customer Support Group,Building Repairs & Maintenance,60031098,OAKRAY LIMITED,96.00,28/09/2015
Commercial,Customer Support Group,Building Repairs & Maintenance,60031101,OAKRAY LIMITED,72.00,28/09/2015
Commercial,Customer Support Group,Building Repairs & Maintenance,60031105,OAKRAY LIMITED,114.42,28/09/2015
Commercial,Customer Support Group,Building Repairs & Maintenance,60031111,OAKRAY LIMITED,745.49,28/09/2015
Commercial,Customer Support Group,Building Repairs & Maintenance,60031112,OAKRAY LIMITED,"1,027.43",28/09/2015
Commercial,Customer Support Group,Building Repairs & Maintenance,60031131,OAKRAY LIMITED,64.00,28/09/2015
Commercial,Customer Support Group,Building Repairs & Maintenance,60031138,OAKRAY LIMITED,418.18,28/09/2015
Commercial,Customer Support Group,Building Repairs & Maintenance,60029001,ONLITECH,"7,972.00",10/09/2015
Commercial,Customer Support Group,Building Repairs & Maintenance,60023911,RGE SERVICES,"11,492.69",15/09/2015
Commercial,Customer Support Group,Building Repairs & Maintenance,60026492,RGE SERVICES,446.00,14/09/2015
Commercial,Customer Support Group,Building Repairs & Maintenance,60026519,RGE SERVICES,342.46,14/09/2015
Commercial,Customer Support Group,Building Repairs & Maintenance,60027918,RGE SERVICES,231.12,07/09/2015
Commercial,Customer Support Group,Building Repairs & Maintenance,60027956,RGE SERVICES,62.00,07/09/2015
Commercial,Customer Support Group,Building Repairs & Maintenance,60028466,RGE SERVICES,60.80,02/09/2015
Commercial,Customer Support Group,Building Repairs & Maintenance,60029448,RGE SERVICES,326.91,10/09/2015
Commercial,Customer Support Group,Building Repairs & Maintenance,60029451,RGE SERVICES,598.63,15/09/2015
Commercial,Customer Support Group,Building Repairs & Maintenance,60029495,RGE SERVICES,316.32,15/09/2015
Commercial,Customer Support Group,Building Repairs & Maintenance,60029597,RGE SERVICES,96.65,10/09/2015
Commercial,Customer Support Group,Building Repairs & Maintenance,60029824,RGE SERVICES,28.50,16/09/2015
Commercial,Customer Support Group,Building Repairs & Maintenance,60029830,RGE SERVICES,109.25,16/09/2015
Commercial,Customer Support Group,Building Repairs & Maintenance,60029903,RGE SERVICES,62.00,17/09/2015
Commercial,Customer Support Group,Building Repairs & Maintenance,60029904,RGE SERVICES,115.11,17/09/2015
Commercial,Customer Support Group,Building Repairs & Maintenance,60029916,RGE SERVICES,62.00,17/09/2015
Commercial,Customer Support Group,Building Repairs & Maintenance,60029942,RGE SERVICES,93.00,17/09/2015
Commercial,Customer Support Group,Building Repairs & Maintenance,60029966,RGE SERVICES,162.21,17/09/2015
Commercial,Customer Support Group,Building Repairs & Maintenance,60017634,S W BRUCE & CO LTD,862.00,08/09/2015
Commercial,Customer Support Group,Building Repairs & Maintenance,60026845,S W BRUCE & CO LTD,166.75,08/09/2015
Commercial,Customer Support Group,Building Repairs & Maintenance,60027706,S W BRUCE & CO LTD,79.36,07/09/2015
Commercial,Customer Support Group,Building Repairs & Maintenance,60027712,S W BRUCE & CO LTD,28.50,07/09/2015
Commercial,Customer Support Group,Building Repairs & Maintenance,60027735,S W BRUCE & CO LTD,31.39,07/09/2015
Commercial,Customer Support Group,Building Repairs & Maintenance,60027739,S W BRUCE & CO LTD,132.13,07/09/2015
Commercial,Customer Support Group,Building Repairs & Maintenance,60027744,S W BRUCE & CO LTD,43.69,07/09/2015
Commercial,Customer Support Group,Building Repairs & Maintenance,60027747,S W BRUCE & CO LTD,154.63,07/09/2015
Commercial,Customer Support Group,Building Repairs & Maintenance,60027750,S W BRUCE & CO LTD,45.35,07/09/2015
Commercial,Customer Support Group,Building Repairs & Maintenance,60027753,S W BRUCE & CO LTD,131.68,07/09/2015
Commercial,Customer Support Group,Building Repairs & Maintenance,60027756,S W BRUCE & CO LTD,65.01,07/09/2015
Commercial,Customer Support Group,Building Repairs & Maintenance,60027767,S W BRUCE & CO LTD,64.12,07/09/2015
Commercial,Customer Support Group,Building Repairs & Maintenance,60027773,S W BRUCE & CO LTD,282.97,28/09/2015
Commercial,Customer Support Group,Building Repairs & Maintenance,60027778,S W BRUCE & CO LTD,"7,200.00",07/09/2015
Commercial,Customer Support Group,Building Repairs & Maintenance,60027785,S W BRUCE & CO LTD,25.00,07/09/2015
Commercial,Customer Support Group,Building Repairs & Maintenance,60027795,S W BRUCE & CO LTD,59.80,07/09/2015
Commercial,Customer Support Group,Building Repairs & Maintenance,60027798,S W BRUCE & CO LTD,396.73,28/09/2015
Commercial,Customer Support Group,Building Repairs & Maintenance,60027802,S W BRUCE & CO LTD,110.21,07/09/2015
Commercial,Customer Support Group,Building Repairs & Maintenance,60027806,S W BRUCE & CO LTD,28.50,07/09/2015
Commercial,Customer Support Group,Building Repairs & Maintenance,60027809,S W BRUCE & CO LTD,134.52,07/09/2015
Commercial,Customer Support Group,Building Repairs & Maintenance,60027819,S W BRUCE & CO LTD,148.37,07/09/2015
Commercial,Customer Support Group,Building Repairs & Maintenance,60027823,S W BRUCE & CO LTD,72.53,07/09/2015
Commercial,Customer Support Group,Building Repairs & Maintenance,60027826,S W BRUCE & CO LTD,42.75,07/09/2015
Commercial,Customer Support Group,Building Repairs & Maintenance,60027834,S W BRUCE & CO LTD,98.76,07/09/2015
Commercial,Customer Support Group,Building Repairs & Maintenance,60027838,S W BRUCE & CO LTD,57.00,07/09/2015
Commercial,Customer Support Group,Building Repairs & Maintenance,60027842,S W BRUCE & CO LTD,147.27,07/09/2015
Commercial,Customer Support Group,Building Repairs & Maintenance,60027843,S W BRUCE & CO LTD,218.64,07/09/2015
Commercial,Customer Support Group,Building Repairs & Maintenance,60027866,S W BRUCE & CO LTD,220.59,07/09/2015
Commercial,Customer Support Group,Building Repairs & Maintenance,60029374,S W BRUCE & CO LTD,550.00,04/09/2015
Commercial,Customer Support Group,Building Repairs & Maintenance,60029780,S W BRUCE & CO LTD,36.00,16/09/2015
Commercial,Customer Support Group,Building Repairs & Maintenance,60029781,S W BRUCE & CO LTD,876.00,16/09/2015
Commercial,Customer Support Group,Building Repairs & Maintenance,60029782,S W BRUCE & CO LTD,74.43,16/09/2015
Commercial,Customer Support Group,Building Repairs & Maintenance,60029791,S W BRUCE & CO LTD,57.00,16/09/2015
Commercial,Customer Support Group,Building Repairs & Maintenance,60029797,S W BRUCE & CO LTD,207.00,16/09/2015
Commercial,Customer Support Group,Building Repairs & Maintenance,60029800,S W BRUCE & CO LTD,71.25,15/09/2015
Commercial,Customer Support Group,Building Repairs & Maintenance,60029802,S W BRUCE & CO LTD,29.72,11/09/2015
Commercial,Customer Support Group,Building Repairs & Maintenance,60029813,S W BRUCE & CO LTD,25.00,15/09/2015
Commercial,Customer Support Group,Building Repairs & Maintenance,60029814,S W BRUCE & CO LTD,38.36,11/09/2015
Commercial,Customer Support Group,Building Repairs & Maintenance,60029819,S W BRUCE & CO LTD,25.00,11/09/2015
Commercial,Customer Support Group,Building Repairs & Maintenance,60029831,S W BRUCE & CO LTD,155.58,16/09/2015
Commercial,Customer Support Group,Building Repairs & Maintenance,60029832,S W BRUCE & CO LTD,57.00,15/09/2015
Commercial,Customer Support Group,Building Repairs & Maintenance,60029834,S W BRUCE & CO LTD,28.50,11/09/2015
Commercial,Customer Support Group,Building Repairs & Maintenance,60029835,S W BRUCE & CO LTD,145.76,15/09/2015
Commercial,Customer Support Group,Building Repairs & Maintenance,60029843,S W BRUCE & CO LTD,57.00,16/09/2015
Commercial,Customer Support Group,Building Repairs & Maintenance,60029845,S W BRUCE & CO LTD,32.00,11/09/2015
Commercial,Customer Support Group,Building Repairs & Maintenance,60029852,S W BRUCE & CO LTD,41.85,11/09/2015
Commercial,Customer Support Group,Building Repairs & Maintenance,60029854,S W BRUCE & CO LTD,57.00,15/09/2015
Commercial,Customer Support Group,Building Repairs & Maintenance,60029858,S W BRUCE & CO LTD,81.14,16/09/2015
Commercial,Customer Support Group,Building Repairs & Maintenance,60029863,S W BRUCE & CO LTD,92.98,11/09/2015
Commercial,Customer Support Group,Building Repairs & Maintenance,60029867,S W BRUCE & CO LTD,822.55,11/09/2015
Commercial,Customer Support Group,Building Repairs & Maintenance,60029869,S W BRUCE & CO LTD,28.10,11/09/2015
Commercial,Customer Support Group,Building Repairs & Maintenance,60029879,S W BRUCE & CO LTD,70.12,16/09/2015
Commercial,Customer Support Group,Building Repairs & Maintenance,60030101,S W BRUCE & CO LTD,33.40,18/09/2015
Commercial,Customer Support Group,Building Repairs & Maintenance,60030102,S W BRUCE & CO LTD,51.89,18/09/2015
Commercial,Customer Support Group,Building Repairs & Maintenance,60030107,S W BRUCE & CO LTD,88.16,18/09/2015
Commercial,Customer Support Group,Building Repairs & Maintenance,60030109,S W BRUCE & CO LTD,58.63,18/09/2015
Commercial,Customer Support Group,Building Repairs & Maintenance,60030117,S W BRUCE & CO LTD,590.76,22/09/2015
Commercial,Customer Support Group,Building Repairs & Maintenance,60030130,S W BRUCE & CO LTD,28.50,18/09/2015
Commercial,Customer Support Group,Building Repairs & Maintenance,60030133,S W BRUCE & CO LTD,62.86,18/09/2015
Commercial,Customer Support Group,Building Repairs & Maintenance,60030140,S W BRUCE & CO LTD,158.82,18/09/2015
Commercial,Customer Support Group,Building Repairs & Maintenance,60030152,S W BRUCE & CO LTD,78.90,16/09/2015
Commercial,Customer Support Group,Building Repairs & Maintenance,60030160,S W BRUCE & CO LTD,107.38,18/09/2015
Commercial,Customer Support Group,Building Repairs & Maintenance,60030165,S W BRUCE & CO LTD,92.98,18/09/2015
Commercial,Customer Support Group,Building Repairs & Maintenance,60030190,S W BRUCE & CO LTD,120.54,18/09/2015
Commercial,Customer Support Group,Building Repairs & Maintenance,60032773,SECOM PLC,227.00,30/09/2015
Commercial,Customer Support Group,Building Repairs & Maintenance,60032856,SECOM PLC,70.00,30/09/2015
Commercial,Customer Support Group,Building Repairs & Maintenance,60032865,SECOM PLC,89.00,30/09/2015
Commercial,Customer Support Group,Building Repairs & Maintenance,60032896,SECOM PLC,89.00,30/09/2015
Commercial,Customer Support Group,Building Repairs & Maintenance,60030558,THE WINDOW COMPANY,"29,250.00",25/09/2015
Commercial,Customer Support Group,Building Repairs & Maintenance,60030974,UNITED FORKTRUCKS (1992) LTD,41.47,11/09/2015
Commercial,Customer Support Group,Cleaning and domestic material,60023299,CHURCHILL CONTRACT SERVICES,286.43,28/09/2015
Commercial,Customer Support Group,Cleaning and domestic material,60029082,CHURCHILL CONTRACT SERVICES,45.00,03/09/2015
Commercial,Customer Support Group,Cleaning and domestic material,60030122,CHURCHILL CONTRACT SERVICES,640.00,03/09/2015
Commercial,Customer Support Group,Cleaning and domestic material,60030836,CHURCHILL CONTRACT SERVICES,640.00,16/09/2015
Commercial,Customer Support Group,Cleaning and domestic material,60032077,CHURCHILL CONTRACT SERVICES,640.00,28/09/2015
Commercial,Customer Support Group,Cleaning and domestic material,60028720,HERTFORDSHIRE COUNTY COUNCIL,469.75,09/09/2015
Commercial,Customer Support Group,Cleaning and domestic material,10012332,HERTFORDSHIRE SUPPLIES   COUNTY CO,96.00,15/09/2015
Commercial,Customer Support Group,Cleaning and domestic material,60014549,HERTFORDSHIRE SUPPLIES   COUNTY CO,"1,417.50",15/09/2015
Commercial,Customer Support Group,Cleaning and domestic material,60028724,HERTFORDSHIRE SUPPLIES   COUNTY CO,713.15,10/09/2015
Commercial,Customer Support Group,Cleaning and domestic material,60028744,HERTFORDSHIRE SUPPLIES   COUNTY CO,139.90,09/09/2015
Commercial,Customer Support Group,Cleaning and domestic material,60030932,HERTFORDSHIRE SUPPLIES   COUNTY CO,"1,606.50",10/09/2015
Commercial,Customer Support Group,Contract Cleaning,60020791,CHURCHILL CONTRACT SERVICES,286.43,30/09/2015
Commercial,Customer Support Group,Contract Cleaning,60026050,CHURCHILL CONTRACT SERVICES,286.43,30/09/2015
Commercial,Customer Support Group,Contract Cleaning,60028435,CHURCHILL CONTRACT SERVICES,286.43,30/09/2015
Commercial,Customer Support Group,Contract Cleaning,60028558,CHURCHILL CONTRACT SERVICES,647.01,30/09/2015
Commercial,Customer Support Group,Contract Cleaning,60030643,CHURCHILL CONTRACT SERVICES,286.43,30/09/2015
Commercial,Customer Support Group,Contract Cleaning,60030652,CHURCHILL CONTRACT SERVICES,"7,809.56",30/09/2015
Commercial,Customer Support Group,Contract Cleaning,60030682,CHURCHILL CONTRACT SERVICES,647.01,30/09/2015
Commercial,Customer Support Group,Contract Cleaning,60030683,CHURCHILL CONTRACT SERVICES,"1,103.65",30/09/2015
Commercial,Customer Support Group,Contract Cleaning,60030693,CHURCHILL CONTRACT SERVICES,"3,458.58",30/09/2015
Commercial,Customer Support Group,Contract Cleaning,60030694,CHURCHILL CONTRACT SERVICES,"8,132.77",30/09/2015
Commercial,Customer Support Group,CSG Services Contract Payment,10012626,CAPITA BUSINESS SERVICES LTD,"-9,000.00",10/09/2015
Commercial,Customer Support Group,CSG Services Contract Payment,10012636,CAPITA BUSINESS SERVICES LTD,"6,612,754.00",10/09/2015
Commercial,Customer Support Group,CSG Services Contract Payment,10012684,CAPITA BUSINESS SERVICES LTD,"510,244.49",29/09/2015
Commercial,Customer Support Group,CSG Services Contract Payment,10012685,CAPITA BUSINESS SERVICES LTD,"177,809.71",29/09/2015
Commercial,Customer Support Group,CSG Services Contract Payment,10012688,CAPITA BUSINESS SERVICES LTD,"313,479.00",25/09/2015
Commercial,Customer Support Group,CSG Services Contract Payment,10012689,CAPITA BUSINESS SERVICES LTD,"174,942.00",25/09/2015
Commercial,Customer Support Group,CSG Services Contract Payment,10012690,CAPITA BUSINESS SERVICES LTD,"242,616.00",25/09/2015
Commercial,Customer Support Group,Electricity,60024780,BRITISH GAS BUSINESS,92.73,15/09/2015
Commercial,Customer Support Group,Electricity,60030501,KENT COUNTY COUNCIL (KCS),909.89,02/09/2015
Commercial,Customer Support Group,Electricity,60030841,KENT COUNTY COUNCIL (KCS),"88,369.25",07/09/2015
Commercial,Customer Support Group,Electricity,60031930,KENT COUNTY COUNCIL (KCS),"76,936.66",29/09/2015
Commercial,Customer Support Group,Electricity,10012627,SCOTTISH POWER GROUP,827.77,07/09/2015
Commercial,Customer Support Group,Electricity,10012628,SCOTTISH POWER GROUP,863.99,07/09/2015
Commercial,Customer Support Group,Electricity,10012629,SCOTTISH POWER GROUP,851.62,07/09/2015
Commercial,Customer Support Group,Electricity,10012630,SCOTTISH POWER GROUP,"1,053.88",07/09/2015
Commercial,Customer Support Group,Electricity,10012631,SCOTTISH POWER GROUP,"1,037.84",07/09/2015
Commercial,Customer Support Group,Equipment and Materials Purcha,60030398,DAY PLANT HIRE CO LIMITED,322.00,01/09/2015
Commercial,Customer Support Group,Equipment and Materials Purcha,60030733,DAY PLANT HIRE CO LIMITED,280.00,07/09/2015
Commercial,Customer Support Group,Equipment and Materials Purcha,60030380,SM ELECTRICAL SERVICES,360.00,02/09/2015
Commercial,Customer Support Group,Fixtures and fittings,60030058,UNIQUE OFFICE SOLUTIONS LTD,119.00,17/09/2015
Commercial,Customer Support Group,Gas,20023848,CALOR GAS LIMITED,147.54,29/09/2015
Commercial,Customer Support Group,Gas,60031704,COMER PROPERTY MANAGEMENT,"10,675.53",18/09/2015
Commercial,Customer Support Group,Gas,60030076,KENT COUNTY COUNCIL (KCS),67.68,02/09/2015
Commercial,Customer Support Group,Gas,60030327,KENT COUNTY COUNCIL (KCS),"1,149.99",02/09/2015
Commercial,Customer Support Group,Gas,60030343,KENT COUNTY COUNCIL (KCS),366.44,02/09/2015
Commercial,Customer Support Group,Gas,60030354,KENT COUNTY COUNCIL (KCS),529.17,02/09/2015
Commercial,Customer Support Group,Gas,60030379,KENT COUNTY COUNCIL (KCS),135.10,01/09/2015
Commercial,Customer Support Group,Gas,60030381,KENT COUNTY COUNCIL (KCS),53.09,01/09/2015
Commercial,Customer Support Group,Gas,60030453,KENT COUNTY COUNCIL (KCS),268.51,02/09/2015
Commercial,Customer Support Group,Gas,60030814,KENT COUNTY COUNCIL (KCS),47.91,07/09/2015
Commercial,Customer Support Group,Gas,60032165,KENT COUNTY COUNCIL (KCS),67.30,30/09/2015
Commercial,Customer Support Group,Gas,60032173,KENT COUNTY COUNCIL (KCS),115.53,28/09/2015
Commercial,Customer Support Group,Gas,60032181,KENT COUNTY COUNCIL (KCS),529.17,30/09/2015
Commercial,Customer Support Group,Gas,60032202,KENT COUNTY COUNCIL (KCS),"1,073.74",30/09/2015
Commercial,Customer Support Group,Gas,60032204,KENT COUNTY COUNCIL (KCS),363.04,30/09/2015
Commercial,Customer Support Group,Gas,60032205,KENT COUNTY COUNCIL (KCS),638.86,30/09/2015
Commercial,Customer Support Group,Grounds maintenance,60030394,THE HONEYWAGON CO.,764.75,01/09/2015
Commercial,Customer Support Group,Grounds maintenance,60031665,THE HONEYWAGON CO.,979.25,29/09/2015
Commercial,Customer Support Group,Legal and Court Fees,20023788,MACRORY WARD CLIENTS ACCOUNT,400.00,23/09/2015
Commercial,Customer Support Group,Miscellaneous Expenses,20023808,HM REVENUE & CUSTOMS,"6,778.36",25/09/2015
Commercial,Customer Support Group,Operational Leases - Equipment,60028287,XEROX (UK) LTD,"2,923.83",14/09/2015
Commercial,Customer Support Group,Operational Leases - Equipment,60028294,XEROX (UK) LTD,170.75,14/09/2015
Commercial,Customer Support Group,Operational Leases - Equipment,60028352,XEROX (UK) LTD,"3,139.36",14/09/2015
Commercial,Customer Support Group,Operational Leases - Equipment,60030879,XEROX FINANCE LTD,"4,298.00",09/09/2015
Commercial,Customer Support Group,Other Energy,60029154,SCOTTISH POWER GROUP,"1,037.84",15/09/2015
Commercial,Customer Support Group,Other Energy,60030849,SIEMENS ENERGY MANAGEMENT DIV,607.00,11/09/2015
Commercial,Customer Support Group,Other Services,10012679,BLUE 9 SECURITY LIMITED,"17,444.25",23/09/2015
Commercial,Customer Support Group,Other Services,60030860,BLUE 9 SECURITY LIMITED,50.00,10/09/2015
Commercial,Customer Support Group,Other Services,60030878,BLUE 9 SECURITY LIMITED,200.00,10/09/2015
Commercial,Customer Support Group,Other Services,60030884,BLUE 9 SECURITY LIMITED,"21,204.00",10/09/2015
Commercial,Customer Support Group,Other Services,60030899,BLUE 9 SECURITY LIMITED,"1,290.00",10/09/2015
Commercial,Customer Support Group,Other Services,60031069,BLUE 9 SECURITY LIMITED,"1,116.50",10/09/2015
Commercial,Customer Support Group,Rents,60030426,CANAL & RIVER TRUST,"2,000.00",16/09/2015
Commercial,Customer Support Group,Rents,60031186,DANCASTLE ASSOCIATES LIMITED,"186,250.00",10/09/2015
Commercial,Customer Support Group,Rubbish Collection,60026931,PEARCE RECYCLING CO. LTD,66.00,14/09/2015
Commercial,Customer Support Group,Rubbish Collection,60030345,PREMIER SHREDDING,166.00,01/09/2015
Commercial,Customer Support Group,Rubbish Collection,60030372,PREMIER SHREDDING,60.00,01/09/2015
Commercial,Customer Support Group,Rubbish Collection,60030376,PREMIER SHREDDING,80.00,01/09/2015
Commercial,Customer Support Group,Rubbish Collection,60030409,PREMIER SHREDDING,50.00,01/09/2015
Commercial,Customer Support Group,Rubbish Collection,60030425,PREMIER SHREDDING,72.00,01/09/2015
Commercial,Customer Support Group,Rubbish Collection,60031356,PREMIER SHREDDING,176.00,14/09/2015
Commercial,Customer Support Group,Rubbish Collection,60031358,PREMIER SHREDDING,155.00,14/09/2015
Commercial,Customer Support Group,Rubbish Collection,60031360,PREMIER SHREDDING,72.00,14/09/2015
Commercial,Customer Support Group,Rubbish Collection,60032499,PREMIER SHREDDING,163.00,28/09/2015
Commercial,Customer Support Group,Service Charges,60031696,COMER BUSINESS AND INNOVATION CENTRES,"128,580.69",18/09/2015
Commercial,Customer Support Group,Service Charges,60031596,COMER PROPERTY MANAGEMENT,"99,796.79",18/09/2015
Commercial,Customer Support Group,Service Charges,60031675,COMER PROPERTY MANAGEMENT,"128,580.69",18/09/2015
Commercial,Customer Support Group,Service Charges,60031732,COMER PROPERTY MANAGEMENT,"99,796.79",18/09/2015
Commercial,Customer Support Group,Stationery,60023816,CPI LONDON,43.50,15/09/2015
Commercial,Customer Support Group,Telephones Calls,10012680,BRITISH TELECOMMUNICATIONS PLC,69.89,23/09/2015
Commercial,Customer Support Group,Telephones Calls,60030421,BRITISH TELECOMMUNICATIONS PLC,129.70,09/09/2015
Commercial,Customer Support Group,Ttl IT & Comms,20023597,VODAFONE LTD,"15,966.06",16/09/2015
Commercial,Customer Support Group,Ttl IT & Comms,20023598,VODAFONE LTD,"15,643.01",16/09/2015
Commercial,Customer Support Group,Ttl IT & Comms,20023599,VODAFONE LTD,"15,633.77",16/09/2015
Commercial,Customer Support Group,Ttl IT & Comms,20023600,VODAFONE LTD,"15,860.14",16/09/2015
Commercial,Customer Support Group,Ttl IT & Comms,20023601,VODAFONE LTD,"15,471.32",16/09/2015
Commercial,Customer Support Group,Ttl IT & Comms,20023602,VODAFONE LTD,"15,778.49",16/09/2015
Commercial,Customer Support Group,Ttl IT & Comms,20023603,VODAFONE LTD,"15,585.23",16/09/2015
Commercial,Customer Support Group,Ttl IT & Comms,20023604,VODAFONE LTD,"15,714.74",16/09/2015
Commercial,Customer Support Group,Water Services,60030044,ANGEL SPRINGS LTD,94.00,15/09/2015
Commercial,Customer Support Group,Water Services,60030440,ANGEL SPRINGS LTD,62.00,02/09/2015
Commercial,Customer Support Group,Water Services,60031079,ANGEL SPRINGS LTD,36.78,29/09/2015
Commercial,Customer Support Group,Water Services,60031081,ANGEL SPRINGS LTD,230.00,29/09/2015
Commercial,Customer Support Group,Water Services,60030933,ANGEL SPRINGS LTD (SEE  VENDOR: 138437),104.40,25/09/2015
Commercial,Customer Support Group,Water Services,60030759,THAMES WATER UTILITIES LIMITED,405.05,11/09/2015
Commercial,Customer Support Group,Water Services,60031376,THAMES WATER UTILITIES LIMITED,76.20,16/09/2015
Commercial,Housing Needs Resources,Private Contractors - Third Pa,60031825,THE BARNETGROUP LIMITED,"1,600,000.00",24/09/2015
Commercial,HRA,Consultants Fees,60029321,PRIORITY ESTATES PROJECT LTD,"1,641.47",08/09/2015
Commercial,HRA,Consultants Fees,60029369,PRIORITY ESTATES PROJECT LTD,"1,606.55",08/09/2015
Commercial,HRA,Consultants Fees,60029427,STRATEGIC URBAN FUTURES LIMITED,533.30,08/09/2015
Commercial,HRA,Consultants Fees,60030775,THE BARNETGROUP LIMITED,"25,662.50",09/09/2015
Commercial,Parking & Infrastructure,Equipment and Materials Purcha,60031513,AMARI PLASTICS LTD,124.12,23/09/2015
Commercial,Parking & Infrastructure,Equipment and Materials Purcha,60031449,ANGEL SPRINGS LTD,32.00,29/09/2015
Commercial,Parking & Infrastructure,Equipment and Materials Purcha,60029194,ASD METAL SERVICES,312.00,21/09/2015
Commercial,Parking & Infrastructure,Equipment and Materials Purcha,60030254,ASD METAL SERVICES,343.60,09/09/2015
Commercial,Parking & Infrastructure,Equipment and Materials Purcha,60030788,ASD METAL SERVICES,24.00,18/09/2015
Commercial,Parking & Infrastructure,Equipment and Materials Purcha,60030817,ASD METAL SERVICES,258.00,09/09/2015
Commercial,Parking & Infrastructure,Equipment and Materials Purcha,60031459,ASD METAL SERVICES,416.00,15/09/2015
Commercial,Parking & Infrastructure,Equipment and Materials Purcha,60029894,COBURN SERVICES LTD,556.50,08/09/2015
Commercial,Parking & Infrastructure,Equipment and Materials Purcha,60030220,COBURN SERVICES LTD,556.50,16/09/2015
Commercial,Parking & Infrastructure,Equipment and Materials Purcha,60030800,COBURN SERVICES LTD,556.50,22/09/2015
Commercial,Parking & Infrastructure,Equipment and Materials Purcha,60031467,COBURN SERVICES LTD,886.80,25/09/2015
Commercial,Parking & Infrastructure,Equipment and Materials Purcha,60024470,GREENHAM TRADING LIMITED,617.44,30/09/2015
Commercial,Parking & Infrastructure,Equipment and Materials Purcha,60025852,GREENHAM TRADING LIMITED,179.70,10/09/2015
Commercial,Parking & Infrastructure,Equipment and Materials Purcha,60026010,GREENHAM TRADING LIMITED,200.44,10/09/2015
Commercial,Parking & Infrastructure,Equipment and Materials Purcha,60029322,GREENHAM TRADING LIMITED,21.16,10/09/2015
Commercial,Parking & Infrastructure,Equipment and Materials Purcha,60029521,GREENHAM TRADING LIMITED,51.37,11/09/2015
Commercial,Parking & Infrastructure,Equipment and Materials Purcha,60030301,GREENHAM TRADING LIMITED,269.26,22/09/2015
Commercial,Parking & Infrastructure,Equipment and Materials Purcha,60030314,GREENHAM TRADING LIMITED,64.82,22/09/2015
Commercial,Parking & Infrastructure,Equipment and Materials Purcha,60030328,LAFARGE TARMAC TRADING LIMITED,87.76,08/09/2015
Commercial,Parking & Infrastructure,Equipment and Materials Purcha,60030779,LAFARGE TARMAC TRADING LIMITED,142.62,18/09/2015
Commercial,Parking & Infrastructure,Equipment and Materials Purcha,60030789,LAFARGE TARMAC TRADING LIMITED,159.07,15/09/2015
Commercial,Parking & Infrastructure,Equipment and Materials Purcha,60030812,LAFARGE TARMAC TRADING LIMITED,93.25,15/09/2015
Commercial,Parking & Infrastructure,Equipment and Materials Purcha,60030834,LAFARGE TARMAC TRADING LIMITED,89.59,15/09/2015
Commercial,Parking & Infrastructure,Equipment and Materials Purcha,60031448,LAFARGE TARMAC TRADING LIMITED,148.10,22/09/2015
Commercial,Parking & Infrastructure,Equipment and Materials Purcha,60031474,LAFARGE TARMAC TRADING LIMITED,160.90,18/09/2015
Commercial,Parking & Infrastructure,Equipment and Materials Purcha,60031644,LAFARGE TARMAC TRADING LIMITED,87.76,29/09/2015
Commercial,Parking & Infrastructure,Equipment and Materials Purcha,60031724,LAFARGE TARMAC TRADING LIMITED,85.93,18/09/2015
Commercial,Parking & Infrastructure,Equipment and Materials Purcha,60031733,LAFARGE TARMAC TRADING LIMITED,133.47,22/09/2015
Commercial,Parking & Infrastructure,Equipment and Materials Purcha,60030882,NSL LTD,"3,782.66",10/09/2015
Commercial,Parking & Infrastructure,Equipment and Materials Purcha,60029365,RENNICK UK LTD,802.54,02/09/2015
Commercial,Parking & Infrastructure,Equipment and Materials Purcha,60029786,RENNICK UK LTD,"1,157.37",03/09/2015
Commercial,Parking & Infrastructure,Equipment and Materials Purcha,60029909,RENNICK UK LTD,146.68,11/09/2015
Commercial,Parking & Infrastructure,Equipment and Materials Purcha,60031458,RENNICK UK LTD,567.60,25/09/2015
Commercial,Parking & Infrastructure,Equipment and Materials Purcha,60030255,SPANDEX LIMITED,463.43,18/09/2015
Commercial,Parking & Infrastructure,Miscellaneous Expenses,60028999,PARKEON LIMITED,"7,375.00",04/09/2015
Commercial,Parking & Infrastructure,Miscellaneous Expenses,60029699,PARKEON LIMITED,"2,604.00",10/09/2015
Commercial,Parking & Infrastructure,Miscellaneous Expenses,60029963,PARKEON LIMITED,796.50,10/09/2015
Commercial,Parking & Infrastructure,Miscellaneous Expenses,60030577,PARKEON LIMITED,796.50,03/09/2015
Commercial,Parking & Infrastructure,Other Services,60031776,NSL LTD,657.75,25/09/2015
Commercial,Parking & Infrastructure,PCN - Street Contraventions,20023208,LEX AUTOLEASE LIMITED,110.00,04/09/2015
Commercial,Parking & Infrastructure,Professional Services,60030108,NSL LTD,"12,419.46",01/09/2015
Commercial,Parking & Infrastructure,Professional Services,60031175,NSL LTD,"61,069.25",14/09/2015
Commercial,Parking & Infrastructure,Professional Services,60031183,NSL LTD,"218,032.31",14/09/2015
Commercial,Parking & Infrastructure,Professional Services,60032396,NSL LTD,"16,559.28",29/09/2015
Commercial,Parking & Infrastructure,Software Licences & Support,60031783,NSL LTD,"25,315.08",23/09/2015
Commercial,Parking & Infrastructure,Software Licences & Support,60031812,NSL LTD,"4,312.39",25/09/2015
Commercial,Parking & Infrastructure,Ttl IT & Comms,60029315,VODAFONE LTD (BILLS ONLY),0.64,14/09/2015
Commercial,Regional Enterprise,Advertising,60030921,TMP (UK) LTD,112.08,10/09/2015
Commercial,Regional Enterprise,Advertising,60030927,TMP (UK) LTD,32.08,10/09/2015
Commercial,Regional Enterprise,Advertising,60030938,TMP (UK) LTD,42.77,10/09/2015
Commercial,Regional Enterprise,Advertising,60030963,TMP (UK) LTD,357.72,09/09/2015
Commercial,Regional Enterprise,Advertising,60030992,TMP (UK) LTD,685.88,09/09/2015
Commercial,Regional Enterprise,Advertising,60030993,TMP (UK) LTD,186.38,09/09/2015
Commercial,Regional Enterprise,Advertising,60031003,TMP (UK) LTD,112.08,10/09/2015
Commercial,Regional Enterprise,Advertising,60031004,TMP (UK) LTD,357.72,09/09/2015
Commercial,Regional Enterprise,Advertising,60031014,TMP (UK) LTD,225.59,09/09/2015
Commercial,Regional Enterprise,Advertising,60031046,TMP (UK) LTD,122.77,10/09/2015
Commercial,Regional Enterprise,Advertising,60031058,TMP (UK) LTD,112.08,10/09/2015
Commercial,Regional Enterprise,Advertising,60031068,TMP (UK) LTD,32.08,10/09/2015
Commercial,Regional Enterprise,Advertising,60031085,TMP (UK) LTD,32.08,10/09/2015
Commercial,Regional Enterprise,Advertising,60031121,TMP (UK) LTD,112.08,10/09/2015
Commercial,Regional Enterprise,Advertising,60031136,TMP (UK) LTD,32.08,10/09/2015
Commercial,Regional Enterprise,Advertising,60031613,TMP (UK) LTD,32.08,18/09/2015
Commercial,Regional Enterprise,Advertising,60031642,TMP (UK) LTD,112.08,18/09/2015
Commercial,Regional Enterprise,Contract Cleaning,60030656,CHURCHILL CONTRACT SERVICES,475.72,30/09/2015
Commercial,Regional Enterprise,Equipment and Materials Purcha,20023259,REDACTED - PERSONAL DATA,"1,085.00",04/09/2015
Commercial,Regional Enterprise,Grant Payments,20023832,AMWELL CONSTRUCTION LTD,"5,500.00",28/09/2015
Commercial,Regional Enterprise,Grant Payments,20023833,AMWELL CONSTRUCTION LTD,"4,263.00",28/09/2015
Commercial,Regional Enterprise,Grant Payments,20023535,ARTHUR J. FERRYMAN ASSOCIATES,"1,438.92",14/09/2015
Commercial,Regional Enterprise,Grant Payments,20023543,ARTHUR J. FERRYMAN ASSOCIATES,"1,664.40",15/09/2015
Commercial,Regional Enterprise,Grant Payments,20023806,CAPITAL  LOCKSMITHS,147.00,25/09/2015
Commercial,Regional Enterprise,Grant Payments,20023807,CAPITAL  LOCKSMITHS,156.96,25/09/2015
Commercial,Regional Enterprise,Grant Payments,20023812,CAPITAL  LOCKSMITHS,322.80,28/09/2015
Commercial,Regional Enterprise,Grant Payments,20023813,CAPITAL  LOCKSMITHS,204.00,28/09/2015
Commercial,Regional Enterprise,Grant Payments,20023555,DOLPHIN MOBILITY LTD.,"2,485.00",16/09/2015
Commercial,Regional Enterprise,Grant Payments,20023542,DP BUILDERS DISABLED ADAPTATIONS,"11,991.00",15/09/2015
Commercial,Regional Enterprise,Grant Payments,20023545,DP BUILDERS DISABLED ADAPTATIONS,"4,743.00",15/09/2015
Commercial,Regional Enterprise,Grant Payments,20023557,DP BUILDERS DISABLED ADAPTATIONS,"5,656.00",16/09/2015
Commercial,Regional Enterprise,Grant Payments,20023850,EDGWARE GLAZING,"4,615.20",29/09/2015
Commercial,Regional Enterprise,Grant Payments,20023546,H D PROPERTY SERVICES LTD,"4,915.00",16/09/2015
Commercial,Regional Enterprise,Grant Payments,20023547,H D PROPERTY SERVICES LTD,"5,087.00",16/09/2015
Commercial,Regional Enterprise,Grant Payments,20023814,H D PROPERTY SERVICES LTD,"4,334.00",28/09/2015
Commercial,Regional Enterprise,Grant Payments,20023811,MASTERTEK LTD,"14,974.13",25/09/2015
Commercial,Regional Enterprise,Grant Payments,20023226,MCP PROPERTY SERVICES LTD,"3,150.00",03/09/2015
Commercial,Regional Enterprise,Grant Payments,20023909,MCP PROPERTY SERVICES LTD,"2,467.50",30/09/2015
Commercial,Regional Enterprise,Grant Payments,20023170,QUATREFOILS,"2,394.00",01/09/2015
Commercial,Regional Enterprise,Grant Payments,20023544,REDACTED - PERSONAL DATA,"7,644.00",15/09/2015
Commercial,Regional Enterprise,Grant Payments,20023867,REDACTED - PERSONAL DATA,"5,750.00",29/09/2015
Commercial,Regional Enterprise,Grant Payments,20023895,REDACTED - PERSONAL DATA,"2,520.00",29/09/2015
Commercial,Regional Enterprise,Grant Payments,20023914,REDACTED - PERSONAL DATA,"3,500.00",30/09/2015
Commercial,Regional Enterprise,Grant Payments,20023911,SOUTH HERTFORDSHIRE,"6,564.00",30/09/2015
Commercial,Regional Enterprise,Grant Payments,20023552,STANNAH STAIRLIFTS LTD,"4,668.00",16/09/2015
Commercial,Regional Enterprise,Grant Payments,20023591,TOTAL HYGIENE LIMITED,354.00,16/09/2015
Commercial,Regional Enterprise,Legal and Court Fees,60029669,REDACTED - PERSONAL DATA,600.00,15/09/2015
Commercial,Regional Enterprise,Other Services,10012670,ANNEMOUNT NURSERY SCHOOL,"2,200.00",18/09/2015
Commercial,Regional Enterprise,Other Services,60030821,BARNET LIGHTING SERVICES LTD,"15,000.00",15/09/2015
Commercial,Regional Enterprise,Other Services,60027745,CONWAY AECOM LTD,"1,912.95",29/09/2015
Commercial,Regional Enterprise,Other Services,60028169,CONWAY AECOM LTD,"73,188.28",29/09/2015
Commercial,Regional Enterprise,Other Services,60028795,CONWAY AECOM LTD,"9,503.81",01/09/2015
Commercial,Regional Enterprise,Other Services,60028801,CONWAY AECOM LTD,"27,932.45",29/09/2015
Commercial,Regional Enterprise,Other Services,60028819,CONWAY AECOM LTD,"8,723.51",01/09/2015
Commercial,Regional Enterprise,Other Services,60028845,CONWAY AECOM LTD,"12,814.87",29/09/2015
Commercial,Regional Enterprise,Other Services,60028869,CONWAY AECOM LTD,"8,814.77",01/09/2015
Commercial,Regional Enterprise,Other Services,60028874,CONWAY AECOM LTD,"23,719.85",01/09/2015
Commercial,Regional Enterprise,Other Services,60028895,CONWAY AECOM LTD,"23,415.81",01/09/2015
Commercial,Regional Enterprise,Other Services,60028907,CONWAY AECOM LTD,"11,524.29",01/09/2015
Commercial,Regional Enterprise,Other Services,60028911,CONWAY AECOM LTD,"10,270.59",01/09/2015
Commercial,Regional Enterprise,Other Services,60028927,CONWAY AECOM LTD,"27,170.49",01/09/2015
Commercial,Regional Enterprise,Other Services,60028941,CONWAY AECOM LTD,"9,364.31",29/09/2015
Commercial,Regional Enterprise,Other Services,60028956,CONWAY AECOM LTD,"12,706.01",01/09/2015
Commercial,Regional Enterprise,Other Services,60028985,CONWAY AECOM LTD,"6,746.82",01/09/2015
Commercial,Regional Enterprise,Other Services,60029120,CONWAY AECOM LTD,"34,000.00",02/09/2015
Commercial,Regional Enterprise,Other Services,60029131,CONWAY AECOM LTD,"32,000.00",02/09/2015
Commercial,Regional Enterprise,Other Services,60029137,CONWAY AECOM LTD,"54,000.00",02/09/2015
Commercial,Regional Enterprise,Other Services,60029138,CONWAY AECOM LTD,"30,000.00",02/09/2015
Commercial,Regional Enterprise,Other Services,60029144,CONWAY AECOM LTD,"25,000.00",02/09/2015
Commercial,Regional Enterprise,Other Services,60029149,CONWAY AECOM LTD,"83,000.00",02/09/2015
Commercial,Regional Enterprise,Other Services,60029157,CONWAY AECOM LTD,"74,000.00",02/09/2015
Commercial,Regional Enterprise,Other Services,60029163,CONWAY AECOM LTD,"17,000.00",02/09/2015
Commercial,Regional Enterprise,Other Services,60029166,CONWAY AECOM LTD,"8,000.00",02/09/2015
Commercial,Regional Enterprise,Other Services,60029167,CONWAY AECOM LTD,"21,000.00",30/09/2015
Commercial,Regional Enterprise,Other Services,60029171,CONWAY AECOM LTD,"14,000.00",02/09/2015
Commercial,Regional Enterprise,Other Services,60029172,CONWAY AECOM LTD,"1,000.00",02/09/2015
Commercial,Regional Enterprise,Other Services,60029179,CONWAY AECOM LTD,"56,000.00",02/09/2015
Commercial,Regional Enterprise,Other Services,60029193,CONWAY AECOM LTD,"17,000.00",30/09/2015
Commercial,Regional Enterprise,Other Services,60029210,CONWAY AECOM LTD,"25,000.00",02/09/2015
Commercial,Regional Enterprise,Other Services,60029225,CONWAY AECOM LTD,"92,000.00",02/09/2015
Commercial,Regional Enterprise,Other Services,60029240,CONWAY AECOM LTD,"50,000.00",02/09/2015
Commercial,Regional Enterprise,Other Services,60029244,CONWAY AECOM LTD,"7,000.00",02/09/2015
Commercial,Regional Enterprise,Other Services,60029254,CONWAY AECOM LTD,"24,000.00",02/09/2015
Commercial,Regional Enterprise,Other Services,60029270,CONWAY AECOM LTD,"56,000.00",02/09/2015
Commercial,Regional Enterprise,Other Services,60029278,CONWAY AECOM LTD,"14,829.73",01/09/2015
Commercial,Regional Enterprise,Other Services,60029284,CONWAY AECOM LTD,"12,775.45",01/09/2015
Commercial,Regional Enterprise,Other Services,60029291,CONWAY AECOM LTD,"8,978.73",01/09/2015
Commercial,Regional Enterprise,Other Services,60029300,CONWAY AECOM LTD,"6,615.31",01/09/2015
Commercial,Regional Enterprise,Other Services,60029317,CONWAY AECOM LTD,"21,798.81",01/09/2015
Commercial,Regional Enterprise,Other Services,60029325,CONWAY AECOM LTD,"15,257.21",01/09/2015
Commercial,Regional Enterprise,Other Services,60029326,CONWAY AECOM LTD,"8,918.47",01/09/2015
Commercial,Regional Enterprise,Other Services,60029333,CONWAY AECOM LTD,"10,229.93",01/09/2015
Commercial,Regional Enterprise,Other Services,60029335,CONWAY AECOM LTD,"33,852.85",01/09/2015
Commercial,Regional Enterprise,Other Services,60029338,CONWAY AECOM LTD,"9,143.07",01/09/2015
Commercial,Regional Enterprise,Other Services,60029350,CONWAY AECOM LTD,"2,961.53",30/09/2015
Commercial,Regional Enterprise,Other Services,60029357,CONWAY AECOM LTD,"5,547.33",01/09/2015
Commercial,Regional Enterprise,Other Services,60029360,CONWAY AECOM LTD,"22,012.93",01/09/2015
Commercial,Regional Enterprise,Other Services,60029361,CONWAY AECOM LTD,"5,439.35",01/09/2015
Commercial,Regional Enterprise,Other Services,60029363,CONWAY AECOM LTD,"5,349.17",01/09/2015
Commercial,Regional Enterprise,Other Services,60029378,CONWAY AECOM LTD,"18,564.49",01/09/2015
Commercial,Regional Enterprise,Other Services,60029383,CONWAY AECOM LTD,"10,043.43",01/09/2015
Commercial,Regional Enterprise,Other Services,60029386,CONWAY AECOM LTD,"10,946.39",01/09/2015
Commercial,Regional Enterprise,Other Services,60029410,CONWAY AECOM LTD,"11,450.81",01/09/2015
Commercial,Regional Enterprise,Other Services,60029911,CONWAY AECOM LTD,"22,000.00",15/09/2015
Commercial,Regional Enterprise,Other Services,60029914,CONWAY AECOM LTD,"21,386.38",03/09/2015
Commercial,Regional Enterprise,Other Services,60029935,CONWAY AECOM LTD,"49,942.88",03/09/2015
Commercial,Regional Enterprise,Other Services,60029937,CONWAY AECOM LTD,"20,000.00",15/09/2015
Commercial,Regional Enterprise,Other Services,60029939,CONWAY AECOM LTD,"25,352.60",03/09/2015
Commercial,Regional Enterprise,Other Services,60029947,CONWAY AECOM LTD,"1,082.22",03/09/2015
Commercial,Regional Enterprise,Other Services,60029973,CONWAY AECOM LTD,"2,204.16",03/09/2015
Commercial,Regional Enterprise,Other Services,60030924,CONWAY AECOM LTD,501.13,22/09/2015
Commercial,Regional Enterprise,Other Services,60030929,CONWAY AECOM LTD,944.23,23/09/2015
Commercial,Regional Enterprise,Other Services,60030931,CONWAY AECOM LTD,"3,457.10",18/09/2015
Commercial,Regional Enterprise,Other Services,60030937,CONWAY AECOM LTD,"2,394.85",22/09/2015
Commercial,Regional Enterprise,Other Services,60030939,CONWAY AECOM LTD,"20,959.73",22/09/2015
Commercial,Regional Enterprise,Other Services,60030942,CONWAY AECOM LTD,"2,437.05",11/09/2015
Commercial,Regional Enterprise,Other Services,60030945,CONWAY AECOM LTD,"3,433.21",18/09/2015
Commercial,Regional Enterprise,Other Services,60030947,CONWAY AECOM LTD,809.50,22/09/2015
Commercial,Regional Enterprise,Other Services,60030952,CONWAY AECOM LTD,797.58,22/09/2015
Commercial,Regional Enterprise,Other Services,60030958,CONWAY AECOM LTD,417.78,23/09/2015
Commercial,Regional Enterprise,Other Services,60030961,CONWAY AECOM LTD,"13,340.38",10/09/2015
Commercial,Regional Enterprise,Other Services,60030968,CONWAY AECOM LTD,379.80,22/09/2015
Commercial,Regional Enterprise,Other Services,60030982,CONWAY AECOM LTD,"2,738.42",10/09/2015
Commercial,Regional Enterprise,Other Services,60030983,CONWAY AECOM LTD,607.68,22/09/2015
Commercial,Regional Enterprise,Other Services,60030984,CONWAY AECOM LTD,"11,931.73",22/09/2015
Commercial,Regional Enterprise,Other Services,60030986,CONWAY AECOM LTD,607.68,22/09/2015
Commercial,Regional Enterprise,Other Services,60030987,CONWAY AECOM LTD,873.54,22/09/2015
Commercial,Regional Enterprise,Other Services,60030991,CONWAY AECOM LTD,996.98,22/09/2015
Commercial,Regional Enterprise,Other Services,60030995,CONWAY AECOM LTD,506.40,22/09/2015
Commercial,Regional Enterprise,Other Services,60030996,CONWAY AECOM LTD,"1,101.42",23/09/2015
Commercial,Regional Enterprise,Other Services,60030999,CONWAY AECOM LTD,"1,974.96",22/09/2015
Commercial,Regional Enterprise,Other Services,60031001,CONWAY AECOM LTD,291.82,23/09/2015
Commercial,Regional Enterprise,Other Services,60031010,CONWAY AECOM LTD,"25,330.41",22/09/2015
Commercial,Regional Enterprise,Other Services,60031025,CONWAY AECOM LTD,"1,519.20",22/09/2015
Commercial,Regional Enterprise,Other Services,60031032,CONWAY AECOM LTD,664.65,22/09/2015
Commercial,Regional Enterprise,Other Services,60031035,CONWAY AECOM LTD,506.40,22/09/2015
Commercial,Regional Enterprise,Other Services,60031051,CONWAY AECOM LTD,"1,318.75",22/09/2015
Commercial,Regional Enterprise,Other Services,60031052,CONWAY AECOM LTD,"14,853.33",22/09/2015
Commercial,Regional Enterprise,Other Services,60031053,CONWAY AECOM LTD,"14,185.33",22/09/2015
Commercial,Regional Enterprise,Other Services,60031054,CONWAY AECOM LTD,"1,410.00",22/09/2015
Commercial,Regional Enterprise,Other Services,60031070,CONWAY AECOM LTD,"1,215.36",23/09/2015
Commercial,Regional Enterprise,Other Services,60031088,CONWAY AECOM LTD,"23,500.00",22/09/2015
Commercial,Regional Enterprise,Other Services,60031094,CONWAY AECOM LTD,"3,933.55",18/09/2015
Commercial,Regional Enterprise,Other Services,60031113,CONWAY AECOM LTD,"10,838.45",22/09/2015
Commercial,Regional Enterprise,Other Services,60031117,CONWAY AECOM LTD,767.95,22/09/2015
Commercial,Regional Enterprise,Other Services,60031125,CONWAY AECOM LTD,"8,261.17",22/09/2015
Commercial,Regional Enterprise,Other Services,60031350,CONWAY AECOM LTD,"12,945.53",23/09/2015
Commercial,Regional Enterprise,Other Services,60031443,CONWAY AECOM LTD,"18,622.33",23/09/2015
Commercial,Regional Enterprise,Other Services,60031579,CONWAY AECOM LTD,"24,967.49",22/09/2015
Commercial,Regional Enterprise,Other Services,60031594,CONWAY AECOM LTD,"30,791.85",25/09/2015
Commercial,Regional Enterprise,Other Services,60031595,CONWAY AECOM LTD,"55,299.01",23/09/2015
Commercial,Regional Enterprise,Other Services,60031605,CONWAY AECOM LTD,"1,159.74",22/09/2015
Commercial,Regional Enterprise,Other Services,60031608,CONWAY AECOM LTD,"15,353.81",23/09/2015
Commercial,Regional Enterprise,Other Services,60031612,CONWAY AECOM LTD,"11,447.65",23/09/2015
Commercial,Regional Enterprise,Other Services,60031649,CONWAY AECOM LTD,"11,639.09",22/09/2015
Commercial,Regional Enterprise,Other Services,60031663,CONWAY AECOM LTD,"20,736.89",23/09/2015
Commercial,Regional Enterprise,Other Services,60031667,CONWAY AECOM LTD,"6,041.43",23/09/2015
Commercial,Regional Enterprise,Other Services,60031674,CONWAY AECOM LTD,"31,209.97",22/09/2015
Commercial,Regional Enterprise,Other Services,60031682,CONWAY AECOM LTD,"21,992.75",22/09/2015
Commercial,Regional Enterprise,Other Services,60031690,CONWAY AECOM LTD,"7,450.53",22/09/2015
Commercial,Regional Enterprise,Other Services,60031723,CONWAY AECOM LTD,"9,027.93",23/09/2015
Commercial,Regional Enterprise,Other Services,60031734,CONWAY AECOM LTD,"9,431.09",22/09/2015
Commercial,Regional Enterprise,Other Services,60031738,CONWAY AECOM LTD,"5,232.59",22/09/2015
Commercial,Regional Enterprise,Other Services,60028634,CYCLE EXPERIENCE LTD,188.00,29/09/2015
Commercial,Regional Enterprise,Other Services,60030951,TMP (UK) LTD,126.33,10/09/2015
Commercial,Regional Enterprise,Other Services,60031086,TMP (UK) LTD,46.33,10/09/2015
Commercial,Regional Enterprise,Other Services,60031444,TMP (UK) LTD,347.02,14/09/2015
Commercial,Regional Enterprise,Other Services,10012529,VOLKER HIGHWAYS CROWLEY LIMITED,"-26,619.33",18/09/2015
Commercial,Regional Enterprise,Other Services,10012673,VOLKER HIGHWAYS CROWLEY LIMITED,"101,666.18",18/09/2015
Commercial,Regional Enterprise,Other Services,10012674,VOLKER HIGHWAYS CROWLEY LIMITED,"35,186.66",18/09/2015
Commercial,Regional Enterprise,Other Services,60007540,VOLKER HIGHWAYS CROWLEY LIMITED,"26,619.33",18/09/2015
Commercial,Regional Enterprise,Professional Services,10012675,KPMG FEES ACCOUNT,"1,350.00",18/09/2015
Commercial,Regional Enterprise,Professional Services,10012637,RE (REGIONAL ENTERPRISE) LIMITED,"63,257.60",10/09/2015
Commercial,Regional Enterprise,Professional Services,10012671,RE (REGIONAL ENTERPRISE) LIMITED,"3,799,644.00",29/09/2015
Commercial,Regional Enterprise,Professional Services,10012687,RE (REGIONAL ENTERPRISE) LIMITED,"670,000.00",29/09/2015
Commercial,Regional Enterprise,RE Services Contract Payment,10012691,RE (REGIONAL ENTERPRISE) LIMITED,"2,652,000.00",29/09/2015
Commercial,Regional Enterprise,RE Services Contract Payment,10012692,RE (REGIONAL ENTERPRISE) LIMITED,"1,128,350.73",29/09/2015
Commissioning,Commissioning,Building Repairs & Maintenance,60031272,AGE UK,170.00,16/09/2015
Commissioning,Commissioning,Building Repairs & Maintenance,60032781,BELLHOUSE PROPERTY SERVICES LTD,"3,768.00",30/09/2015
Commissioning,Commissioning,Building Repairs & Maintenance,60030902,LETTERBOX DISTRIBUTION.COM,897.51,11/09/2015
Commissioning,Commissioning,Building Repairs & Maintenance,60028537,OAKRAY LIMITED,80.00,08/09/2015
Commissioning,Commissioning,Building Repairs & Maintenance,60028548,OAKRAY LIMITED,135.00,07/09/2015
Commissioning,Commissioning,Building Repairs & Maintenance,60030946,OAKRAY LIMITED,72.00,28/09/2015
Commissioning,Commissioning,Building Repairs & Maintenance,60031007,OAKRAY LIMITED,72.00,28/09/2015
Commissioning,Commissioning,Building Repairs & Maintenance,60031020,OAKRAY LIMITED,96.00,28/09/2015
Commissioning,Commissioning,Building Repairs & Maintenance,60031024,OAKRAY LIMITED,64.00,28/09/2015
Commissioning,Commissioning,Building Repairs & Maintenance,60031041,OAKRAY LIMITED,64.00,28/09/2015
Commissioning,Commissioning,Building Repairs & Maintenance,60031084,OAKRAY LIMITED,64.00,28/09/2015
Commissioning,Commissioning,Building Repairs & Maintenance,60031127,OAKRAY LIMITED,600.00,28/09/2015
Commissioning,Commissioning,Capital Construction and Works,60031118,OAKRAY LIMITED,"29,218.85",28/09/2015
Commissioning,Commissioning,Consultants Fees,60031038,BARNET & DISTRICT ATHLETIC CLUB,25.00,16/09/2015
Commissioning,Commissioning,Consultants Fees,60031863,COPPER CONSULTING LTD,"6,559.23",21/09/2015
Commissioning,Commissioning,Consultants Fees,60031959,COPPER CONSULTING LTD,"11,500.72",21/09/2015
Commissioning,Commissioning,Consultants Fees,10012663,QUALITY FIELDWORK & RESEARCH,"3,670.20",24/09/2015
Commissioning,Commissioning,Discretionary awards,20023380,CRICKLEWOOD IMPROVEMENT PROGRAMME,"4,000.40",09/09/2015
Commissioning,Commissioning,Discretionary awards,20023379,EAST FINCHLEY COMMUNITY TRUST,"1,125.00",09/09/2015
Commissioning,Commissioning,Employee Expenses,10012639,GATENBY SANDERSON,"8,000.00",28/09/2015
Commissioning,Commissioning,Employee Expenses,10012640,GATENBY SANDERSON,"8,000.00",28/09/2015
Commissioning,Commissioning,Employee Expenses,60024312,QUALITY FIELDWORK & RESEARCH,714.93,29/09/2015
Commissioning,Commissioning,Employee Expenses,60030386,TMP (UK) LTD,"1,530.00",01/09/2015
Commissioning,Commissioning,Equipment and Materials Purcha,10012646,OCS GROUP UK LIMITED,"46,304.00",11/09/2015
Commissioning,Commissioning,Equipment and Materials Purcha,10012697,OCS GROUP UK LIMITED,"46,304.00",28/09/2015
Commissioning,Commissioning,Equipment and Materials Purcha,60029805,S W BRUCE & CO LTD,"7,280.00",04/09/2015
Commissioning,Commissioning,Equipment and Materials Purcha,60029842,S W BRUCE & CO LTD,"22,464.00",04/09/2015
Commissioning,Commissioning,Equipment and Materials Purcha,60030010,S W BRUCE & CO LTD,"120,000.00",04/09/2015
Commissioning,Commissioning,Equipment and Materials Purcha,10012612,SHAYLOR GROUP PLC,"509,805.22",01/09/2015
Commissioning,Commissioning,Furniture-Purchase-Repair,60030680,SENATOR INTERNATIONAL,"118,911.02",25/09/2015
Commissioning,Commissioning,Furniture-Purchase-Repair,60030412,UNIQUE OFFICE SOLUTIONS LTD,261.80,17/09/2015
Commissioning,Commissioning,General Office Expenses,40001023,OFFICE DEPOT UK LTD,2.31,09/09/2015
Commissioning,Commissioning,Grant Payments,60028552,COMMUNITY BARNET,"15,000.00",02/09/2015
Commissioning,Commissioning,Grant Payments,20023427,EAST FINCHLEY ARTS FESTIVAL,"1,100.00",11/09/2015
Commissioning,Commissioning,Grant Payments,20023384,LOVE BURNT OAK COMMUNITY RESOURCE & SUPP,"5,000.00",10/09/2015
Commissioning,Commissioning,Grant Payments,20023785,SAAM THEATRE COMPANY,"1,620.00",24/09/2015
Commissioning,Commissioning,Hardware Purchases,10012665,INSIGHT DIRECT (UK) LTD,"1,390.00",18/09/2015
Commissioning,Commissioning,Hardware Purchases,10012666,INSIGHT DIRECT (UK) LTD,979.15,25/09/2015
Commissioning,Commissioning,Hardware Purchases,10012667,INSIGHT DIRECT (UK) LTD,385.00,28/09/2015
Commissioning,Commissioning,Hardware Purchases,10012668,INSIGHT DIRECT (UK) LTD,"1,908.30",24/09/2015
Commissioning,Commissioning,Hardware Purchases,10012669,INSIGHT DIRECT (UK) LTD,135.98,29/09/2015
Commissioning,Commissioning,Legal and Court Fees,20023896,CLAER LLOYD-JONES & ASSOCIATES LTD,"7,500.00",30/09/2015
Commissioning,Commissioning,Miscellaneous Expenses,10012682,LETTERBOX DISTRIBUTION.COM,310.00,24/09/2015
Commissioning,Commissioning,Miscellaneous Expenses,10012683,LETTERBOX DISTRIBUTION.COM,278.07,24/09/2015
Commissioning,Commissioning,Other Agencies - Third Party P,20023267,FAMILY FUND TRADING LTD,"50,000.00",07/09/2015
Commissioning,Commissioning,Other Services,60030912,BLUE 9 SECURITY LIMITED,500.00,10/09/2015
Commissioning,Commissioning,Other Services,60031189,BLUE 9 SECURITY LIMITED,"3,103.00",10/09/2015
Commissioning,Commissioning,Other Services,60030725,MIDDLESEX UNIVERSITY,"4,102.00",07/09/2015
Commissioning,Commissioning,Other Services,60030818,MIDDLESEX UNIVERSITY,"3,045.00",15/09/2015
Commissioning,Commissioning,Other Services,20023260,REDACTED - PERSONAL DATA,4.32,29/09/2015
Commissioning,Commissioning,Other Services,20023525,REDACTED - PERSONAL DATA,37.50,14/09/2015
Commissioning,Commissioning,Other Services,60027996,REDACTED - PERSONAL DATA,100.00,09/09/2015
Commissioning,Commissioning,Other Services,60031455,VICTIM SUPPORT SERVICES,"5,587.50",16/09/2015
Commissioning,Commissioning,Professional Services,10012660,GENERAL DYNAMICS INFORMATION TECHNOLOGY,"5,878.96",18/09/2015
Commissioning,Commissioning,Professional Services,10012662,GENERAL DYNAMICS INFORMATION TECHNOLOGY,"5,141.90",15/09/2015
Commissioning,Commissioning,Professional Services,60031584,GOLDSMITH CONSULTING & MEDIATION LTD,"2,340.00",18/09/2015
Commissioning,Commissioning,Professional Services,60031601,GOLDSMITH CONSULTING & MEDIATION LTD,550.00,18/09/2015
Commissioning,Commissioning,Professional Services,60031603,GOLDSMITH CONSULTING & MEDIATION LTD,150.00,18/09/2015
Commissioning,Commissioning,Professional Services,20023189,JEREMY LEAF & CO,"2,000.00",01/09/2015
Commissioning,Commissioning,Professional Services,60028311,LOCAL PARTNERSHIPS LLP,"9,000.00",29/09/2015
Commissioning,Commissioning,Rubbish Collection,10012701,ANTHESIS (UK) LTD,"2,790.00",29/09/2015
Commissioning,Commissioning,Rubbish Collection,60030561,ANTHESIS (UK) LTD,"3,530.00",29/09/2015
Commissioning,Commissioning,Subscriptions,60031524,CAPITA CONFERENCES,350.00,17/09/2015
Commissioning,Commissioning,Subscriptions,10012716,OFCOM,700.00,30/09/2015
Commissioning,Commissioning,Training,60029425,PREMIER PEOPLE SOLUTIONS LTD,89.00,08/09/2015
Commissioning,Commissioning,Training,60031488,WESTMINSTER EDUCATION FORUM,210.00,15/09/2015
Commissioning,Commissioning,Transport Hire Charges,20023558,INTERNATIONAL GOSPEL CHURCH,75.00,16/09/2015
Commissioning,Commissioning,Ttl IT & Comms,60030869,BRITISH TELECOM PLC,96.50,23/09/2015
Commissioning,Commissioning,Venue Hire,60030403,ARIANA BANQUETING HALL,"1,295.00",22/09/2015
Corporate Accounting,Corporate Accounting,Other Agencies - Third Party P,60030767,THE BARNETGROUP LIMITED,"3,634,000.00",08/09/2015
Corporate Accounting,Corporate Accounting,Other Agencies - Third Party P,60031743,THE BARNETGROUP LIMITED,"3,757,734.50",24/09/2015
Corporate Accounting,Corporate Accounting,Other Establishments - Third P,30094234,BROADFIELDS ACADEMY,"1,486.28",30/09/2015
Corporate Accounting,Corporate Accounting,Other Establishments - Third P,30094267,BROADFIELDS ACADEMY,"10,202.22",30/09/2015
Corporate Accounting,Corporate Accounting,Other Establishments - Third P,30094300,BROADFIELDS ACADEMY,"3,853.74",30/09/2015
Corporate Accounting,Corporate Accounting,Other Establishments - Third P,30094236,COPTHALL SCHOOL (ACADEMY),"1,891.08",30/09/2015
Corporate Accounting,Corporate Accounting,Other Establishments - Third P,30094270,COPTHALL SCHOOL (ACADEMY),"11,371.32",30/09/2015
Corporate Accounting,Corporate Accounting,Other Establishments - Third P,30094304,COPTHALL SCHOOL (ACADEMY),"1,216.60",30/09/2015
Corporate Accounting,Corporate Accounting,Other Establishments - Third P,30094268,GRASVENOR AVENUE INFANT SCHOOL (ACA,"5,643.00",30/09/2015
Corporate Accounting,Corporate Accounting,Other Establishments - Third P,30094301,GRASVENOR AVENUE INFANT SCHOOL (ACA,"1,600.00",30/09/2015
Corporate Accounting,Corporate Accounting,Other Establishments - Third P,30094237,QUEEN ELIZABETH'S GIRLS ACADEMY,"2,280.00",30/09/2015
Corporate Accounting,Corporate Accounting,Other Local Authorities - Thir,EBX0077333,GREATER LONDON AUTHORITY,"4,004,237.40",02/09/2015
Corporate Accounting,Corporate Accounting,Other Local Authorities - Thir,EBX0078540,GREATER LONDON AUTHORITY,"1,642,337.00",11/09/2015
Corporate Accounting,Corporate Accounting,Other Local Authorities - Thir,EBX0079524,GREATER LONDON AUTHORITY,"233,647.00",22/09/2015
Corporate Accounting,Corporate Accounting,Other Transfer Payments to Soc,60026475,CITIBANK NA LONDON,173.70,07/09/2015
Corporate Accounting,Corporate Accounting,Other Transfer Payments to Soc,60030100,CITIBANK NA LONDON,740.00,01/09/2015
Corporate Accounting,Corporate Accounting,Other Transfer Payments to Soc,60030111,CITIBANK NA LONDON,250.00,01/09/2015
Corporate Accounting,Corporate Accounting,Other Transfer Payments to Soc,60030112,CITIBANK NA LONDON,78.10,01/09/2015
Corporate Accounting,Corporate Accounting,Other Transfer Payments to Soc,60030141,CITIBANK NA LONDON,979.44,01/09/2015
Corporate Accounting,Corporate Accounting,Other Transfer Payments to Soc,60030147,CITIBANK NA LONDON,"1,098.70",01/09/2015
Corporate Accounting,Corporate Accounting,Other Transfer Payments to Soc,60030151,CITIBANK NA LONDON,100.00,01/09/2015
Corporate Accounting,Corporate Accounting,Other Transfer Payments to Soc,60030156,CITIBANK NA LONDON,500.00,01/09/2015
Corporate Accounting,Corporate Accounting,Other Transfer Payments to Soc,60030161,CITIBANK NA LONDON,115.80,01/09/2015
Corporate Accounting,Corporate Accounting,Other Transfer Payments to Soc,60030181,CITIBANK NA LONDON,157.90,01/09/2015
Corporate Accounting,Corporate Accounting,Other Transfer Payments to Soc,60030189,CITIBANK NA LONDON,"2,058.87",24/09/2015
Corporate Accounting,Corporate Accounting,Other Transfer Payments to Soc,60030332,CITIBANK NA LONDON,232.12,02/09/2015
Corporate Accounting,Corporate Accounting,Other Transfer Payments to Soc,60030348,CITIBANK NA LONDON,183.94,24/09/2015
Corporate Accounting,Corporate Accounting,Other Transfer Payments to Soc,60030365,CITIBANK NA LONDON,200.00,24/09/2015
Corporate Accounting,Corporate Accounting,Other Transfer Payments to Soc,60030378,CITIBANK NA LONDON,331.60,24/09/2015
Corporate Accounting,Corporate Accounting,Other Transfer Payments to Soc,60030384,CITIBANK NA LONDON,501.36,02/09/2015
Corporate Accounting,Corporate Accounting,Other Transfer Payments to Soc,60030415,CITIBANK NA LONDON,330.84,02/09/2015
Corporate Accounting,Corporate Accounting,Other Transfer Payments to Soc,60030418,CITIBANK NA LONDON,"1,490.00",02/09/2015
Corporate Accounting,Corporate Accounting,Other Transfer Payments to Soc,60030420,CITIBANK NA LONDON,373.70,02/09/2015
Corporate Accounting,Corporate Accounting,Other Transfer Payments to Soc,60030463,CITIBANK NA LONDON,314.50,15/09/2015
Corporate Accounting,Corporate Accounting,Other Transfer Payments to Soc,60030482,CITIBANK NA LONDON,58.50,15/09/2015
Corporate Accounting,Corporate Accounting,Other Transfer Payments to Soc,60030943,CITIBANK NA LONDON,"2,217.73",10/09/2015
Corporate Accounting,Corporate Accounting,Other Transfer Payments to Soc,60030948,CITIBANK NA LONDON,"3,107.07",10/09/2015
Corporate Accounting,Corporate Accounting,Other Transfer Payments to Soc,60030953,CITIBANK NA LONDON,794.40,10/09/2015
Corporate Accounting,Corporate Accounting,Other Transfer Payments to Soc,60031012,CITIBANK NA LONDON,746.12,10/09/2015
Corporate Accounting,Corporate Accounting,Other Transfer Payments to Soc,60031049,CITIBANK NA LONDON,79.40,10/09/2015
Corporate Accounting,Corporate Accounting,Other Transfer Payments to Soc,60031096,CITIBANK NA LONDON,"1,680.00",10/09/2015
Corporate Accounting,Corporate Accounting,Other Transfer Payments to Soc,60031751,CITIBANK NA LONDON,651.79,24/09/2015
Corporate Accounting,Corporate Accounting,Other Transfer Payments to Soc,60031767,CITIBANK NA LONDON,50.00,24/09/2015
Corporate Accounting,Corporate Accounting,Other Transfer Payments to Soc,60031820,CITIBANK NA LONDON,968.00,24/09/2015
Corporate Accounting,Corporate Accounting,Other Transfer Payments to Soc,60031823,CITIBANK NA LONDON,197.40,24/09/2015
Corporate Accounting,Corporate Accounting,Other Transfer Payments to Soc,60032223,CITIBANK NA LONDON,87.90,29/09/2015
Corporate Accounting,Corporate Accounting,Other Transfer Payments to Soc,60032227,CITIBANK NA LONDON,106.02,29/09/2015
Corporate Accounting,Corporate Accounting,Other Transfer Payments to Soc,60032251,CITIBANK NA LONDON,578.50,29/09/2015
Corporate Accounting,Corporate Accounting,Other Transfer Payments to Soc,60032255,CITIBANK NA LONDON,233.34,29/09/2015
Corporate Accounting,Corporate Accounting,Other Transfer Payments to Soc,60032321,CITIBANK NA LONDON,8.00,29/09/2015
Corporate Accounting,Corporate Accounting,Other Transfer Payments to Soc,60032486,CITIBANK NA LONDON,"2,020.29",29/09/2015
Corporate Accounting,Corporate Accounting,Other Transfer Payments to Soc,60032508,CITIBANK NA LONDON,57.90,29/09/2015
Corporate Accounting,Corporate Accounting,Other Transfer Payments to Soc,60032524,CITIBANK NA LONDON,"2,797.06",29/09/2015
Corporate Accounting,Corporate Accounting,Other Transfer Payments to Soc,60032564,CITIBANK NA LONDON,"2,669.04",29/09/2015
Corporate Accounting,Corporate Accounting,Other Transfer Payments to Soc,60032585,CITIBANK NA LONDON,100.00,29/09/2015
Corporate Accounting,Corporate Accounting,Other Transfer Payments to Soc,60032597,CITIBANK NA LONDON,180.00,29/09/2015
Corporate Accounting,Corporate Accounting,Professional Services,10012648,LONDON BUSES SERVICES LIMITED,"82,677.00",18/09/2015
Delivery Units,Adults and Communities,Cleaning and domestic material,40001036,OFFICE DEPOT UK LTD,83.88,18/09/2015
Delivery Units,Adults and Communities,Consultants Fees,60026952,SHARED INTELLIGENCE LTD,"2,550.00",28/09/2015
Delivery Units,Adults and Communities,Consultants Fees,60032120,THE READER ORGANISATION,"3,750.00",22/09/2015
Delivery Units,Adults and Communities,Consultants Fees,60031324,VOICEABILITY,"1,504.00",16/09/2015
Delivery Units,Adults and Communities,Consultants Fees,60029861,WILLIAM STURGES & CO,"5,777.35",01/09/2015
Delivery Units,Adults and Communities,Electricity,10012034,KENT COUNTY COUNCIL (KCS),425.10,15/09/2015
Delivery Units,Adults and Communities,Employee Expenses,60030205,BARNET ENFIELD & HARINGEY MENTAL,"51,174.00",02/09/2015
Delivery Units,Adults and Communities,Employee Expenses,60030230,BARNET ENFIELD & HARINGEY MENTAL,"51,174.00",01/09/2015
Delivery Units,Adults and Communities,Employee Expenses,60030248,BARNET ENFIELD & HARINGEY MENTAL,"51,174.00",01/09/2015
Delivery Units,Adults and Communities,Employee Expenses,60030258,BARNET ENFIELD & HARINGEY MENTAL,"102,348.00",01/09/2015
Delivery Units,Adults and Communities,Employee Expenses,60031641,CENTRAL LONDONCOMMUNITY HEALTHCARE,"88,097.00",17/09/2015
Delivery Units,Adults and Communities,Equipment and Materials Purcha,60030500,BACK CARE SOLUTIONS LIMITED,237.45,28/09/2015
Delivery Units,Adults and Communities,Equipment and Materials Purcha,60029373,MEDEQUIP ASSISTIVE TECHNOLOGY LTD,"171,113.25",30/09/2015
Delivery Units,Adults and Communities,Equipment and Materials Purcha,60032104,PICKLES CHEMIST,214.04,28/09/2015
Delivery Units,Adults and Communities,Food Costs,60029694,DAIRY CREST LIMITED,2.88,03/09/2015
Delivery Units,Adults and Communities,Food Costs,60030735,DAIRY CREST LIMITED,2.88,18/09/2015
Delivery Units,Adults and Communities,Food Costs,60030828,DAIRY CREST LIMITED,2.88,15/09/2015
Delivery Units,Adults and Communities,Food Costs,60031699,DAIRY CREST LIMITED,2.88,25/09/2015
Delivery Units,Adults and Communities,Gas,60024768,BRITISH GAS BUSINESS,104.54,15/09/2015
Delivery Units,Adults and Communities,Gas,60029622,BRITISH GAS BUSINESS,92.34,15/09/2015
Delivery Units,Adults and Communities,Gas,60030284,KENT COUNTY COUNCIL (KCS),111.55,02/09/2015
Delivery Units,Adults and Communities,Government Grants,60023436,ACADEMIA LTD,"6,651.68",07/09/2015
Delivery Units,Adults and Communities,Government Grants,60030088,ACADEMIA LTD,"1,185.00",18/09/2015
Delivery Units,Adults and Communities,Grounds maintenance,60030560,REDACTED - PERSONAL DATA,220.00,03/09/2015
Delivery Units,Adults and Communities,Health authorities - Third Par,60031782,NHS BARNET CCG,"22,695.30",28/09/2015
Delivery Units,Adults and Communities,Other Agencies - Third Party P,30090641,ABBEY RAVENSCROFT PARK NURSING HOME,"2,570.70",03/09/2015
Delivery Units,Adults and Communities,Other Agencies - Third Party P,30090642,ABBEY RAVENSCROFT PARK NURSING HOME,"2,570.70",03/09/2015
Delivery Units,Adults and Communities,Other Agencies - Third Party P,30090643,ABBEY RAVENSCROFT PARK NURSING HOME,"2,657.14",03/09/2015
Delivery Units,Adults and Communities,Other Agencies - Third Party P,30090644,ABBEY RAVENSCROFT PARK NURSING HOME,"2,318.93",03/09/2015
Delivery Units,Adults and Communities,Other Agencies - Third Party P,30090645,ABBEY RAVENSCROFT PARK NURSING HOME,-559.33,03/09/2015
Delivery Units,Adults and Communities,Other Agencies - Third Party P,30090646,ABBEY RAVENSCROFT PARK NURSING HOME,"2,657.14",03/09/2015
Delivery Units,Adults and Communities,Other Agencies - Third Party P,30090647,ABBEY RAVENSCROFT PARK NURSING HOME,"2,318.93",03/09/2015
Delivery Units,Adults and Communities,Other Agencies - Third Party P,30090648,ABBEY RAVENSCROFT PARK NURSING HOME,"2,570.70",03/09/2015
Delivery Units,Adults and Communities,Other Agencies - Third Party P,30090649,ABBEY RAVENSCROFT PARK NURSING HOME,"2,570.70",03/09/2015
Delivery Units,Adults and Communities,Other Agencies - Third Party P,30090650,ABBEY RAVENSCROFT PARK NURSING HOME,"2,570.70",03/09/2015
Delivery Units,Adults and Communities,Other Agencies - Third Party P,30090651,ABBEY RAVENSCROFT PARK NURSING HOME,"2,570.70",03/09/2015
Delivery Units,Adults and Communities,Other Agencies - Third Party P,30090652,ABBEY RAVENSCROFT PARK NURSING HOME,"2,570.70",03/09/2015
Delivery Units,Adults and Communities,Other Agencies - Third Party P,30090653,ABBEY RAVENSCROFT PARK NURSING HOME,"3,100.00",03/09/2015
Delivery Units,Adults and Communities,Other Agencies - Third Party P,30091420,ABBEY RAVENSCROFT PARK NURSING HOME,"3,000.00",10/09/2015
Delivery Units,Adults and Communities,Other Agencies - Third Party P,30092203,ABBEY RAVENSCROFT PARK NURSING HOME,"1,092.02",24/09/2015
Delivery Units,Adults and Communities,Other Agencies - Third Party P,30092204,ABBEY RAVENSCROFT PARK NURSING HOME,"1,092.02",24/09/2015
Delivery Units,Adults and Communities,Other Agencies - Third Party P,30090962,ABOUT ME CARE & SUPPORT LTD,"1,365.84",04/09/2015
Delivery Units,Adults and Communities,Other Agencies - Third Party P,30090963,ABOUT ME CARE & SUPPORT LTD,"1,365.84",04/09/2015
Delivery Units,Adults and Communities,Other Agencies - Third Party P,30093954,ACCEDO CARE LTD,"5,600.00",28/09/2015
Delivery Units,Adults and Communities,Other Agencies - Third Party P,30093955,ACCEDO CARE LTD,"5,600.00",28/09/2015
Delivery Units,Adults and Communities,Other Agencies - Third Party P,30091120,ADVANTAGE HEALTHCARE GROUP LTD,"1,754.00",09/09/2015
Delivery Units,Adults and Communities,Other Agencies - Third Party P,30090551,AGUDAS ISRAEL HOUSING ASSCTN LTD,"1,638.03",07/09/2015
Delivery Units,Adults and Communities,Other Agencies - Third Party P,30091363,AGUDAS ISRAEL HOUSING ASSCTN LTD,"3,321.43",14/09/2015
Delivery Units,Adults and Communities,Other Agencies - Third Party P,30091364,AGUDAS ISRAEL HOUSING ASSCTN LTD,-559.33,14/09/2015
Delivery Units,Adults and Communities,Other Agencies - Third Party P,30091365,AGUDAS ISRAEL HOUSING ASSCTN LTD,"3,154.25",14/09/2015
Delivery Units,Adults and Communities,Other Agencies - Third Party P,30091366,AGUDAS ISRAEL HOUSING ASSCTN LTD,"4,207.14",14/09/2015
Delivery Units,Adults and Communities,Other Agencies - Third Party P,30091367,AGUDAS ISRAEL HOUSING ASSCTN LTD,"2,527.83",14/09/2015
Delivery Units,Adults and Communities,Other Agencies - Third Party P,30091865,AGUDAS ISRAEL HOUSING ASSCTN LTD,"1,600.20",18/09/2015
Delivery Units,Adults and Communities,Other Agencies - Third Party P,30090529,ALL ABOUT CARE,"2,023.17",03/09/2015
Delivery Units,Adults and Communities,Other Agencies - Third Party P,30090530,ALL ABOUT CARE,-356.28,03/09/2015
Delivery Units,Adults and Communities,Other Agencies - Third Party P,30091338,ALWYCK HOUSING GROUP,"1,429.94",10/09/2015
Delivery Units,Adults and Communities,Other Agencies - Third Party P,30091339,ALWYCK HOUSING GROUP,500.48,10/09/2015
Delivery Units,Adults and Communities,Other Agencies - Third Party P,30092193,ANASTASIA LODGE,"3,000.00",24/09/2015
Delivery Units,Adults and Communities,Other Agencies - Third Party P,30091703,ANCHOR TRUST,"2,232.64",11/09/2015
Delivery Units,Adults and Communities,Other Agencies - Third Party P,30090796,APEX CARE HOME LTD,"4,133.01",03/09/2015
Delivery Units,Adults and Communities,Other Agencies - Third Party P,30090797,APEX CARE HOME LTD,-356.28,03/09/2015
Delivery Units,Adults and Communities,Other Agencies - Third Party P,30094039,ARBOURS ASSOCIATION LTD,"1,109.46",28/09/2015
Delivery Units,Adults and Communities,Other Agencies - Third Party P,30090944,AREA 51 EDUCATION LTD,"1,580.00",04/09/2015
Delivery Units,Adults and Communities,Other Agencies - Third Party P,30090945,AREA 51 EDUCATION LTD,"1,580.00",04/09/2015
Delivery Units,Adults and Communities,Other Agencies - Third Party P,30090946,AREA 51 EDUCATION LTD,948.00,04/09/2015
Delivery Units,Adults and Communities,Other Agencies - Third Party P,30090947,AREA 51 EDUCATION LTD,948.00,04/09/2015
Delivery Units,Adults and Communities,Other Agencies - Third Party P,30090948,AREA 51 EDUCATION LTD,632.00,04/09/2015
Delivery Units,Adults and Communities,Other Agencies - Third Party P,30090949,AREA 51 EDUCATION LTD,632.00,04/09/2015
Delivery Units,Adults and Communities,Other Agencies - Third Party P,30090684,ASHFIELDS RESIDENTIAL CARE HOME,"2,216.41",25/09/2015
Delivery Units,Adults and Communities,Other Agencies - Third Party P,30090516,ASHGALE HOUSE,"4,729.98",03/09/2015
Delivery Units,Adults and Communities,Other Agencies - Third Party P,30090517,ASHGALE HOUSE,-405.48,03/09/2015
Delivery Units,Adults and Communities,Other Agencies - Third Party P,30090696,ASHTON LODGE CARE CENTRE,"2,489.74",03/09/2015
Delivery Units,Adults and Communities,Other Agencies - Third Party P,30090697,ASHTON LODGE CARE CENTRE,-356.28,03/09/2015
Delivery Units,Adults and Communities,Other Agencies - Third Party P,30090709,ASHTON LODGE CARE CENTRE,"2,318.93",03/09/2015
Delivery Units,Adults and Communities,Other Agencies - Third Party P,30090724,ASHTON LODGE CARE CENTRE,"2,418.04",03/09/2015
Delivery Units,Adults and Communities,Other Agencies - Third Party P,30090825,ASHTON LODGE CARE CENTRE,"2,318.93",03/09/2015
Delivery Units,Adults and Communities,Other Agencies - Third Party P,30091715,ASHTON LODGE CARE CENTRE,"2,570.70",11/09/2015
Delivery Units,Adults and Communities,Other Agencies - Third Party P,30091716,ASHTON LODGE CARE CENTRE,"2,367.07",11/09/2015
Delivery Units,Adults and Communities,Other Agencies - Third Party P,30091719,ASHTON LODGE CARE CENTRE,"2,570.70",11/09/2015
Delivery Units,Adults and Communities,Other Agencies - Third Party P,30091720,ASHTON LODGE CARE CENTRE,"2,418.04",11/09/2015
Delivery Units,Adults and Communities,Other Agencies - Third Party P,30091738,ASHTON LODGE CARE CENTRE,"2,320.53",11/09/2015
Delivery Units,Adults and Communities,Other Agencies - Third Party P,30091745,ASHTON LODGE CARE CENTRE,"2,657.14",11/09/2015
Delivery Units,Adults and Communities,Other Agencies - Third Party P,30091752,ASHTON LODGE CARE CENTRE,"2,320.52",11/09/2015
Delivery Units,Adults and Communities,Other Agencies - Third Party P,30091753,ASHTON LODGE CARE CENTRE,-587.49,11/09/2015
Delivery Units,Adults and Communities,Other Agencies - Third Party P,30091777,ASHTON LODGE CARE CENTRE,"2,418.04",11/09/2015
Delivery Units,Adults and Communities,Other Agencies - Third Party P,30091783,ASHTON LODGE CARE CENTRE,"2,418.04",11/09/2015
Delivery Units,Adults and Communities,Other Agencies - Third Party P,30091784,ASHTON LODGE CARE CENTRE,"2,570.70",11/09/2015
Delivery Units,Adults and Communities,Other Agencies - Third Party P,30092214,ASPEN VILLAGES LTD,"2,487.77",24/09/2015
Delivery Units,Adults and Communities,Other Agencies - Third Party P,30094066,ASPEN VILLAGES LTD,"2,144.91",28/09/2015
Delivery Units,Adults and Communities,Other Agencies - Third Party P,30094067,ASPEN VILLAGES LTD,"3,214.29",28/09/2015
Delivery Units,Adults and Communities,Other Agencies - Third Party P,30094068,ASPEN VILLAGES LTD,"4,714.29",28/09/2015
Delivery Units,Adults and Communities,Other Agencies - Third Party P,30094069,ASPEN VILLAGES LTD,"3,642.86",28/09/2015
Delivery Units,Adults and Communities,Other Agencies - Third Party P,30091371,AUTUMN GARDENS,"1,501.50",10/09/2015
Delivery Units,Adults and Communities,Other Agencies - Third Party P,30091810,AUTUMN GARDENS,"2,184.04",14/09/2015
Delivery Units,Adults and Communities,Other Agencies - Third Party P,30091811,AUTUMN GARDENS,"2,800.00",14/09/2015
Delivery Units,Adults and Communities,Other Agencies - Third Party P,30091812,AUTUMN GARDENS,"2,880.00",14/09/2015
Delivery Units,Adults and Communities,Other Agencies - Third Party P,30092406,AUTUMN GARDENS,"3,857.14",24/09/2015
Delivery Units,Adults and Communities,Other Agencies - Third Party P,30090703,B & M CARE,"2,216.41",03/09/2015
Delivery Units,Adults and Communities,Other Agencies - Third Party P,30090704,B & M CARE,"2,418.00",03/09/2015
Delivery Units,Adults and Communities,Other Agencies - Third Party P,30090705,B & M CARE,-575.14,03/09/2015
Delivery Units,Adults and Communities,Other Agencies - Third Party P,30090706,B & M CARE,"2,418.04",03/09/2015
Delivery Units,Adults and Communities,Other Agencies - Third Party P,30090707,B & M CARE,"2,418.04",03/09/2015
Delivery Units,Adults and Communities,Other Agencies - Third Party P,30093927,B & M CARE,"1,092.02",28/09/2015
Delivery Units,Adults and Communities,Other Agencies - Third Party P,30093928,B & M CARE,"1,000.96",28/09/2015
Delivery Units,Adults and Communities,Other Agencies - Third Party P,30092928,BAYTREE COMMUNITY CARE (LONDON) LTD,734.40,25/09/2015
Delivery Units,Adults and Communities,Other Agencies - Third Party P,30092929,BAYTREE COMMUNITY CARE (LONDON) LTD,"1,280.00",25/09/2015
Delivery Units,Adults and Communities,Other Agencies - Third Party P,30090567,BENSLOW MANAGEMENT COMPANY LIMITED,"2,418.04",03/09/2015
Delivery Units,Adults and Communities,Other Agencies - Third Party P,30090674,BIRCHWOOD GRANGE CARE HOME,"2,657.14",03/09/2015
Delivery Units,Adults and Communities,Other Agencies - Third Party P,30090518,BRADBURY HOUSE ORGANISATION,"3,460.71",03/09/2015
Delivery Units,Adults and Communities,Other Agencies - Third Party P,30090519,BRADBURY HOUSE ORGANISATION,-356.28,03/09/2015
Delivery Units,Adults and Communities,Other Agencies - Third Party P,30091002,BROADREACH HOUSE,"2,978.57",07/09/2015
Delivery Units,Adults and Communities,Other Agencies - Third Party P,30091003,BROADREACH HOUSE,"2,184.29",07/09/2015
Delivery Units,Adults and Communities,Other Agencies - Third Party P,30091004,BROADREACH HOUSE,-297.84,07/09/2015
Delivery Units,Adults and Communities,Other Agencies - Third Party P,30091949,BROOKDALE HEALTHCARE,"3,759.36",15/09/2015
Delivery Units,Adults and Communities,Other Agencies - Third Party P,30092184,BROOKDALE HEALTHCARE,"3,759.36",24/09/2015
Delivery Units,Adults and Communities,Other Agencies - Third Party P,30092273,BROOKDALE HEALTHCARE,"9,672.90",24/09/2015
Delivery Units,Adults and Communities,Other Agencies - Third Party P,30092274,BROOKDALE HEALTHCARE,"9,995.33",24/09/2015
Delivery Units,Adults and Communities,Other Agencies - Third Party P,30092275,BROOKDALE HEALTHCARE,"9,672.90",24/09/2015
Delivery Units,Adults and Communities,Other Agencies - Third Party P,30092276,BROOKDALE HEALTHCARE,"9,995.33",24/09/2015
Delivery Units,Adults and Communities,Other Agencies - Third Party P,30092277,BROOKDALE HEALTHCARE,"9,995.33",24/09/2015
Delivery Units,Adults and Communities,Other Agencies - Third Party P,30093466,BROOKDALE HEALTHCARE,"9,672.90",28/09/2015
Delivery Units,Adults and Communities,Other Agencies - Third Party P,30089885,BRUNSWICK SUPPORTED LIVING SERVICES,"1,412.68",02/09/2015
Delivery Units,Adults and Communities,Other Agencies - Third Party P,30089886,BRUNSWICK SUPPORTED LIVING SERVICES,"1,942.84",02/09/2015
Delivery Units,Adults and Communities,Other Agencies - Third Party P,30089899,BRUNSWICK SUPPORTED LIVING SERVICES,"2,153.92",02/09/2015
Delivery Units,Adults and Communities,Other Agencies - Third Party P,30091736,BRUNSWICK SUPPORTED LIVING SERVICES,802.40,17/09/2015
Delivery Units,Adults and Communities,Other Agencies - Third Party P,30090822,BUPA CARE HOMES,"2,314.02",04/09/2015
Delivery Units,Adults and Communities,Other Agencies - Third Party P,30090823,BUPA CARE HOMES,"2,314.02",04/09/2015
Delivery Units,Adults and Communities,Other Agencies - Third Party P,30090829,BUPA CARE HOMES,"4,842.64",04/09/2015
Delivery Units,Adults and Communities,Other Agencies - Third Party P,30091739,BUPA CARE HOMES,"2,318.93",14/09/2015
Delivery Units,Adults and Communities,Other Agencies - Third Party P,30091740,BUPA CARE HOMES,"2,924.05",14/09/2015
Delivery Units,Adults and Communities,Other Agencies - Third Party P,30091741,BUPA CARE HOMES,"2,302.06",14/09/2015
Delivery Units,Adults and Communities,Other Agencies - Third Party P,30091742,BUPA CARE HOMES,"3,498.57",14/09/2015
Delivery Units,Adults and Communities,Other Agencies - Third Party P,30091743,BUPA CARE HOMES,"2,318.93",14/09/2015
Delivery Units,Adults and Communities,Other Agencies - Third Party P,30092218,BUPA CARE HOMES,"2,318.93",24/09/2015
Delivery Units,Adults and Communities,Other Agencies - Third Party P,30092219,BUPA CARE HOMES,"2,318.93",24/09/2015
Delivery Units,Adults and Communities,Other Agencies - Third Party P,30092220,BUPA CARE HOMES,"2,318.93",24/09/2015
Delivery Units,Adults and Communities,Other Agencies - Third Party P,30092221,BUPA CARE HOMES,"4,428.57",24/09/2015
Delivery Units,Adults and Communities,Other Agencies - Third Party P,30092738,BUPA CARE HOMES,"2,570.70",24/09/2015
Delivery Units,Adults and Communities,Other Agencies - Third Party P,30092739,BUPA CARE HOMES,"2,570.70",24/09/2015
Delivery Units,Adults and Communities,Other Agencies - Third Party P,30092740,BUPA CARE HOMES,"2,418.04",24/09/2015
Delivery Units,Adults and Communities,Other Agencies - Third Party P,30092741,BUPA CARE HOMES,"2,418.04",24/09/2015
Delivery Units,Adults and Communities,Other Agencies - Third Party P,30092742,BUPA CARE HOMES,"2,418.04",24/09/2015
Delivery Units,Adults and Communities,Other Agencies - Third Party P,30092743,BUPA CARE HOMES,"2,418.04",24/09/2015
Delivery Units,Adults and Communities,Other Agencies - Third Party P,30091869,BUPA NURSING HOMES LTD - ARKLEY,643.47,14/09/2015
Delivery Units,Adults and Communities,Other Agencies - Third Party P,30093913,BUPA NURSING HOMES LTD - ARKLEY,"1,604.52",28/09/2015
Delivery Units,Adults and Communities,Other Agencies - Third Party P,30093914,BUPA NURSING HOMES LTD - ARKLEY,"2,094.52",28/09/2015
Delivery Units,Adults and Communities,Other Agencies - Third Party P,30093915,BUPA NURSING HOMES LTD - ARKLEY,"2,094.52",28/09/2015
Delivery Units,Adults and Communities,Other Agencies - Third Party P,30093916,BUPA NURSING HOMES LTD - ARKLEY,"2,094.52",28/09/2015
Delivery Units,Adults and Communities,Other Agencies - Third Party P,30093917,BUPA NURSING HOMES LTD - ARKLEY,"2,001.92",28/09/2015
Delivery Units,Adults and Communities,Other Agencies - Third Party P,30093918,BUPA NURSING HOMES LTD - ARKLEY,"2,001.92",28/09/2015
Delivery Units,Adults and Communities,Other Agencies - Third Party P,30093919,BUPA NURSING HOMES LTD - ARKLEY,"2,094.52",28/09/2015
Delivery Units,Adults and Communities,Other Agencies - Third Party P,30093920,BUPA NURSING HOMES LTD - ARKLEY,"3,356.44",28/09/2015
Delivery Units,Adults and Communities,Other Agencies - Third Party P,30090719,CAMBIAN BEECHES,"13,164.46",03/09/2015
Delivery Units,Adults and Communities,Other Agencies - Third Party P,30090720,CAMBIAN BEECHES,"13,164.46",03/09/2015
Delivery Units,Adults and Communities,Other Agencies - Third Party P,30091633,CAMPHILL DEVON COMMUNITY LIMITED,"4,508.00",11/09/2015
Delivery Units,Adults and Communities,Other Agencies - Third Party P,30091130,CANDLE COURT NURSING HOME,"2,570.70",09/09/2015
Delivery Units,Adults and Communities,Other Agencies - Third Party P,30091131,CANDLE COURT NURSING HOME,"2,570.70",09/09/2015
Delivery Units,Adults and Communities,Other Agencies - Third Party P,30091132,CANDLE COURT NURSING HOME,"3,764.29",09/09/2015
Delivery Units,Adults and Communities,Other Agencies - Third Party P,30093577,CANDLE COURT NURSING HOME,"3,642.86",28/09/2015
Delivery Units,Adults and Communities,Other Agencies - Third Party P,30092216,CARE ASSIST LIMITED,"4,207.14",24/09/2015
Delivery Units,Adults and Communities,Other Agencies - Third Party P,30092217,CARE ASSIST LIMITED,"4,207.14",24/09/2015
Delivery Units,Adults and Communities,Other Agencies - Third Party P,30092861,CARE WORLDWIDE (LONDON) LTD,"2,680.88",25/09/2015
Delivery Units,Adults and Communities,Other Agencies - Third Party P,30092862,CARE WORLDWIDE (LONDON) LTD,"3,936.46",25/09/2015
Delivery Units,Adults and Communities,Other Agencies - Third Party P,30092863,CARE WORLDWIDE (LONDON) LTD,"4,246.53",25/09/2015
Delivery Units,Adults and Communities,Other Agencies - Third Party P,30092864,CARE WORLDWIDE (LONDON) LTD,"2,685.98",25/09/2015
Delivery Units,Adults and Communities,Other Agencies - Third Party P,30092865,CARE WORLDWIDE (LONDON) LTD,"2,794.44",25/09/2015
Delivery Units,Adults and Communities,Other Agencies - Third Party P,30087079,CAREBASE BURNT OAK 2006 LIMITED,-668.34,03/09/2015
Delivery Units,Adults and Communities,Other Agencies - Third Party P,30087307,CAREBASE BURNT OAK 2006 LIMITED,598.43,03/09/2015
Delivery Units,Adults and Communities,Other Agencies - Third Party P,30090654,CAREBASE BURNT OAK 2006 LIMITED,"2,318.93",03/09/2015
Delivery Units,Adults and Communities,Other Agencies - Third Party P,30090655,CAREBASE BURNT OAK 2006 LIMITED,"2,570.70",03/09/2015
Delivery Units,Adults and Communities,Other Agencies - Third Party P,30090656,CAREBASE BURNT OAK 2006 LIMITED,"2,570.70",03/09/2015
Delivery Units,Adults and Communities,Other Agencies - Third Party P,30090657,CAREBASE BURNT OAK 2006 LIMITED,"2,570.70",03/09/2015
Delivery Units,Adults and Communities,Other Agencies - Third Party P,30090658,CAREBASE BURNT OAK 2006 LIMITED,"2,418.04",03/09/2015
Delivery Units,Adults and Communities,Other Agencies - Third Party P,30090659,CAREBASE BURNT OAK 2006 LIMITED,"2,570.70",03/09/2015
Delivery Units,Adults and Communities,Other Agencies - Third Party P,30090660,CAREBASE BURNT OAK 2006 LIMITED,"2,320.53",03/09/2015
Delivery Units,Adults and Communities,Other Agencies - Third Party P,30090661,CAREBASE BURNT OAK 2006 LIMITED,"2,657.14",03/09/2015
Delivery Units,Adults and Communities,Other Agencies - Third Party P,30090662,CAREBASE BURNT OAK 2006 LIMITED,"2,418.04",03/09/2015
Delivery Units,Adults and Communities,Other Agencies - Third Party P,30091423,CAREBASE BURNT OAK 2006 LIMITED,"2,570.70",10/09/2015
Delivery Units,Adults and Communities,Other Agencies - Third Party P,30087458,CARETECH COMMUNITY SERVICES LTD,815.94,02/09/2015
Delivery Units,Adults and Communities,Other Agencies - Third Party P,30090742,CARETECH COMMUNITY SERVICES LTD,"4,774.00",03/09/2015
Delivery Units,Adults and Communities,Other Agencies - Third Party P,30090743,CARETECH COMMUNITY SERVICES LTD,-356.28,03/09/2015
Delivery Units,Adults and Communities,Other Agencies - Third Party P,30090744,CARETECH COMMUNITY SERVICES LTD,"5,890.00",03/09/2015
Delivery Units,Adults and Communities,Other Agencies - Third Party P,30090745,CARETECH COMMUNITY SERVICES LTD,-356.28,03/09/2015
Delivery Units,Adults and Communities,Other Agencies - Third Party P,30090746,CARETECH COMMUNITY SERVICES LTD,"6,653.80",03/09/2015
Delivery Units,Adults and Communities,Other Agencies - Third Party P,30090747,CARETECH COMMUNITY SERVICES LTD,-356.28,03/09/2015
Delivery Units,Adults and Communities,Other Agencies - Third Party P,30090748,CARETECH COMMUNITY SERVICES LTD,"4,627.86",03/09/2015
Delivery Units,Adults and Communities,Other Agencies - Third Party P,30090749,CARETECH COMMUNITY SERVICES LTD,"6,551.23",03/09/2015
Delivery Units,Adults and Communities,Other Agencies - Third Party P,30090750,CARETECH COMMUNITY SERVICES LTD,-548.92,03/09/2015
Delivery Units,Adults and Communities,Other Agencies - Third Party P,30090751,CARETECH COMMUNITY SERVICES LTD,816.14,03/09/2015
Delivery Units,Adults and Communities,Other Agencies - Third Party P,30090752,CARETECH COMMUNITY SERVICES LTD,"4,646.55",03/09/2015
Delivery Units,Adults and Communities,Other Agencies - Third Party P,30090753,CARETECH COMMUNITY SERVICES LTD,"4,817.18",03/09/2015
Delivery Units,Adults and Communities,Other Agencies - Third Party P,30090754,CARETECH COMMUNITY SERVICES LTD,-356.28,03/09/2015
Delivery Units,Adults and Communities,Other Agencies - Third Party P,30090755,CARETECH COMMUNITY SERVICES LTD,722.61,03/09/2015
Delivery Units,Adults and Communities,Other Agencies - Third Party P,30090756,CARETECH COMMUNITY SERVICES LTD,"7,621.57",03/09/2015
Delivery Units,Adults and Communities,Other Agencies - Third Party P,30090757,CARETECH COMMUNITY SERVICES LTD,"4,628.03",03/09/2015
Delivery Units,Adults and Communities,Other Agencies - Third Party P,30090758,CARETECH COMMUNITY SERVICES LTD,"6,551.23",03/09/2015
Delivery Units,Adults and Communities,Other Agencies - Third Party P,30090759,CARETECH COMMUNITY SERVICES LTD,-559.33,03/09/2015
Delivery Units,Adults and Communities,Other Agencies - Third Party P,30090760,CARETECH COMMUNITY SERVICES LTD,816.14,03/09/2015
Delivery Units,Adults and Communities,Other Agencies - Third Party P,30090761,CARETECH COMMUNITY SERVICES LTD,"4,627.86",03/09/2015
Delivery Units,Adults and Communities,Other Agencies - Third Party P,30090762,CARETECH COMMUNITY SERVICES LTD,"6,296.28",03/09/2015
Delivery Units,Adults and Communities,Other Agencies - Third Party P,30090763,CARETECH COMMUNITY SERVICES LTD,"6,653.80",03/09/2015
Delivery Units,Adults and Communities,Other Agencies - Third Party P,30090764,CARETECH COMMUNITY SERVICES LTD,-353.62,03/09/2015
Delivery Units,Adults and Communities,Other Agencies - Third Party P,30090765,CARETECH COMMUNITY SERVICES LTD,"7,287.66",03/09/2015
Delivery Units,Adults and Communities,Other Agencies - Third Party P,30090766,CARETECH COMMUNITY SERVICES LTD,-356.28,03/09/2015
Delivery Units,Adults and Communities,Other Agencies - Third Party P,30090767,CARETECH COMMUNITY SERVICES LTD,"4,627.86",03/09/2015
Delivery Units,Adults and Communities,Other Agencies - Third Party P,30090768,CARETECH COMMUNITY SERVICES LTD,"6,952.37",03/09/2015
Delivery Units,Adults and Communities,Other Agencies - Third Party P,30090769,CARETECH COMMUNITY SERVICES LTD,-356.28,03/09/2015
Delivery Units,Adults and Communities,Other Agencies - Third Party P,30090770,CARETECH COMMUNITY SERVICES LTD,"5,059.38",03/09/2015
Delivery Units,Adults and Communities,Other Agencies - Third Party P,30090771,CARETECH COMMUNITY SERVICES LTD,-356.28,03/09/2015
Delivery Units,Adults and Communities,Other Agencies - Third Party P,30090772,CARETECH COMMUNITY SERVICES LTD,"1,088.14",03/09/2015
Delivery Units,Adults and Communities,Other Agencies - Third Party P,30090773,CARETECH COMMUNITY SERVICES LTD,"6,328.43",03/09/2015
Delivery Units,Adults and Communities,Other Agencies - Third Party P,30090774,CARETECH COMMUNITY SERVICES LTD,-356.28,03/09/2015
Delivery Units,Adults and Communities,Other Agencies - Third Party P,30090775,CARETECH COMMUNITY SERVICES LTD,"5,468.93",03/09/2015
Delivery Units,Adults and Communities,Other Agencies - Third Party P,30090776,CARETECH COMMUNITY SERVICES LTD,-353.62,03/09/2015
Delivery Units,Adults and Communities,Other Agencies - Third Party P,30090777,CARETECH COMMUNITY SERVICES LTD,"5,823.57",03/09/2015
Delivery Units,Adults and Communities,Other Agencies - Third Party P,30090778,CARETECH COMMUNITY SERVICES LTD,-485.37,03/09/2015
Delivery Units,Adults and Communities,Other Agencies - Third Party P,30090779,CARETECH COMMUNITY SERVICES LTD,"5,468.93",03/09/2015
Delivery Units,Adults and Communities,Other Agencies - Third Party P,30090780,CARETECH COMMUNITY SERVICES LTD,-356.28,03/09/2015
Delivery Units,Adults and Communities,Other Agencies - Third Party P,30090781,CARETECH COMMUNITY SERVICES LTD,"1,088.14",03/09/2015
Delivery Units,Adults and Communities,Other Agencies - Third Party P,30090782,CARETECH COMMUNITY SERVICES LTD,"4,377.11",03/09/2015
Delivery Units,Adults and Communities,Other Agencies - Third Party P,30090783,CARETECH COMMUNITY SERVICES LTD,-356.28,03/09/2015
Delivery Units,Adults and Communities,Other Agencies - Third Party P,30090784,CARETECH COMMUNITY SERVICES LTD,"5,987.43",03/09/2015
Delivery Units,Adults and Communities,Other Agencies - Third Party P,30090785,CARETECH COMMUNITY SERVICES LTD,-353.62,03/09/2015
Delivery Units,Adults and Communities,Other Agencies - Third Party P,30090786,CARETECH COMMUNITY SERVICES LTD,"5,059.38",03/09/2015
Delivery Units,Adults and Communities,Other Agencies - Third Party P,30090787,CARETECH COMMUNITY SERVICES LTD,-548.92,03/09/2015
Delivery Units,Adults and Communities,Other Agencies - Third Party P,30090788,CARETECH COMMUNITY SERVICES LTD,"1,088.14",03/09/2015
Delivery Units,Adults and Communities,Other Agencies - Third Party P,30090789,CARETECH COMMUNITY SERVICES LTD,"2,589.74",03/09/2015
Delivery Units,Adults and Communities,Other Agencies - Third Party P,30090790,CARETECH COMMUNITY SERVICES LTD,"4,627.86",03/09/2015
Delivery Units,Adults and Communities,Other Agencies - Third Party P,30090791,CARETECH COMMUNITY SERVICES LTD,"4,782.86",03/09/2015
Delivery Units,Adults and Communities,Other Agencies - Third Party P,30090793,CARETECH COMMUNITY SERVICES LTD,"1,527.86",03/09/2015
Delivery Units,Adults and Communities,Other Agencies - Third Party P,30090794,CARETECH COMMUNITY SERVICES LTD,"7,072.43",03/09/2015
Delivery Units,Adults and Communities,Other Agencies - Third Party P,30090795,CARETECH COMMUNITY SERVICES LTD,-405.66,03/09/2015
Delivery Units,Adults and Communities,Other Agencies - Third Party P,30091539,CARETECH COMMUNITY SERVICES LTD,475.27,10/09/2015
Delivery Units,Adults and Communities,Other Agencies - Third Party P,30091540,CARETECH COMMUNITY SERVICES LTD,475.27,10/09/2015
Delivery Units,Adults and Communities,Other Agencies - Third Party P,30091541,CARETECH COMMUNITY SERVICES LTD,919.15,10/09/2015
Delivery Units,Adults and Communities,Other Agencies - Third Party P,30091542,CARETECH COMMUNITY SERVICES LTD,919.15,10/09/2015
Delivery Units,Adults and Communities,Other Agencies - Third Party P,30091765,CARETECH COMMUNITY SERVICES LTD,"4,628.03",11/09/2015
Delivery Units,Adults and Communities,Other Agencies - Third Party P,30094087,CARETECH COMMUNITY SERVICES LTD,"4,620.00",30/09/2015
Delivery Units,Adults and Communities,Other Agencies - Third Party P,30094088,CARETECH COMMUNITY SERVICES LTD,-344.79,30/09/2015
Delivery Units,Adults and Communities,Other Agencies - Third Party P,30094089,CARETECH COMMUNITY SERVICES LTD,"5,700.00",30/09/2015
Delivery Units,Adults and Communities,Other Agencies - Third Party P,30094090,CARETECH COMMUNITY SERVICES LTD,-344.79,30/09/2015
Delivery Units,Adults and Communities,Other Agencies - Third Party P,30094091,CARETECH COMMUNITY SERVICES LTD,"6,439.16",30/09/2015
Delivery Units,Adults and Communities,Other Agencies - Third Party P,30094092,CARETECH COMMUNITY SERVICES LTD,-344.79,30/09/2015
Delivery Units,Adults and Communities,Other Agencies - Third Party P,30094093,CARETECH COMMUNITY SERVICES LTD,459.94,30/09/2015
Delivery Units,Adults and Communities,Other Agencies - Third Party P,30094094,CARETECH COMMUNITY SERVICES LTD,"4,478.57",30/09/2015
Delivery Units,Adults and Communities,Other Agencies - Third Party P,30094095,CARETECH COMMUNITY SERVICES LTD,"6,339.90",30/09/2015
Delivery Units,Adults and Communities,Other Agencies - Third Party P,30094096,CARETECH COMMUNITY SERVICES LTD,-531.21,30/09/2015
Delivery Units,Adults and Communities,Other Agencies - Third Party P,30094097,CARETECH COMMUNITY SERVICES LTD,789.81,30/09/2015
Delivery Units,Adults and Communities,Other Agencies - Third Party P,30094098,CARETECH COMMUNITY SERVICES LTD,"4,496.66",30/09/2015
Delivery Units,Adults and Communities,Other Agencies - Third Party P,30094099,CARETECH COMMUNITY SERVICES LTD,"4,661.79",30/09/2015
Delivery Units,Adults and Communities,Other Agencies - Third Party P,30094100,CARETECH COMMUNITY SERVICES LTD,-344.79,30/09/2015
Delivery Units,Adults and Communities,Other Agencies - Third Party P,30094101,CARETECH COMMUNITY SERVICES LTD,699.30,30/09/2015
Delivery Units,Adults and Communities,Other Agencies - Third Party P,30094102,CARETECH COMMUNITY SERVICES LTD,"7,375.71",30/09/2015
Delivery Units,Adults and Communities,Other Agencies - Third Party P,30094103,CARETECH COMMUNITY SERVICES LTD,"4,478.74",30/09/2015
Delivery Units,Adults and Communities,Other Agencies - Third Party P,30094104,CARETECH COMMUNITY SERVICES LTD,"6,339.90",30/09/2015
Delivery Units,Adults and Communities,Other Agencies - Third Party P,30094105,CARETECH COMMUNITY SERVICES LTD,-541.29,30/09/2015
Delivery Units,Adults and Communities,Other Agencies - Third Party P,30094106,CARETECH COMMUNITY SERVICES LTD,789.81,30/09/2015
Delivery Units,Adults and Communities,Other Agencies - Third Party P,30094107,CARETECH COMMUNITY SERVICES LTD,"4,478.57",30/09/2015
Delivery Units,Adults and Communities,Other Agencies - Third Party P,30094108,CARETECH COMMUNITY SERVICES LTD,"6,093.17",30/09/2015
Delivery Units,Adults and Communities,Other Agencies - Third Party P,30094109,CARETECH COMMUNITY SERVICES LTD,"6,439.16",30/09/2015
Delivery Units,Adults and Communities,Other Agencies - Third Party P,30094110,CARETECH COMMUNITY SERVICES LTD,-342.21,30/09/2015
Delivery Units,Adults and Communities,Other Agencies - Third Party P,30094111,CARETECH COMMUNITY SERVICES LTD,459.94,30/09/2015
Delivery Units,Adults and Communities,Other Agencies - Third Party P,30094112,CARETECH COMMUNITY SERVICES LTD,"7,052.57",30/09/2015
Delivery Units,Adults and Communities,Other Agencies - Third Party P,30094113,CARETECH COMMUNITY SERVICES LTD,-344.79,30/09/2015
Delivery Units,Adults and Communities,Other Agencies - Third Party P,30094114,CARETECH COMMUNITY SERVICES LTD,"4,478.57",30/09/2015
Delivery Units,Adults and Communities,Other Agencies - Third Party P,30094115,CARETECH COMMUNITY SERVICES LTD,889.50,30/09/2015
Delivery Units,Adults and Communities,Other Agencies - Third Party P,30094116,CARETECH COMMUNITY SERVICES LTD,"6,728.10",30/09/2015
Delivery Units,Adults and Communities,Other Agencies - Third Party P,30094117,CARETECH COMMUNITY SERVICES LTD,-344.79,30/09/2015
Delivery Units,Adults and Communities,Other Agencies - Third Party P,30094118,CARETECH COMMUNITY SERVICES LTD,"4,896.17",30/09/2015
Delivery Units,Adults and Communities,Other Agencies - Third Party P,30094119,CARETECH COMMUNITY SERVICES LTD,-344.79,30/09/2015
Delivery Units,Adults and Communities,Other Agencies - Third Party P,30094120,CARETECH COMMUNITY SERVICES LTD,"1,053.04",30/09/2015
Delivery Units,Adults and Communities,Other Agencies - Third Party P,30094121,CARETECH COMMUNITY SERVICES LTD,"6,124.29",30/09/2015
Delivery Units,Adults and Communities,Other Agencies - Third Party P,30094122,CARETECH COMMUNITY SERVICES LTD,-344.79,30/09/2015
Delivery Units,Adults and Communities,Other Agencies - Third Party P,30094123,CARETECH COMMUNITY SERVICES LTD,"5,292.51",30/09/2015
Delivery Units,Adults and Communities,Other Agencies - Third Party P,30094124,CARETECH COMMUNITY SERVICES LTD,-342.21,30/09/2015
Delivery Units,Adults and Communities,Other Agencies - Third Party P,30094125,CARETECH COMMUNITY SERVICES LTD,"5,635.71",30/09/2015
Delivery Units,Adults and Communities,Other Agencies - Third Party P,30094126,CARETECH COMMUNITY SERVICES LTD,-469.71,30/09/2015
Delivery Units,Adults and Communities,Other Agencies - Third Party P,30094127,CARETECH COMMUNITY SERVICES LTD,"5,292.51",30/09/2015
Delivery Units,Adults and Communities,Other Agencies - Third Party P,30094128,CARETECH COMMUNITY SERVICES LTD,-344.79,30/09/2015
Delivery Units,Adults and Communities,Other Agencies - Third Party P,30094129,CARETECH COMMUNITY SERVICES LTD,"1,053.04",30/09/2015
Delivery Units,Adults and Communities,Other Agencies - Third Party P,30094130,CARETECH COMMUNITY SERVICES LTD,"4,235.91",30/09/2015
Delivery Units,Adults and Communities,Other Agencies - Third Party P,30094131,CARETECH COMMUNITY SERVICES LTD,-344.79,30/09/2015
Delivery Units,Adults and Communities,Other Agencies - Third Party P,30094132,CARETECH COMMUNITY SERVICES LTD,"5,794.29",30/09/2015
Delivery Units,Adults and Communities,Other Agencies - Third Party P,30094133,CARETECH COMMUNITY SERVICES LTD,-342.21,30/09/2015
Delivery Units,Adults and Communities,Other Agencies - Third Party P,30094134,CARETECH COMMUNITY SERVICES LTD,"4,896.17",30/09/2015
Delivery Units,Adults and Communities,Other Agencies - Third Party P,30094135,CARETECH COMMUNITY SERVICES LTD,-531.21,30/09/2015
Delivery Units,Adults and Communities,Other Agencies - Third Party P,30094136,CARETECH COMMUNITY SERVICES LTD,"1,053.04",30/09/2015
Delivery Units,Adults and Communities,Other Agencies - Third Party P,30094137,CARETECH COMMUNITY SERVICES LTD,"2,506.20",30/09/2015
Delivery Units,Adults and Communities,Other Agencies - Third Party P,30094138,CARETECH COMMUNITY SERVICES LTD,"2,080.59",30/09/2015
Delivery Units,Adults and Communities,Other Agencies - Third Party P,30094139,CARETECH COMMUNITY SERVICES LTD,"4,628.57",30/09/2015
Delivery Units,Adults and Communities,Other Agencies - Third Party P,30094141,CARETECH COMMUNITY SERVICES LTD,"1,478.57",30/09/2015
Delivery Units,Adults and Communities,Other Agencies - Third Party P,30094142,CARETECH COMMUNITY SERVICES LTD,"6,844.29",30/09/2015
Delivery Units,Adults and Communities,Other Agencies - Third Party P,30094143,CARETECH COMMUNITY SERVICES LTD,-392.57,30/09/2015
Delivery Units,Adults and Communities,Other Agencies - Third Party P,30094144,CARETECH COMMUNITY SERVICES LTD,889.50,30/09/2015
Delivery Units,Adults and Communities,Other Agencies - Third Party P,30094145,CARETECH COMMUNITY SERVICES LTD,"4,478.74",30/09/2015
Delivery Units,Adults and Communities,Other Agencies - Third Party P,30091122,CARLTON COURT (TLC GROUP),"2,570.70",09/09/2015
Delivery Units,Adults and Communities,Other Agencies - Third Party P,30091123,CARLTON COURT (TLC GROUP),"2,570.70",09/09/2015
Delivery Units,Adults and Communities,Other Agencies - Third Party P,30091124,CARLTON COURT (TLC GROUP),"2,570.70",09/09/2015
Delivery Units,Adults and Communities,Other Agencies - Third Party P,30091125,CARLTON COURT (TLC GROUP),"2,318.93",09/09/2015
Delivery Units,Adults and Communities,Other Agencies - Third Party P,30091126,CARLTON COURT (TLC GROUP),"2,216.41",09/09/2015
Delivery Units,Adults and Communities,Other Agencies - Third Party P,30091127,CARLTON COURT (TLC GROUP),"2,570.70",09/09/2015
Delivery Units,Adults and Communities,Other Agencies - Third Party P,30091128,CARLTON COURT (TLC GROUP),"2,418.04",09/09/2015
Delivery Units,Adults and Communities,Other Agencies - Third Party P,30091129,CARLTON COURT (TLC GROUP),"2,418.04",09/09/2015
Delivery Units,Adults and Communities,Other Agencies - Third Party P,30091342,CARLTON COURT (TLC GROUP),"3,764.29",10/09/2015
Delivery Units,Adults and Communities,Other Agencies - Third Party P,30091343,CARLTON COURT (TLC GROUP),"2,216.41",10/09/2015
Delivery Units,Adults and Communities,Other Agencies - Third Party P,30091344,CARLTON COURT (TLC GROUP),"2,418.04",10/09/2015
Delivery Units,Adults and Communities,Other Agencies - Third Party P,30091345,CARLTON COURT (TLC GROUP),"2,216.41",10/09/2015
Delivery Units,Adults and Communities,Other Agencies - Third Party P,30091346,CARLTON COURT (TLC GROUP),"2,570.70",10/09/2015
Delivery Units,Adults and Communities,Other Agencies - Third Party P,30091347,CARLTON COURT (TLC GROUP),"2,570.70",10/09/2015
Delivery Units,Adults and Communities,Other Agencies - Third Party P,30091348,CARLTON COURT (TLC GROUP),"2,216.41",10/09/2015
Delivery Units,Adults and Communities,Other Agencies - Third Party P,30091349,CARLTON COURT (TLC GROUP),"2,570.69",10/09/2015
Delivery Units,Adults and Communities,Other Agencies - Third Party P,30091350,CARLTON COURT (TLC GROUP),-561.54,10/09/2015
Delivery Units,Adults and Communities,Other Agencies - Third Party P,30091351,CARLTON COURT (TLC GROUP),"2,570.70",10/09/2015
Delivery Units,Adults and Communities,Other Agencies - Third Party P,30091352,CARLTON COURT (TLC GROUP),"2,570.70",10/09/2015
Delivery Units,Adults and Communities,Other Agencies - Third Party P,30091353,CARLTON COURT (TLC GROUP),"2,570.70",10/09/2015
Delivery Units,Adults and Communities,Other Agencies - Third Party P,30091354,CARLTON COURT (TLC GROUP),"3,321.43",10/09/2015
Delivery Units,Adults and Communities,Other Agencies - Third Party P,30091355,CARLTON COURT (TLC GROUP),"3,720.93",10/09/2015
Delivery Units,Adults and Communities,Other Agencies - Third Party P,30090522,CARMEN LODGE RESIDENTIAL HOME,"2,739.47",03/09/2015
Delivery Units,Adults and Communities,Other Agencies - Third Party P,30092191,CATHERINE LODGE,"2,184.04",24/09/2015
Delivery Units,Adults and Communities,Other Agencies - Third Party P,30093969,CATHERINE LODGE,"2,184.04",28/09/2015
Delivery Units,Adults and Communities,Other Agencies - Third Party P,30090943,CDR CARE LTD,"2,400.00",04/09/2015
Delivery Units,Adults and Communities,Other Agencies - Third Party P,30094042,CEDARS NURSING HOME,"2,483.01",28/09/2015
Delivery Units,Adults and Communities,Other Agencies - Third Party P,30094043,CEDARS NURSING HOME,"2,483.01",28/09/2015
Delivery Units,Adults and Communities,Other Agencies - Third Party P,30094044,CEDARS NURSING HOME,"2,483.01",28/09/2015
Delivery Units,Adults and Communities,Other Agencies - Third Party P,30094045,CEDARS NURSING HOME,"2,277.34",28/09/2015
Delivery Units,Adults and Communities,Other Agencies - Third Party P,30094046,CEDARS NURSING HOME,"2,483.01",28/09/2015
Delivery Units,Adults and Communities,Other Agencies - Third Party P,30094047,CEDARS NURSING HOME,"2,239.37",28/09/2015
Delivery Units,Adults and Communities,Other Agencies - Third Party P,30094048,CEDARS NURSING HOME,"2,483.01",28/09/2015
Delivery Units,Adults and Communities,Other Agencies - Third Party P,30094049,CEDARS NURSING HOME,"2,277.34",28/09/2015
Delivery Units,Adults and Communities,Other Agencies - Third Party P,30092922,CENTRAL MIDDLESEX SKILLS,"1,085.52",25/09/2015
Delivery Units,Adults and Communities,Other Agencies - Third Party P,30092923,CENTRAL MIDDLESEX SKILLS,723.68,25/09/2015
Delivery Units,Adults and Communities,Other Agencies - Third Party P,30090550,CHATSWORTH CARE,"10,606.43",03/09/2015
Delivery Units,Adults and Communities,Other Agencies - Third Party P,30092194,CHEQUERS TRANSPORT LIMITED,480.00,24/09/2015
Delivery Units,Adults and Communities,Other Agencies - Third Party P,30092195,CHEQUERS TRANSPORT LIMITED,132.00,24/09/2015
Delivery Units,Adults and Communities,Other Agencies - Third Party P,30092196,CHEQUERS TRANSPORT LIMITED,90.00,24/09/2015
Delivery Units,Adults and Communities,Other Agencies - Third Party P,30092197,CHEQUERS TRANSPORT LIMITED,134.20,24/09/2015
Delivery Units,Adults and Communities,Other Agencies - Third Party P,30090561,CHOICE CARE GROUP,"8,736.73",03/09/2015
Delivery Units,Adults and Communities,Other Agencies - Third Party P,30090562,CHOICE CARE GROUP,-356.28,03/09/2015
Delivery Units,Adults and Communities,Other Agencies - Third Party P,30090685,CLOVELLY HOUSE RESID. HOME LTD,"2,600.00",03/09/2015
Delivery Units,Adults and Communities,Other Agencies - Third Party P,30090686,CLOVELLY HOUSE RESID. HOME LTD,"2,600.00",03/09/2015
Delivery Units,Adults and Communities,Other Agencies - Third Party P,30090687,CLOVELLY HOUSE RESID. HOME LTD,"2,184.04",03/09/2015
Delivery Units,Adults and Communities,Other Agencies - Third Party P,30090688,CLOVELLY HOUSE RESID. HOME LTD,"2,600.00",03/09/2015
Delivery Units,Adults and Communities,Other Agencies - Third Party P,30090689,CLOVELLY HOUSE RESID. HOME LTD,"2,184.04",03/09/2015
Delivery Units,Adults and Communities,Other Agencies - Third Party P,30090691,CLOVELLY HOUSE RESID. HOME LTD,-713.04,03/09/2015
Delivery Units,Adults and Communities,Other Agencies - Third Party P,30091461,CLOVELLY HOUSE RESID. HOME LTD,"1,872.64",10/09/2015
Delivery Units,Adults and Communities,Other Agencies - Third Party P,30091462,CLOVELLY HOUSE RESID. HOME LTD,"2,184.04",10/09/2015
Delivery Units,Adults and Communities,Other Agencies - Third Party P,30092206,CLOVELLY HOUSE RESID. HOME LTD,-468.00,24/09/2015
Delivery Units,Adults and Communities,Other Agencies - Third Party P,30092207,CLOVELLY HOUSE RESID. HOME LTD,"6,419.31",24/09/2015
Delivery Units,Adults and Communities,Other Agencies - Third Party P,30092208,CLOVELLY HOUSE RESID. HOME LTD,"-1,908.08",24/09/2015
Delivery Units,Adults and Communities,Other Agencies - Third Party P,20023209,CMG HOMES LTD,592.40,03/09/2015
Delivery Units,Adults and Communities,Other Agencies - Third Party P,20023210,CMG HOMES LTD,"3,484.92",03/09/2015
Delivery Units,Adults and Communities,Other Agencies - Third Party P,30090951,CMG HOMES LTD,"3,086.84",04/09/2015
Delivery Units,Adults and Communities,Other Agencies - Third Party P,30090731,CONNIFERS CARE LTD,"8,546.43",03/09/2015
Delivery Units,Adults and Communities,Other Agencies - Third Party P,30090548,CRAEGMOOR,"3,787.36",03/09/2015
Delivery Units,Adults and Communities,Other Agencies - Third Party P,30090549,CRAEGMOOR,-280.99,03/09/2015
Delivery Units,Adults and Communities,Other Agencies - Third Party P,30091959,DABB PAA,"1,092.96",15/09/2015
Delivery Units,Adults and Communities,Other Agencies - Third Party P,30092201,DABB PAA,314.82,24/09/2015
Delivery Units,Adults and Communities,Other Agencies - Third Party P,30091960,DEVELOPMENT AND LEARNING OPPORTUNIT,652.40,15/09/2015
Delivery Units,Adults and Communities,Other Agencies - Third Party P,30091961,DEVELOPMENT AND LEARNING OPPORTUNIT,"2,025.00",15/09/2015
Delivery Units,Adults and Communities,Other Agencies - Third Party P,30091962,DEVELOPMENT AND LEARNING OPPORTUNIT,"1,056.00",15/09/2015
Delivery Units,Adults and Communities,Other Agencies - Third Party P,30091963,DEVELOPMENT AND LEARNING OPPORTUNIT,500.00,15/09/2015
Delivery Units,Adults and Communities,Other Agencies - Third Party P,30091964,DEVELOPMENT AND LEARNING OPPORTUNIT,263.25,15/09/2015
Delivery Units,Adults and Communities,Other Agencies - Third Party P,30091965,DEVELOPMENT AND LEARNING OPPORTUNIT,"1,053.00",15/09/2015
Delivery Units,Adults and Communities,Other Agencies - Third Party P,30092202,DEVELOPMENT AND LEARNING OPPORTUNIT,908.28,24/09/2015
Delivery Units,Adults and Communities,Other Agencies - Third Party P,30092823,DILLON CARE LTD,"3,900.00",24/09/2015
Delivery Units,Adults and Communities,Other Agencies - Third Party P,30090503,DIMENSIONS UK,374.00,02/09/2015
Delivery Units,Adults and Communities,Other Agencies - Third Party P,30091065,DIMENSIONS UK,-299.20,07/09/2015
Delivery Units,Adults and Communities,Other Agencies - Third Party P,30091068,DIMENSIONS UK,"1,496.00",07/09/2015
Delivery Units,Adults and Communities,Other Agencies - Third Party P,30091069,DIMENSIONS UK,532.00,07/09/2015
Delivery Units,Adults and Communities,Other Agencies - Third Party P,30091070,DIMENSIONS UK,440.80,07/09/2015
Delivery Units,Adults and Communities,Other Agencies - Third Party P,30091071,DIMENSIONS UK,"2,128.00",07/09/2015
Delivery Units,Adults and Communities,Other Agencies - Third Party P,30091074,DIMENSIONS UK,"1,541.00",07/09/2015
Delivery Units,Adults and Communities,Other Agencies - Third Party P,30091217,DIMENSIONS UK,965.60,09/09/2015
Delivery Units,Adults and Communities,Other Agencies - Third Party P,30091510,DIMENSIONS UK,"4,495.76",10/09/2015
Delivery Units,Adults and Communities,Other Agencies - Third Party P,30091511,DIMENSIONS UK,"4,495.76",10/09/2015
Delivery Units,Adults and Communities,Other Agencies - Third Party P,30091512,DIMENSIONS UK,149.60,10/09/2015
Delivery Units,Adults and Communities,Other Agencies - Third Party P,30091513,DIMENSIONS UK,224.40,10/09/2015
Delivery Units,Adults and Communities,Other Agencies - Third Party P,30091514,DIMENSIONS UK,149.60,10/09/2015
Delivery Units,Adults and Communities,Other Agencies - Third Party P,30091515,DIMENSIONS UK,224.40,10/09/2015
Delivery Units,Adults and Communities,Other Agencies - Third Party P,30091516,DIMENSIONS UK,149.60,10/09/2015
Delivery Units,Adults and Communities,Other Agencies - Third Party P,30091517,DIMENSIONS UK,149.60,10/09/2015
Delivery Units,Adults and Communities,Other Agencies - Third Party P,30091518,DIMENSIONS UK,74.80,10/09/2015
Delivery Units,Adults and Communities,Other Agencies - Third Party P,30091519,DIMENSIONS UK,149.60,10/09/2015
Delivery Units,Adults and Communities,Other Agencies - Third Party P,30091520,DIMENSIONS UK,74.80,10/09/2015
Delivery Units,Adults and Communities,Other Agencies - Third Party P,30091521,DIMENSIONS UK,149.60,10/09/2015
Delivery Units,Adults and Communities,Other Agencies - Third Party P,30091522,DIMENSIONS UK,149.60,10/09/2015
Delivery Units,Adults and Communities,Other Agencies - Third Party P,30091523,DIMENSIONS UK,149.60,10/09/2015
Delivery Units,Adults and Communities,Other Agencies - Third Party P,30091524,DIMENSIONS UK,149.60,10/09/2015
Delivery Units,Adults and Communities,Other Agencies - Third Party P,30091525,DIMENSIONS UK,74.80,10/09/2015
Delivery Units,Adults and Communities,Other Agencies - Third Party P,30091526,DIMENSIONS UK,523.60,10/09/2015
Delivery Units,Adults and Communities,Other Agencies - Third Party P,30091527,DIMENSIONS UK,299.20,10/09/2015
Delivery Units,Adults and Communities,Other Agencies - Third Party P,30091528,DIMENSIONS UK,224.40,10/09/2015
Delivery Units,Adults and Communities,Other Agencies - Third Party P,30091529,DIMENSIONS UK,299.20,10/09/2015
Delivery Units,Adults and Communities,Other Agencies - Third Party P,30091530,DIMENSIONS UK,149.60,10/09/2015
Delivery Units,Adults and Communities,Other Agencies - Third Party P,30091531,DIMENSIONS UK,448.80,10/09/2015
Delivery Units,Adults and Communities,Other Agencies - Third Party P,30091532,DIMENSIONS UK,149.60,10/09/2015
Delivery Units,Adults and Communities,Other Agencies - Third Party P,30091533,DIMENSIONS UK,112.20,10/09/2015
Delivery Units,Adults and Communities,Other Agencies - Third Party P,30091534,DIMENSIONS UK,149.60,10/09/2015
Delivery Units,Adults and Communities,Other Agencies - Third Party P,30091535,DIMENSIONS UK,74.80,10/09/2015
Delivery Units,Adults and Communities,Other Agencies - Third Party P,30091536,DIMENSIONS UK,149.60,10/09/2015
Delivery Units,Adults and Communities,Other Agencies - Third Party P,30091537,DIMENSIONS UK,149.60,10/09/2015
Delivery Units,Adults and Communities,Other Agencies - Third Party P,30091538,DIMENSIONS UK,"7,950.68",10/09/2015
Delivery Units,Adults and Communities,Other Agencies - Third Party P,30091764,DIMENSIONS UK,965.60,11/09/2015
Delivery Units,Adults and Communities,Other Agencies - Third Party P,30091884,DIMENSIONS UK,233.10,14/09/2015
Delivery Units,Adults and Communities,Other Agencies - Third Party P,30091885,DIMENSIONS UK,279.72,14/09/2015
Delivery Units,Adults and Communities,Other Agencies - Third Party P,30091886,DIMENSIONS UK,279.72,14/09/2015
Delivery Units,Adults and Communities,Other Agencies - Third Party P,30091887,DIMENSIONS UK,419.58,14/09/2015
Delivery Units,Adults and Communities,Other Agencies - Third Party P,30093029,DIMENSIONS UK,"7,950.68",25/09/2015
Delivery Units,Adults and Communities,Other Agencies - Third Party P,30091421,EAST SUSSEX COUNTY COUNCIL,122.20,10/09/2015
Delivery Units,Adults and Communities,Other Agencies - Third Party P,30094023,EAST SUSSEX COUNTY COUNCIL,549.90,28/09/2015
Delivery Units,Adults and Communities,Other Agencies - Third Party P,30091341,EASTSIDE HOUSE RESIDENTIAL CARE HOM,"2,001.92",11/09/2015
Delivery Units,Adults and Communities,Other Agencies - Third Party P,30091809,ELEANOR PALMER TRUST NO 2 A/C.,"1,092.02",14/09/2015
Delivery Units,Adults and Communities,Other Agencies - Third Party P,30091121,ELIZABETH HOUSE,"1,320.00",09/09/2015
Delivery Units,Adults and Communities,Other Agencies - Third Party P,30092745,ELIZABETH HOUSE,"2,418.04",24/09/2015
Delivery Units,Adults and Communities,Other Agencies - Third Party P,20023677,ELM PARK LODGE,"3,484.80",18/09/2015
Delivery Units,Adults and Communities,Other Agencies - Third Party P,20023678,ELM PARK LODGE,"3,520.71",18/09/2015
Delivery Units,Adults and Communities,Other Agencies - Third Party P,30090672,ELM PARK LODGE,"3,166.43",03/09/2015
Delivery Units,Adults and Communities,Other Agencies - Third Party P,30090673,ELM PARK LODGE,-559.33,03/09/2015
Delivery Units,Adults and Communities,Other Agencies - Third Party P,30090682,ELM PARK LODGE,"3,484.80",03/09/2015
Delivery Units,Adults and Communities,Other Agencies - Third Party P,30090683,ELM PARK LODGE,"3,520.71",03/09/2015
Delivery Units,Adults and Communities,Other Agencies - Third Party P,30090710,ELM PARK LODGE,"3,612.87",03/09/2015
Delivery Units,Adults and Communities,Other Agencies - Third Party P,30090711,ELM PARK LODGE,"2,103.31",03/09/2015
Delivery Units,Adults and Communities,Other Agencies - Third Party P,30090717,ELM PARK LODGE,"3,432.14",03/09/2015
Delivery Units,Adults and Communities,Other Agencies - Third Party P,30090718,ELM PARK LODGE,"2,161.85",03/09/2015
Delivery Units,Adults and Communities,Other Agencies - Third Party P,30090730,ELM PARK LODGE,"3,387.86",03/09/2015
Delivery Units,Adults and Communities,Other Agencies - Third Party P,30090734,ELM PARK LODGE,"3,210.71",03/09/2015
Delivery Units,Adults and Communities,Other Agencies - Third Party P,30090735,ELM PARK LODGE,"3,432.14",03/09/2015
Delivery Units,Adults and Communities,Other Agencies - Third Party P,30090737,ELM PARK LODGE,"3,387.86",03/09/2015
Delivery Units,Adults and Communities,Other Agencies - Third Party P,30090818,ELM PARK LODGE,"2,103.31",03/09/2015
Delivery Units,Adults and Communities,Other Agencies - Third Party P,30090819,ELM PARK LODGE,-559.33,03/09/2015
Delivery Units,Adults and Communities,Other Agencies - Third Party P,30090820,ELM PARK LODGE,"3,455.61",03/09/2015
Delivery Units,Adults and Communities,Other Agencies - Third Party P,30090824,ELM PARK LODGE,"3,612.87",03/09/2015
Delivery Units,Adults and Communities,Other Agencies - Third Party P,30091710,ELM PARK LODGE,"3,299.29",11/09/2015
Delivery Units,Adults and Communities,Other Agencies - Third Party P,30091713,ELM PARK LODGE,"3,166.43",11/09/2015
Delivery Units,Adults and Communities,Other Agencies - Third Party P,30091714,ELM PARK LODGE,-559.33,11/09/2015
Delivery Units,Adults and Communities,Other Agencies - Third Party P,30091746,ELM PARK LODGE,"3,612.87",11/09/2015
Delivery Units,Adults and Communities,Other Agencies - Third Party P,30091747,ELM PARK LODGE,"2,103.31",11/09/2015
Delivery Units,Adults and Communities,Other Agencies - Third Party P,30091748,ELM PARK LODGE,"3,432.14",11/09/2015
Delivery Units,Adults and Communities,Other Agencies - Third Party P,30091749,ELM PARK LODGE,"2,161.85",11/09/2015
Delivery Units,Adults and Communities,Other Agencies - Third Party P,30091755,ELM PARK LODGE,"3,387.86",11/09/2015
Delivery Units,Adults and Communities,Other Agencies - Third Party P,30091758,ELM PARK LODGE,"3,210.71",11/09/2015
Delivery Units,Adults and Communities,Other Agencies - Third Party P,30091760,ELM PARK LODGE,"3,432.14",11/09/2015
Delivery Units,Adults and Communities,Other Agencies - Third Party P,30091761,ELM PARK LODGE,"3,387.86",11/09/2015
Delivery Units,Adults and Communities,Other Agencies - Third Party P,30091771,ELM PARK LODGE,"2,103.31",11/09/2015
Delivery Units,Adults and Communities,Other Agencies - Third Party P,30091772,ELM PARK LODGE,-559.33,11/09/2015
Delivery Units,Adults and Communities,Other Agencies - Third Party P,30091773,ELM PARK LODGE,"3,455.61",11/09/2015
Delivery Units,Adults and Communities,Other Agencies - Third Party P,30091779,ELM PARK LODGE,"3,612.87",11/09/2015
Delivery Units,Adults and Communities,Other Agencies - Third Party P,30092210,ELM PARK LODGE,"5,464.29",24/09/2015
Delivery Units,Adults and Communities,Other Agencies - Third Party P,30094150,ELM PARK LODGE,"1,500.00",28/09/2015
Delivery Units,Adults and Communities,Other Agencies - Third Party P,30092212,EMMAUS HOUSE,"2,184.04",24/09/2015
Delivery Units,Adults and Communities,Other Agencies - Third Party P,30090608,FINBOND LIMITED,"2,418.04",03/09/2015
Delivery Units,Adults and Communities,Other Agencies - Third Party P,30091375,FINBOND LIMITED,"2,144.91",14/09/2015
Delivery Units,Adults and Communities,Other Agencies - Third Party P,30091883,FLAGSWAN TWO LTD,"2,546.43",14/09/2015
Delivery Units,Adults and Communities,Other Agencies - Third Party P,30091193,FOUR SEASONS HEALTH CARE,"2,270.99",09/09/2015
Delivery Units,Adults and Communities,Other Agencies - Third Party P,30091480,FOUR SEASONS HEALTH CARE,"2,761.08",10/09/2015
Delivery Units,Adults and Communities,Other Agencies - Third Party P,30091481,FOUR SEASONS HEALTH CARE,"2,020.45",10/09/2015
Delivery Units,Adults and Communities,Other Agencies - Third Party P,30091877,FOUR SEASONS HEALTH CARE,"2,443.32",14/09/2015
Delivery Units,Adults and Communities,Other Agencies - Third Party P,30091878,FOUR SEASONS HEALTH CARE,"2,085.68",14/09/2015
Delivery Units,Adults and Communities,Other Agencies - Third Party P,30091879,FOUR SEASONS HEALTH CARE,"2,085.68",14/09/2015
Delivery Units,Adults and Communities,Other Agencies - Third Party P,30091880,FOUR SEASONS HEALTH CARE,"2,123.48",14/09/2015
Delivery Units,Adults and Communities,Other Agencies - Third Party P,30091881,FOUR SEASONS HEALTH CARE,"2,313.08",14/09/2015
Delivery Units,Adults and Communities,Other Agencies - Third Party P,30091882,FOUR SEASONS HEALTH CARE,"2,085.68",14/09/2015
Delivery Units,Adults and Communities,Other Agencies - Third Party P,30092238,FOUR SEASONS HEALTH CARE,"2,081.24",24/09/2015
Delivery Units,Adults and Communities,Other Agencies - Third Party P,30092737,FOUR SEASONS HEALTH CARE,-80.00,24/09/2015
Delivery Units,Adults and Communities,Other Agencies - Third Party P,30092747,FOUR SEASONS HEALTH CARE,454.02,24/09/2015
Delivery Units,Adults and Communities,Other Agencies - Third Party P,30092748,FOUR SEASONS HEALTH CARE,"2,313.08",24/09/2015
Delivery Units,Adults and Communities,Other Agencies - Third Party P,30092749,FOUR SEASONS HEALTH CARE,314.58,24/09/2015
Delivery Units,Adults and Communities,Other Agencies - Third Party P,30092750,FOUR SEASONS HEALTH CARE,"7,915.38",24/09/2015
Delivery Units,Adults and Communities,Other Agencies - Third Party P,30092751,FOUR SEASONS HEALTH CARE,"2,321.92",24/09/2015
Delivery Units,Adults and Communities,Other Agencies - Third Party P,30092752,FOUR SEASONS HEALTH CARE,"2,085.68",24/09/2015
Delivery Units,Adults and Communities,Other Agencies - Third Party P,30092753,FOUR SEASONS HEALTH CARE,"2,090.08",24/09/2015
Delivery Units,Adults and Communities,Other Agencies - Third Party P,30094073,FOUR SEASONS HEALTH CARE,"2,085.72",28/09/2015
Delivery Units,Adults and Communities,Other Agencies - Third Party P,30094074,FOUR SEASONS HEALTH CARE,"2,090.08",28/09/2015
Delivery Units,Adults and Communities,Other Agencies - Third Party P,30093645,FOUR SEASONS HEALTH CARE (NO.4) LTD,"2,004.00",28/09/2015
Delivery Units,Adults and Communities,Other Agencies - Third Party P,30089919,FREEWAYS TRUST LIMITED,-29.76,10/09/2015
Delivery Units,Adults and Communities,Other Agencies - Third Party P,30091543,FREEWAYS TRUST LIMITED,"2,979.76",10/09/2015
Delivery Units,Adults and Communities,Other Agencies - Third Party P,30091544,FREEWAYS TRUST LIMITED,-900.12,10/09/2015
Delivery Units,Adults and Communities,Other Agencies - Third Party P,30091545,FREEWAYS TRUST LIMITED,829.80,10/09/2015
Delivery Units,Adults and Communities,Other Agencies - Third Party P,30091546,FREEWAYS TRUST LIMITED,"2,979.76",25/09/2015
Delivery Units,Adults and Communities,Other Agencies - Third Party P,30091547,FREEWAYS TRUST LIMITED,-900.12,25/09/2015
Delivery Units,Adults and Communities,Other Agencies - Third Party P,30091548,FREEWAYS TRUST LIMITED,829.80,25/09/2015
Delivery Units,Adults and Communities,Other Agencies - Third Party P,30090727,FREMANTLE TRUST,"2,274.44",03/09/2015
Delivery Units,Adults and Communities,Other Agencies - Third Party P,30090967,FREMANTLE TRUST,"3,052.00",04/09/2015
Delivery Units,Adults and Communities,Other Agencies - Third Party P,30090971,FREMANTLE TRUST,"16,158.92",04/09/2015
Delivery Units,Adults and Communities,Other Agencies - Third Party P,30090972,FREMANTLE TRUST,-829.91,04/09/2015
Delivery Units,Adults and Communities,Other Agencies - Third Party P,30090973,FREMANTLE TRUST,"3,992.52",04/09/2015
Delivery Units,Adults and Communities,Other Agencies - Third Party P,30090974,FREMANTLE TRUST,"37,736.40",04/09/2015
Delivery Units,Adults and Communities,Other Agencies - Third Party P,30090975,FREMANTLE TRUST,"-2,888.60",04/09/2015
Delivery Units,Adults and Communities,Other Agencies - Third Party P,30091159,FREMANTLE TRUST,"3,052.00",09/09/2015
Delivery Units,Adults and Communities,Other Agencies - Third Party P,30091160,FREMANTLE TRUST,934.71,09/09/2015
Delivery Units,Adults and Communities,Other Agencies - Third Party P,30091161,FREMANTLE TRUST,"1,661.71",09/09/2015
Delivery Units,Adults and Communities,Other Agencies - Third Party P,30091162,FREMANTLE TRUST,"3,052.00",09/09/2015
Delivery Units,Adults and Communities,Other Agencies - Third Party P,30091163,FREMANTLE TRUST,"2,908.00",09/09/2015
Delivery Units,Adults and Communities,Other Agencies - Third Party P,30091164,FREMANTLE TRUST,"3,052.00",09/09/2015
Delivery Units,Adults and Communities,Other Agencies - Third Party P,30091166,FREMANTLE TRUST,"3,000.00",09/09/2015
Delivery Units,Adults and Communities,Other Agencies - Third Party P,30091167,FREMANTLE TRUST,"2,908.00",09/09/2015
Delivery Units,Adults and Communities,Other Agencies - Third Party P,30091168,FREMANTLE TRUST,872.00,09/09/2015
Delivery Units,Adults and Communities,Other Agencies - Third Party P,30091199,FREMANTLE TRUST,"2,274.44",09/09/2015
Delivery Units,Adults and Communities,Other Agencies - Third Party P,30091200,FREMANTLE TRUST,"2,274.44",09/09/2015
Delivery Units,Adults and Communities,Other Agencies - Third Party P,30092725,FREMANTLE TRUST,"2,908.00",24/09/2015
Delivery Units,Adults and Communities,Other Agencies - Third Party P,30092726,FREMANTLE TRUST,"3,000.00",24/09/2015
Delivery Units,Adults and Communities,Other Agencies - Third Party P,30092727,FREMANTLE TRUST,"1,744.00",24/09/2015
Delivery Units,Adults and Communities,Other Agencies - Third Party P,30092728,FREMANTLE TRUST,"1,661.71",24/09/2015
Delivery Units,Adults and Communities,Other Agencies - Third Party P,30092729,FREMANTLE TRUST,"3,000.00",24/09/2015
Delivery Units,Adults and Communities,Other Agencies - Third Party P,30092730,FREMANTLE TRUST,"2,908.00",24/09/2015
Delivery Units,Adults and Communities,Other Agencies - Third Party P,30092731,FREMANTLE TRUST,"3,052.00",24/09/2015
Delivery Units,Adults and Communities,Other Agencies - Third Party P,30092732,FREMANTLE TRUST,"1,090.00",24/09/2015
Delivery Units,Adults and Communities,Other Agencies - Third Party P,30092733,FREMANTLE TRUST,-109.00,24/09/2015
Delivery Units,Adults and Communities,Other Agencies - Third Party P,30092734,FREMANTLE TRUST,"3,000.00",24/09/2015
Delivery Units,Adults and Communities,Other Agencies - Third Party P,30092735,FREMANTLE TRUST,"2,908.00",24/09/2015
Delivery Units,Adults and Communities,Other Agencies - Third Party P,30092736,FREMANTLE TRUST,311.57,24/09/2015
Delivery Units,Adults and Communities,Other Agencies - Third Party P,30092754,FREMANTLE TRUST,"2,274.44",24/09/2015
Delivery Units,Adults and Communities,Other Agencies - Third Party P,30092755,FREMANTLE TRUST,"1,525.20",24/09/2015
Delivery Units,Adults and Communities,Other Agencies - Third Party P,30092756,FREMANTLE TRUST,"-1,525.20",24/09/2015
Delivery Units,Adults and Communities,Other Agencies - Third Party P,30091458,FRIERN RESIDENTIAL CARE HOME,"2,103.30",10/09/2015
Delivery Units,Adults and Communities,Other Agencies - Third Party P,30091459,FRIERN RESIDENTIAL CARE HOME,"3,985.71",10/09/2015
Delivery Units,Adults and Communities,Other Agencies - Third Party P,30091466,FRIERN RESIDENTIAL CARE HOME,"1,260.37",10/09/2015
Delivery Units,Adults and Communities,Other Agencies - Third Party P,30091467,FRIERN RESIDENTIAL CARE HOME,-559.33,10/09/2015
Delivery Units,Adults and Communities,Other Agencies - Third Party P,30091476,FRIERN RESIDENTIAL CARE HOME,"2,216.41",10/09/2015
Delivery Units,Adults and Communities,Other Agencies - Third Party P,30091477,FRIERN RESIDENTIAL CARE HOME,-559.33,10/09/2015
Delivery Units,Adults and Communities,Other Agencies - Third Party P,30091483,FRIERN RESIDENTIAL CARE HOME,"2,103.31",10/09/2015
Delivery Units,Adults and Communities,Other Agencies - Third Party P,30091484,FRIERN RESIDENTIAL CARE HOME,-356.28,10/09/2015
Delivery Units,Adults and Communities,Other Agencies - Third Party P,30091498,FRIERN RESIDENTIAL CARE HOME,"1,366.75",10/09/2015
Delivery Units,Adults and Communities,Other Agencies - Third Party P,30091499,FRIERN RESIDENTIAL CARE HOME,-405.66,10/09/2015
Delivery Units,Adults and Communities,Other Agencies - Third Party P,30091549,FRIERN RESIDENTIAL CARE HOME,"2,216.41",10/09/2015
Delivery Units,Adults and Communities,Other Agencies - Third Party P,30091550,FRIERN RESIDENTIAL CARE HOME,-559.33,10/09/2015
Delivery Units,Adults and Communities,Other Agencies - Third Party P,30091468,GENTLE HANDS CARE AGENCY,"1,400.00",10/09/2015
Delivery Units,Adults and Communities,Other Agencies - Third Party P,30091469,GENTLE HANDS CARE AGENCY,468.00,10/09/2015
Delivery Units,Adults and Communities,Other Agencies - Third Party P,30091737,GENTLE HANDS CARE HOMES LIMITED,"4,394.00",11/09/2015
Delivery Units,Adults and Communities,Other Agencies - Third Party P,30091337,GLEBELANDS,"12,000.00",10/09/2015
Delivery Units,Adults and Communities,Other Agencies - Third Party P,30090537,GLOUCESTERSHIRE GROUP HOMES,"4,189.16",03/09/2015
Delivery Units,Adults and Communities,Other Agencies - Third Party P,30090538,GLOUCESTERSHIRE GROUP HOMES,-823.32,03/09/2015
Delivery Units,Adults and Communities,Other Agencies - Third Party P,30092247,HARDEN,"4,343.12",24/09/2015
Delivery Units,Adults and Communities,Other Agencies - Third Party P,30088763,HEADWAY EAST LONDON,376.08,11/09/2015
Delivery Units,Adults and Communities,Other Agencies - Third Party P,30088764,HEADWAY EAST LONDON,376.08,11/09/2015
Delivery Units,Adults and Communities,Other Agencies - Third Party P,30088765,HEADWAY EAST LONDON,340.00,11/09/2015
Delivery Units,Adults and Communities,Other Agencies - Third Party P,30092189,HENRY NIHILL HOUSE,"2,002.60",24/09/2015
Delivery Units,Adults and Communities,Other Agencies - Third Party P,30092190,HENRY NIHILL HOUSE,-505.20,24/09/2015
Delivery Units,Adults and Communities,Other Agencies - Third Party P,30093959,HENRY NIHILL HOUSE,"2,321.92",28/09/2015
Delivery Units,Adults and Communities,Other Agencies - Third Party P,30093520,HIGH GABLE HOUSE,"3,060.00",28/09/2015
Delivery Units,Adults and Communities,Other Agencies - Third Party P,30093521,HIGH GABLE HOUSE,-505.20,28/09/2015
Delivery Units,Adults and Communities,Other Agencies - Third Party P,30093523,HIGH GABLE HOUSE,"3,060.00",28/09/2015
Delivery Units,Adults and Communities,Other Agencies - Third Party P,30093524,HIGH GABLE HOUSE,-505.20,28/09/2015
Delivery Units,Adults and Communities,Other Agencies - Third Party P,30093527,HIGH GABLE HOUSE,"3,060.00",28/09/2015
Delivery Units,Adults and Communities,Other Agencies - Third Party P,30093528,HIGH GABLE HOUSE,-505.20,28/09/2015
Delivery Units,Adults and Communities,Other Agencies - Third Party P,30091134,HILLGREEN CARE LTD,"7,093.24",09/09/2015
Delivery Units,Adults and Communities,Other Agencies - Third Party P,30092463,HILLVIEW COURT NURSING HOME,"4,200.00",24/09/2015
Delivery Units,Adults and Communities,Other Agencies - Third Party P,30092464,HILLVIEW COURT NURSING HOME,-321.20,24/09/2015
Delivery Units,Adults and Communities,Other Agencies - Third Party P,30091187,HILTON LODGE LTD.,"2,181.52",10/09/2015
Delivery Units,Adults and Communities,Other Agencies - Third Party P,30091188,HILTON LODGE LTD.,-578.80,10/09/2015
Delivery Units,Adults and Communities,Other Agencies - Third Party P,30091189,HILTON LODGE LTD.,"2,181.52",09/09/2015
Delivery Units,Adults and Communities,Other Agencies - Third Party P,30091190,HILTON LODGE LTD.,-578.80,09/09/2015
Delivery Units,Adults and Communities,Other Agencies - Third Party P,30091191,HILTON LODGE LTD.,"2,182.40",10/09/2015
Delivery Units,Adults and Communities,Other Agencies - Third Party P,30091192,HILTON LODGE LTD.,-781.56,10/09/2015
Delivery Units,Adults and Communities,Other Agencies - Third Party P,30091194,HILTON LODGE LTD.,"2,184.04",10/09/2015
Delivery Units,Adults and Communities,Other Agencies - Third Party P,30091195,HILTON LODGE LTD.,"2,184.04",10/09/2015
Delivery Units,Adults and Communities,Other Agencies - Third Party P,30091196,HILTON LODGE LTD.,"2,256.04",10/09/2015
Delivery Units,Adults and Communities,Other Agencies - Third Party P,30091198,HILTON LODGE LTD.,"2,184.04",10/09/2015
Delivery Units,Adults and Communities,Other Agencies - Third Party P,30091201,HILTON LODGE LTD.,"2,184.04",10/09/2015
Delivery Units,Adults and Communities,Other Agencies - Third Party P,30091219,HILTON LODGE LTD.,"2,184.04",10/09/2015
Delivery Units,Adults and Communities,Other Agencies - Third Party P,30091220,HILTON LODGE LTD.,"2,184.04",10/09/2015
Delivery Units,Adults and Communities,Other Agencies - Third Party P,30091780,HOLLY HOUSE,"1,748.60",11/09/2015
Delivery Units,Adults and Communities,Other Agencies - Third Party P,30091725,HOLLY HOUSE CARE HOME,"2,730.05",11/09/2015
Delivery Units,Adults and Communities,Other Agencies - Third Party P,30090736,HOLLY HOUSE RESIDENTIAL CARE HOME,"3,535.06",03/09/2015
Delivery Units,Adults and Communities,Other Agencies - Third Party P,30090034,HOME FARM TRUST LTD,"8,034.76",02/09/2015
Delivery Units,Adults and Communities,Other Agencies - Third Party P,30090035,HOME FARM TRUST LTD,-321.80,02/09/2015
Delivery Units,Adults and Communities,Other Agencies - Third Party P,30090038,HOME FARM TRUST LTD,"2,657.40",02/09/2015
Delivery Units,Adults and Communities,Other Agencies - Third Party P,30090039,HOME FARM TRUST LTD,-321.80,02/09/2015
Delivery Units,Adults and Communities,Other Agencies - Third Party P,30091551,HOME FROM HOME CARE LTD,"9,769.00",10/09/2015
Delivery Units,Adults and Communities,Other Agencies - Third Party P,30091552,HOME FROM HOME CARE LTD,-350.60,10/09/2015
Delivery Units,Adults and Communities,Other Agencies - Third Party P,30087896,HOUSING 21 (BARNET),-164.00,07/09/2015
Delivery Units,Adults and Communities,Other Agencies - Third Party P,30088182,HOUSING 21 (BARNET),-164.00,07/09/2015
Delivery Units,Adults and Communities,Other Agencies - Third Party P,30091056,HOUSING 21 (BARNET),-164.00,07/09/2015
Delivery Units,Adults and Communities,Other Agencies - Third Party P,30091057,HOUSING 21 (BARNET),-164.00,07/09/2015
Delivery Units,Adults and Communities,Other Agencies - Third Party P,30091114,HOUSING 21 (BARNET),-164.00,08/09/2015
Delivery Units,Adults and Communities,Other Agencies - Third Party P,30091625,INDEPENDENCE HOMES LIMITED,"2,900.00",11/09/2015
Delivery Units,Adults and Communities,Other Agencies - Third Party P,30091626,INDEPENDENCE HOMES LIMITED,"5,400.00",11/09/2015
Delivery Units,Adults and Communities,Other Agencies - Third Party P,30092759,INDIVIDUALISED CARE LIMITED,745.00,24/09/2015
Delivery Units,Adults and Communities,Other Agencies - Third Party P,30092760,INDIVIDUALISED CARE LIMITED,"2,400.00",24/09/2015
Delivery Units,Adults and Communities,Other Agencies - Third Party P,30092761,INDIVIDUALISED CARE LIMITED,"1,000.00",24/09/2015
Delivery Units,Adults and Communities,Other Agencies - Third Party P,30092762,INDIVIDUALISED CARE LIMITED,357.50,24/09/2015
Delivery Units,Adults and Communities,Other Agencies - Third Party P,30092763,INDIVIDUALISED CARE LIMITED,712.00,24/09/2015
Delivery Units,Adults and Communities,Other Agencies - Third Party P,30092764,INDIVIDUALISED CARE LIMITED,700.00,24/09/2015
Delivery Units,Adults and Communities,Other Agencies - Third Party P,30092766,INDIVIDUALISED CARE LIMITED,700.00,24/09/2015
Delivery Units,Adults and Communities,Other Agencies - Third Party P,30092767,INDIVIDUALISED CARE LIMITED,200.00,24/09/2015
Delivery Units,Adults and Communities,Other Agencies - Third Party P,30092768,INDIVIDUALISED CARE LIMITED,224.00,24/09/2015
Delivery Units,Adults and Communities,Other Agencies - Third Party P,30092769,INDIVIDUALISED CARE LIMITED,647.50,24/09/2015
Delivery Units,Adults and Communities,Other Agencies - Third Party P,30092771,INDIVIDUALISED CARE LIMITED,214.00,24/09/2015
Delivery Units,Adults and Communities,Other Agencies - Third Party P,30092772,INDIVIDUALISED CARE LIMITED,600.00,24/09/2015
Delivery Units,Adults and Communities,Other Agencies - Third Party P,30092773,INDIVIDUALISED CARE LIMITED,560.00,24/09/2015
Delivery Units,Adults and Communities,Other Agencies - Third Party P,30092774,INDIVIDUALISED CARE LIMITED,600.00,24/09/2015
Delivery Units,Adults and Communities,Other Agencies - Third Party P,30092775,INDIVIDUALISED CARE LIMITED,888.00,24/09/2015
Delivery Units,Adults and Communities,Other Agencies - Third Party P,30092776,INDIVIDUALISED CARE LIMITED,300.00,24/09/2015
Delivery Units,Adults and Communities,Other Agencies - Third Party P,30092777,INDIVIDUALISED CARE LIMITED,140.00,24/09/2015
Delivery Units,Adults and Communities,Other Agencies - Third Party P,30092778,INDIVIDUALISED CARE LIMITED,667.00,24/09/2015
Delivery Units,Adults and Communities,Other Agencies - Third Party P,30092779,INDIVIDUALISED CARE LIMITED,408.00,24/09/2015
Delivery Units,Adults and Communities,Other Agencies - Third Party P,30092780,INDIVIDUALISED CARE LIMITED,"1,000.00",24/09/2015
Delivery Units,Adults and Communities,Other Agencies - Third Party P,30092781,INDIVIDUALISED CARE LIMITED,"1,100.00",24/09/2015
Delivery Units,Adults and Communities,Other Agencies - Third Party P,30092782,INDIVIDUALISED CARE LIMITED,500.00,24/09/2015
Delivery Units,Adults and Communities,Other Agencies - Third Party P,30092783,INDIVIDUALISED CARE LIMITED,300.00,24/09/2015
Delivery Units,Adults and Communities,Other Agencies - Third Party P,30092784,INDIVIDUALISED CARE LIMITED,800.00,24/09/2015
Delivery Units,Adults and Communities,Other Agencies - Third Party P,30092785,INDIVIDUALISED CARE LIMITED,716.00,24/09/2015
Delivery Units,Adults and Communities,Other Agencies - Third Party P,30092786,INDIVIDUALISED CARE LIMITED,700.00,24/09/2015
Delivery Units,Adults and Communities,Other Agencies - Third Party P,30092788,INDIVIDUALISED CARE LIMITED,510.00,24/09/2015
Delivery Units,Adults and Communities,Other Agencies - Third Party P,30092789,INDIVIDUALISED CARE LIMITED,455.00,24/09/2015
Delivery Units,Adults and Communities,Other Agencies - Third Party P,30092790,INDIVIDUALISED CARE LIMITED,525.00,24/09/2015
Delivery Units,Adults and Communities,Other Agencies - Third Party P,30092791,INDIVIDUALISED CARE LIMITED,300.00,24/09/2015
Delivery Units,Adults and Communities,Other Agencies - Third Party P,30092792,INDIVIDUALISED CARE LIMITED,800.00,24/09/2015
Delivery Units,Adults and Communities,Other Agencies - Third Party P,30092793,INDIVIDUALISED CARE LIMITED,300.00,24/09/2015
Delivery Units,Adults and Communities,Other Agencies - Third Party P,30092794,INDIVIDUALISED CARE LIMITED,387.00,24/09/2015
Delivery Units,Adults and Communities,Other Agencies - Third Party P,30092795,INDIVIDUALISED CARE LIMITED,965.00,24/09/2015
Delivery Units,Adults and Communities,Other Agencies - Third Party P,30092796,INDIVIDUALISED CARE LIMITED,656.00,24/09/2015
Delivery Units,Adults and Communities,Other Agencies - Third Party P,30092826,INDIVIDUALISED CARE LIMITED,63.75,24/09/2015
Delivery Units,Adults and Communities,Other Agencies - Third Party P,30093627,INSIGHT SPECIALIST BEHAVIOURAL,"5,944.08",28/09/2015
Delivery Units,Adults and Communities,Other Agencies - Third Party P,30092186,INTEGRATED SERVICES PROGRAMME,"2,600.08",24/09/2015
Delivery Units,Adults and Communities,Other Agencies - Third Party P,30092187,INTEGRATED SERVICES PROGRAMME,"2,600.08",30/09/2015
Delivery Units,Adults and Communities,Other Agencies - Third Party P,30092819,ISLINGTON OUTLOOK (ST JOHNS),879.60,24/09/2015
Delivery Units,Adults and Communities,Other Agencies - Third Party P,30092820,ISLINGTON OUTLOOK (ST JOHNS),879.60,24/09/2015
Delivery Units,Adults and Communities,Other Agencies - Third Party P,30092821,ISLINGTON OUTLOOK (ST JOHNS),769.65,24/09/2015
Delivery Units,Adults and Communities,Other Agencies - Third Party P,30091620,IVER HOUSE LTD,"3,512.88",11/09/2015
Delivery Units,Adults and Communities,Other Agencies - Third Party P,30091621,IVER HOUSE LTD,-361.40,11/09/2015
Delivery Units,Adults and Communities,Other Agencies - Third Party P,30090527,JANITH HOMES LTD,"2,650.19",03/09/2015
Delivery Units,Adults and Communities,Other Agencies - Third Party P,30090528,JANITH HOMES LTD,-356.19,03/09/2015
Delivery Units,Adults and Communities,Other Agencies - Third Party P,30091333,JEMINI RESPONSE,"9,100.00",16/09/2015
Delivery Units,Adults and Communities,Other Agencies - Third Party P,30093930,JEMINI RESPONSE,"9,100.00",29/09/2015
Delivery Units,Adults and Communities,Other Agencies - Third Party P,30090629,JEWISH CARE,"2,318.93",03/09/2015
Delivery Units,Adults and Communities,Other Agencies - Third Party P,30090632,JEWISH CARE,"-4,668.38",03/09/2015
Delivery Units,Adults and Communities,Other Agencies - Third Party P,30090633,JEWISH CARE,"3,002.86",03/09/2015
Delivery Units,Adults and Communities,Other Agencies - Third Party P,30090634,JEWISH CARE,461.08,03/09/2015
Delivery Units,Adults and Communities,Other Agencies - Third Party P,30090639,JEWISH CARE,-54.98,03/09/2015
Delivery Units,Adults and Communities,Other Agencies - Third Party P,30090640,JEWISH CARE,"-1,861.77",03/09/2015
Delivery Units,Adults and Communities,Other Agencies - Third Party P,30091417,JEWISH CARE,"1,392.32",10/09/2015
Delivery Units,Adults and Communities,Other Agencies - Third Party P,30091418,JEWISH CARE,549.81,10/09/2015
Delivery Units,Adults and Communities,Other Agencies - Third Party P,30091419,JEWISH CARE,"1,146.62",10/09/2015
Delivery Units,Adults and Communities,Other Agencies - Third Party P,30091686,JEWISH CARE,"4,226.66",11/09/2015
Delivery Units,Adults and Communities,Other Agencies - Third Party P,30091688,JEWISH CARE,"2,102.00",11/09/2015
Delivery Units,Adults and Communities,Other Agencies - Third Party P,30091689,JEWISH CARE,"3,200.00",11/09/2015
Delivery Units,Adults and Communities,Other Agencies - Third Party P,30091697,JEWISH CARE,"2,199.24",11/09/2015
Delivery Units,Adults and Communities,Other Agencies - Third Party P,30091698,JEWISH CARE,"3,360.00",11/09/2015
Delivery Units,Adults and Communities,Other Agencies - Third Party P,30091699,JEWISH CARE,-321.80,11/09/2015
Delivery Units,Adults and Communities,Other Agencies - Third Party P,30091701,JEWISH CARE,"2,133.84",11/09/2015
Delivery Units,Adults and Communities,Other Agencies - Third Party P,30091702,JEWISH CARE,-505.20,11/09/2015
Delivery Units,Adults and Communities,Other Agencies - Third Party P,30093877,JEWISH CARE,"1,719.93",28/09/2015
Delivery Units,Adults and Communities,Other Agencies - Third Party P,30090523,JIGSAW CREATIVE CARE LIMITED,"2,998.68",03/09/2015
Delivery Units,Adults and Communities,Other Agencies - Third Party P,30090524,JIGSAW CREATIVE CARE LIMITED,"1,412.00",03/09/2015
Delivery Units,Adults and Communities,Other Agencies - Third Party P,30090525,JIGSAW CREATIVE CARE LIMITED,"2,783.00",03/09/2015
Delivery Units,Adults and Communities,Other Agencies - Third Party P,30091789,JIGSAW CREATIVE CARE LIMITED,"2,998.68",14/09/2015
Delivery Units,Adults and Communities,Other Agencies - Third Party P,30091790,JIGSAW CREATIVE CARE LIMITED,"1,412.00",14/09/2015
Delivery Units,Adults and Communities,Other Agencies - Third Party P,30091791,JIGSAW CREATIVE CARE LIMITED,"2,783.00",14/09/2015
Delivery Units,Adults and Communities,Other Agencies - Third Party P,30092883,JIGSAW CREATIVE CARE LIMITED,"1,412.00",25/09/2015
Delivery Units,Adults and Communities,Other Agencies - Third Party P,30092884,JIGSAW CREATIVE CARE LIMITED,"2,783.00",25/09/2015
Delivery Units,Adults and Communities,Other Agencies - Third Party P,30092886,JIGSAW CREATIVE CARE LIMITED,"2,998.68",25/09/2015
Delivery Units,Adults and Communities,Other Agencies - Third Party P,30092887,JIGSAW CREATIVE CARE LIMITED,"2,783.00",25/09/2015
Delivery Units,Adults and Communities,Other Agencies - Third Party P,30092889,JIGSAW CREATIVE CARE LIMITED,"2,998.68",25/09/2015
Delivery Units,Adults and Communities,Other Agencies - Third Party P,30092890,JIGSAW CREATIVE CARE LIMITED,"1,412.00",25/09/2015
Delivery Units,Adults and Communities,Other Agencies - Third Party P,30094070,KIRKLEY MANOR,"2,001.92",28/09/2015
Delivery Units,Adults and Communities,Other Agencies - Third Party P,30094071,KIRKLEY MANOR,-505.20,28/09/2015
Delivery Units,Adults and Communities,Other Agencies - Third Party P,30090572,KISHARON DAY SCHOOL,"1,464.03",03/09/2015
Delivery Units,Adults and Communities,Other Agencies - Third Party P,30090573,KISHARON DAY SCHOOL,"4,260.72",03/09/2015
Delivery Units,Adults and Communities,Other Agencies - Third Party P,30090574,KISHARON DAY SCHOOL,"2,144.10",03/09/2015
Delivery Units,Adults and Communities,Other Agencies - Third Party P,30090575,KISHARON DAY SCHOOL,"2,284.24",03/09/2015
Delivery Units,Adults and Communities,Other Agencies - Third Party P,30090576,KISHARON DAY SCHOOL,686.88,03/09/2015
Delivery Units,Adults and Communities,Other Agencies - Third Party P,30090577,KISHARON DAY SCHOOL,"1,373.49",03/09/2015
Delivery Units,Adults and Communities,Other Agencies - Third Party P,30090578,KISHARON DAY SCHOOL,794.08,03/09/2015
Delivery Units,Adults and Communities,Other Agencies - Third Party P,30090579,KISHARON DAY SCHOOL,381.54,03/09/2015
Delivery Units,Adults and Communities,Other Agencies - Third Party P,30090580,KISHARON DAY SCHOOL,"1,373.49",03/09/2015
Delivery Units,Adults and Communities,Other Agencies - Third Party P,30090581,KISHARON DAY SCHOOL,"1,679.87",03/09/2015
Delivery Units,Adults and Communities,Other Agencies - Third Party P,30090582,KISHARON DAY SCHOOL,"1,340.18",03/09/2015
Delivery Units,Adults and Communities,Other Agencies - Third Party P,30090583,KISHARON DAY SCHOOL,"1,241.16",03/09/2015
Delivery Units,Adults and Communities,Other Agencies - Third Party P,30090584,KISHARON DAY SCHOOL,"1,369.23",03/09/2015
Delivery Units,Adults and Communities,Other Agencies - Third Party P,30090586,KISHARON DAY SCHOOL,"1,133.60",03/09/2015
Delivery Units,Adults and Communities,Other Agencies - Third Party P,30090587,KISHARON DAY SCHOOL,"1,373.68",03/09/2015
Delivery Units,Adults and Communities,Other Agencies - Third Party P,30090953,KISHARON DAY SCHOOL,397.11,04/09/2015
Delivery Units,Adults and Communities,Other Agencies - Third Party P,30090954,KISHARON DAY SCHOOL,733.72,04/09/2015
Delivery Units,Adults and Communities,Other Agencies - Third Party P,30090955,KISHARON DAY SCHOOL,"1,275.96",04/09/2015
Delivery Units,Adults and Communities,Other Agencies - Third Party P,30091640,KISHARON DAY SCHOOL,"3,097.92",11/09/2015
Delivery Units,Adults and Communities,Other Agencies - Third Party P,30091641,KISHARON DAY SCHOOL,-356.28,11/09/2015
Delivery Units,Adults and Communities,Other Agencies - Third Party P,30091642,KISHARON DAY SCHOOL,"5,044.10",11/09/2015
Delivery Units,Adults and Communities,Other Agencies - Third Party P,30091643,KISHARON DAY SCHOOL,-356.28,11/09/2015
Delivery Units,Adults and Communities,Other Agencies - Third Party P,30091644,KISHARON DAY SCHOOL,"3,097.92",11/09/2015
Delivery Units,Adults and Communities,Other Agencies - Third Party P,30091645,KISHARON DAY SCHOOL,-356.28,11/09/2015
Delivery Units,Adults and Communities,Other Agencies - Third Party P,30091646,KISHARON DAY SCHOOL,"3,100.71",11/09/2015
Delivery Units,Adults and Communities,Other Agencies - Third Party P,30091647,KISHARON DAY SCHOOL,-356.28,11/09/2015
Delivery Units,Adults and Communities,Other Agencies - Third Party P,30093631,KISHARON DAY SCHOOL,"3,098.05",28/09/2015
Delivery Units,Adults and Communities,Other Agencies - Third Party P,30093632,KISHARON DAY SCHOOL,-353.62,28/09/2015
Delivery Units,Adults and Communities,Other Agencies - Third Party P,30090994,LANGDON COMMUNITY LTD,"1,641.60",07/09/2015
Delivery Units,Adults and Communities,Other Agencies - Third Party P,30090995,LANGDON COMMUNITY LTD,243.20,07/09/2015
Delivery Units,Adults and Communities,Other Agencies - Third Party P,30090996,LANGDON COMMUNITY LTD,851.20,07/09/2015
Delivery Units,Adults and Communities,Other Agencies - Third Party P,30090997,LANGDON COMMUNITY LTD,"2,979.20",07/09/2015
Delivery Units,Adults and Communities,Other Agencies - Third Party P,30090998,LANGDON COMMUNITY LTD,"2,403.92",07/09/2015
Delivery Units,Adults and Communities,Other Agencies - Third Party P,30091000,LANGDON COMMUNITY LTD,"6,335.32",07/09/2015
Delivery Units,Adults and Communities,Other Agencies - Third Party P,30091054,LANGDON COMMUNITY LTD,"1,276.80",07/09/2015
Delivery Units,Adults and Communities,Other Agencies - Third Party P,30091055,LANGDON COMMUNITY LTD,956.38,07/09/2015
Delivery Units,Adults and Communities,Other Agencies - Third Party P,30091058,LANGDON COMMUNITY LTD,"3,411.49",07/09/2015
Delivery Units,Adults and Communities,Other Agencies - Third Party P,30091059,LANGDON COMMUNITY LTD,"1,763.20",07/09/2015
Delivery Units,Adults and Communities,Other Agencies - Third Party P,30091060,LANGDON COMMUNITY LTD,425.60,07/09/2015
Delivery Units,Adults and Communities,Other Agencies - Third Party P,30091061,LANGDON COMMUNITY LTD,"1,772.32",07/09/2015
Delivery Units,Adults and Communities,Other Agencies - Third Party P,30091062,LANGDON COMMUNITY LTD,"2,097.60",07/09/2015
Delivery Units,Adults and Communities,Other Agencies - Third Party P,30091063,LANGDON COMMUNITY LTD,"5,002.64",07/09/2015
Delivery Units,Adults and Communities,Other Agencies - Third Party P,30091075,LANGDON COMMUNITY LTD,"1,315.12",07/09/2015
Delivery Units,Adults and Communities,Other Agencies - Third Party P,30091076,LANGDON COMMUNITY LTD,608.00,07/09/2015
Delivery Units,Adults and Communities,Other Agencies - Third Party P,30091077,LANGDON COMMUNITY LTD,"1,064.00",07/09/2015
Delivery Units,Adults and Communities,Other Agencies - Third Party P,30090254,LCS PARTNERSHIPS LTD,300.00,03/09/2015
Delivery Units,Adults and Communities,Other Agencies - Third Party P,30091979,LCS PARTNERSHIPS LTD,300.00,22/09/2015
Delivery Units,Adults and Communities,Other Agencies - Third Party P,30092223,LCS PARTNERSHIPS LTD,856.00,24/09/2015
Delivery Units,Adults and Communities,Other Agencies - Third Party P,30092224,LCS PARTNERSHIPS LTD,856.00,24/09/2015
Delivery Units,Adults and Communities,Other Agencies - Third Party P,30092225,LCS PARTNERSHIPS LTD,856.00,24/09/2015
Delivery Units,Adults and Communities,Other Agencies - Third Party P,30092226,LCS PARTNERSHIPS LTD,856.00,24/09/2015
Delivery Units,Adults and Communities,Other Agencies - Third Party P,30092227,LCS PARTNERSHIPS LTD,896.00,24/09/2015
Delivery Units,Adults and Communities,Other Agencies - Third Party P,30092228,LCS PARTNERSHIPS LTD,180.00,24/09/2015
Delivery Units,Adults and Communities,Other Agencies - Third Party P,30092229,LCS PARTNERSHIPS LTD,896.00,24/09/2015
Delivery Units,Adults and Communities,Other Agencies - Third Party P,30092230,LCS PARTNERSHIPS LTD,896.00,24/09/2015
Delivery Units,Adults and Communities,Other Agencies - Third Party P,30092231,LCS PARTNERSHIPS LTD,896.00,24/09/2015
Delivery Units,Adults and Communities,Other Agencies - Third Party P,30092232,LCS PARTNERSHIPS LTD,896.00,24/09/2015
Delivery Units,Adults and Communities,Other Agencies - Third Party P,30092233,LCS PARTNERSHIPS LTD,896.00,24/09/2015
Delivery Units,Adults and Communities,Other Agencies - Third Party P,30092234,LCS PARTNERSHIPS LTD,896.00,24/09/2015
Delivery Units,Adults and Communities,Other Agencies - Third Party P,30092235,LCS PARTNERSHIPS LTD,896.00,24/09/2015
Delivery Units,Adults and Communities,Other Agencies - Third Party P,30092236,LCS PARTNERSHIPS LTD,896.00,24/09/2015
Delivery Units,Adults and Communities,Other Agencies - Third Party P,30092237,LCS PARTNERSHIPS LTD,896.00,24/09/2015
Delivery Units,Adults and Communities,Other Agencies - Third Party P,30090716,LEEMING BAR CARE HOME,"1,939.32",03/09/2015
Delivery Units,Adults and Communities,Other Agencies - Third Party P,30090811,LEWIS.W.HAMMERSON MEMORIAL HOME,"2,216.41",03/09/2015
Delivery Units,Adults and Communities,Other Agencies - Third Party P,30090812,LEWIS.W.HAMMERSON MEMORIAL HOME,"2,216.42",03/09/2015
Delivery Units,Adults and Communities,Other Agencies - Third Party P,30090813,LEWIS.W.HAMMERSON MEMORIAL HOME,-927.48,03/09/2015
Delivery Units,Adults and Communities,Other Agencies - Third Party P,30090814,LEWIS.W.HAMMERSON MEMORIAL HOME,"2,200.21",03/09/2015
Delivery Units,Adults and Communities,Other Agencies - Third Party P,30090815,LEWIS.W.HAMMERSON MEMORIAL HOME,-527.80,03/09/2015
Delivery Units,Adults and Communities,Other Agencies - Third Party P,30090816,LEWIS.W.HAMMERSON MEMORIAL HOME,"2,216.41",03/09/2015
Delivery Units,Adults and Communities,Other Agencies - Third Party P,30090817,LEWIS.W.HAMMERSON MEMORIAL HOME,"2,216.41",03/09/2015
Delivery Units,Adults and Communities,Other Agencies - Third Party P,30094085,LIFESTYLE CARE 2011 PLC,"2,138.00",28/09/2015
Delivery Units,Adults and Communities,Other Agencies - Third Party P,30094086,LIFESTYLE CARE 2011 PLC,"2,138.00",28/09/2015
Delivery Units,Adults and Communities,Other Agencies - Third Party P,30094075,LIFESTYLE CARE PLC,"2,318.93",28/09/2015
Delivery Units,Adults and Communities,Other Agencies - Third Party P,30094076,LIFESTYLE CARE PLC,"2,318.93",28/09/2015
Delivery Units,Adults and Communities,Other Agencies - Third Party P,30094077,LIFESTYLE CARE PLC,"2,570.39",28/09/2015
Delivery Units,Adults and Communities,Other Agencies - Third Party P,30094078,LIFESTYLE CARE PLC,"2,318.93",28/09/2015
Delivery Units,Adults and Communities,Other Agencies - Third Party P,30094079,LIFESTYLE CARE PLC,"2,318.93",28/09/2015
Delivery Units,Adults and Communities,Other Agencies - Third Party P,30094080,LIFESTYLE CARE PLC,"2,570.70",28/09/2015
Delivery Units,Adults and Communities,Other Agencies - Third Party P,30094081,LIFESTYLE CARE PLC,"2,318.93",28/09/2015
Delivery Units,Adults and Communities,Other Agencies - Third Party P,30094083,LIFESTYLE CARE PLC,"2,318.93",28/09/2015
Delivery Units,Adults and Communities,Other Agencies - Third Party P,30094084,LIFESTYLE CARE PLC,"2,318.93",28/09/2015
Delivery Units,Adults and Communities,Other Agencies - Third Party P,30091170,LIFEWAYS,94.20,09/09/2015
Delivery Units,Adults and Communities,Other Agencies - Third Party P,30091171,LIFEWAYS,"3,145.24",09/09/2015
Delivery Units,Adults and Communities,Other Agencies - Third Party P,30091173,LIFEWAYS,"5,037.40",09/09/2015
Delivery Units,Adults and Communities,Other Agencies - Third Party P,30091174,LIFEWAYS,"5,943.00",09/09/2015
Delivery Units,Adults and Communities,Other Agencies - Third Party P,30091180,LIFEWAYS,"3,656.00",09/09/2015
Delivery Units,Adults and Communities,Other Agencies - Third Party P,30091181,LIFEWAYS,"5,766.44",09/09/2015
Delivery Units,Adults and Communities,Other Agencies - Third Party P,30091182,LIFEWAYS,"2,377.20",09/09/2015
Delivery Units,Adults and Communities,Other Agencies - Third Party P,30091183,LIFEWAYS,"4,828.24",09/09/2015
Delivery Units,Adults and Communities,Other Agencies - Third Party P,30091463,LIFEWAYS,"6,930.00",10/09/2015
Delivery Units,Adults and Communities,Other Agencies - Third Party P,30094050,LIFEWAYS,"3,145.24",28/09/2015
Delivery Units,Adults and Communities,Other Agencies - Third Party P,30094052,LIFEWAYS,"5,037.40",28/09/2015
Delivery Units,Adults and Communities,Other Agencies - Third Party P,30094053,LIFEWAYS,"5,943.00",28/09/2015
Delivery Units,Adults and Communities,Other Agencies - Third Party P,30094059,LIFEWAYS,"3,656.00",28/09/2015
Delivery Units,Adults and Communities,Other Agencies - Third Party P,30094060,LIFEWAYS,"5,766.44",28/09/2015
Delivery Units,Adults and Communities,Other Agencies - Third Party P,30094061,LIFEWAYS,"2,377.20",28/09/2015
Delivery Units,Adults and Communities,Other Agencies - Third Party P,30094062,LIFEWAYS,"4,828.24",28/09/2015
Delivery Units,Adults and Communities,Other Agencies - Third Party P,30087580,LIONCARE LIMITED,"1,308.04",01/09/2015
Delivery Units,Adults and Communities,Other Agencies - Third Party P,30091955,LIONCARE LIMITED,"1,562.48",15/09/2015
Delivery Units,Adults and Communities,Other Agencies - Third Party P,30091956,LIONCARE LIMITED,"1,562.48",15/09/2015
Delivery Units,Adults and Communities,Other Agencies - Third Party P,30091957,LIONCARE LIMITED,"1,053.60",30/09/2015
Delivery Units,Adults and Communities,Other Agencies - Third Party P,30091958,LIONCARE LIMITED,"4,628.36",30/09/2015
Delivery Units,Adults and Communities,Other Agencies - Third Party P,30093921,LIVABILITY,"2,400.00",28/09/2015
Delivery Units,Adults and Communities,Other Agencies - Third Party P,30093922,LIVABILITY,"3,189.32",28/09/2015
Delivery Units,Adults and Communities,Other Agencies - Third Party P,30093923,LIVABILITY,-505.20,28/09/2015
Delivery Units,Adults and Communities,Other Agencies - Third Party P,30093924,LIVABILITY,"3,424.00",28/09/2015
Delivery Units,Adults and Communities,Other Agencies - Third Party P,30093925,LIVABILITY,"3,672.00",28/09/2015
Delivery Units,Adults and Communities,Other Agencies - Third Party P,30093926,LIVABILITY,-321.80,28/09/2015
Delivery Units,Adults and Communities,Other Agencies - Third Party P,30093936,LIVABILITY,"4,891.20",28/09/2015
Delivery Units,Adults and Communities,Other Agencies - Third Party P,30093937,LIVABILITY,"5,279.24",28/09/2015
Delivery Units,Adults and Communities,Other Agencies - Third Party P,30093621,LORRAINES CARE HOME LTD,"1,820.00",28/09/2015
Delivery Units,Adults and Communities,Other Agencies - Third Party P,30090721,M D HOMES,"3,542.86",03/09/2015
Delivery Units,Adults and Communities,Other Agencies - Third Party P,30090800,MACINTYRE CARE,"4,015.72",03/09/2015
Delivery Units,Adults and Communities,Other Agencies - Third Party P,30090801,MACINTYRE CARE,-321.80,03/09/2015
Delivery Units,Adults and Communities,Other Agencies - Third Party P,30090802,MACINTYRE CARE,"2,332.48",03/09/2015
Delivery Units,Adults and Communities,Other Agencies - Third Party P,30090803,MACINTYRE CARE,-321.80,03/09/2015
Delivery Units,Adults and Communities,Other Agencies - Third Party P,30090804,MACINTYRE CARE,750.40,03/09/2015
Delivery Units,Adults and Communities,Other Agencies - Third Party P,30090805,MACINTYRE CARE,"3,812.84",03/09/2015
Delivery Units,Adults and Communities,Other Agencies - Third Party P,30090806,MACINTYRE CARE,-321.80,03/09/2015
Delivery Units,Adults and Communities,Other Agencies - Third Party P,30090807,MACINTYRE CARE,"3,570.16",03/09/2015
Delivery Units,Adults and Communities,Other Agencies - Third Party P,30090808,MACINTYRE CARE,-321.80,03/09/2015
Delivery Units,Adults and Communities,Other Agencies - Third Party P,30090809,MACINTYRE CARE,"2,326.48",03/09/2015
Delivery Units,Adults and Communities,Other Agencies - Third Party P,30090810,MACINTYRE CARE,-321.80,03/09/2015
Delivery Units,Adults and Communities,Other Agencies - Third Party P,30093940,MACINTYRE CARE,"2,332.48",28/09/2015
Delivery Units,Adults and Communities,Other Agencies - Third Party P,30093941,MACINTYRE CARE,-321.80,28/09/2015
Delivery Units,Adults and Communities,Other Agencies - Third Party P,30093942,MACINTYRE CARE,"3,812.84",28/09/2015
Delivery Units,Adults and Communities,Other Agencies - Third Party P,30093943,MACINTYRE CARE,-321.80,28/09/2015
Delivery Units,Adults and Communities,Other Agencies - Third Party P,30093944,MACINTYRE CARE,"3,570.16",28/09/2015
Delivery Units,Adults and Communities,Other Agencies - Third Party P,30093945,MACINTYRE CARE,-321.80,28/09/2015
Delivery Units,Adults and Communities,Other Agencies - Third Party P,30093946,MACINTYRE CARE,"2,326.48",28/09/2015
Delivery Units,Adults and Communities,Other Agencies - Third Party P,30093947,MACINTYRE CARE,-321.80,28/09/2015
Delivery Units,Adults and Communities,Other Agencies - Third Party P,30091218,MADELAYNE COURT,"2,216.41",09/09/2015
Delivery Units,Adults and Communities,Other Agencies - Third Party P,30090540,MAISON MOTI LTD,"3,400.00",03/09/2015
Delivery Units,Adults and Communities,Other Agencies - Third Party P,30090563,MAISON MOTI LTD,"1,642.48",03/09/2015
Delivery Units,Adults and Communities,Other Agencies - Third Party P,30090585,MAISON MOTI LTD,"2,460.00",03/09/2015
Delivery Units,Adults and Communities,Other Agencies - Third Party P,30090592,MAISON MOTI LTD,"2,500.00",03/09/2015
Delivery Units,Adults and Communities,Other Agencies - Third Party P,30090593,MAISON MOTI LTD,"2,440.00",03/09/2015
Delivery Units,Adults and Communities,Other Agencies - Third Party P,30090594,MAISON MOTI LTD,"2,500.00",03/09/2015
Delivery Units,Adults and Communities,Other Agencies - Third Party P,30090595,MAISON MOTI LTD,"2,440.00",03/09/2015
Delivery Units,Adults and Communities,Other Agencies - Third Party P,30090598,MAISON MOTI LTD,"1,026.00",03/09/2015
Delivery Units,Adults and Communities,Other Agencies - Third Party P,30090738,MAISON MOTI LTD,343.40,03/09/2015
Delivery Units,Adults and Communities,Other Agencies - Third Party P,30091627,MAISON MOTI LTD,"3,400.00",11/09/2015
Delivery Units,Adults and Communities,Other Agencies - Third Party P,30091628,MAISON MOTI LTD,"3,260.00",11/09/2015
Delivery Units,Adults and Communities,Other Agencies - Third Party P,30091629,MAISON MOTI LTD,"3,260.00",11/09/2015
Delivery Units,Adults and Communities,Other Agencies - Third Party P,30090257,MARRILYNE LODGE,"2,554.16",01/09/2015
Delivery Units,Adults and Communities,Other Agencies - Third Party P,30090258,MARRILYNE LODGE,"2,235.12",01/09/2015
Delivery Units,Adults and Communities,Other Agencies - Third Party P,30090568,MARYVILLE CARE HOME,"2,318.93",03/09/2015
Delivery Units,Adults and Communities,Other Agencies - Third Party P,30090569,MARYVILLE CARE HOME,-559.33,03/09/2015
Delivery Units,Adults and Communities,Other Agencies - Third Party P,30090570,MARYVILLE CARE HOME,"2,512.73",03/09/2015
Delivery Units,Adults and Communities,Other Agencies - Third Party P,30090571,MARYVILLE CARE HOME,-559.33,03/09/2015
Delivery Units,Adults and Communities,Other Agencies - Third Party P,30090830,MAYFIELD ADULT SERVICES,"9,875.14",03/09/2015
Delivery Units,Adults and Communities,Other Agencies - Third Party P,30090596,MEADOWBANK TRUST,"3,199.60",03/09/2015
Delivery Units,Adults and Communities,Other Agencies - Third Party P,30090597,MEADOWBANK TRUST,-356.28,03/09/2015
Delivery Units,Adults and Communities,Other Agencies - Third Party P,30090515,MENTAL HEALTH CARE (UK) LTD,"10,610.19",03/09/2015
Delivery Units,Adults and Communities,Other Agencies - Third Party P,30093935,METHODIST HOMES FOR THE AGED,"2,001.92",28/09/2015
Delivery Units,Adults and Communities,Other Agencies - Third Party P,30093938,METHODIST HOMES FOR THE AGED,"2,500.00",28/09/2015
Delivery Units,Adults and Communities,Other Agencies - Third Party P,30093950,METHODIST HOMES FOR THE AGED,"2,321.92",28/09/2015
Delivery Units,Adults and Communities,Other Agencies - Third Party P,30093951,METHODIST HOMES FOR THE AGED,-505.20,28/09/2015
Delivery Units,Adults and Communities,Other Agencies - Third Party P,30091813,METRO RADIO CARS,163.35,14/09/2015
Delivery Units,Adults and Communities,Other Agencies - Third Party P,30091027,METROPOLITAN HOUSING TRUST,125.72,16/09/2015
Delivery Units,Adults and Communities,Other Agencies - Third Party P,30090826,MILBURY,"6,235.00",03/09/2015
Delivery Units,Adults and Communities,Other Agencies - Third Party P,30090827,MILBURY,-400.60,03/09/2015
Delivery Units,Adults and Communities,Other Agencies - Third Party P,30090966,ML HOMES LTD,"1,740.00",04/09/2015
Delivery Units,Adults and Communities,Other Agencies - Third Party P,30092809,ML HOMES LTD,"1,780.80",25/09/2015
Delivery Units,Adults and Communities,Other Agencies - Third Party P,30092810,ML HOMES LTD,"2,118.36",25/09/2015
Delivery Units,Adults and Communities,Other Agencies - Third Party P,30092811,ML HOMES LTD,"1,433.56",25/09/2015
Delivery Units,Adults and Communities,Other Agencies - Third Party P,30092812,ML HOMES LTD,"1,751.16",25/09/2015
Delivery Units,Adults and Communities,Other Agencies - Third Party P,30092813,ML HOMES LTD,"2,118.36",25/09/2015
Delivery Units,Adults and Communities,Other Agencies - Third Party P,30092814,ML HOMES LTD,"1,955.84",25/09/2015
Delivery Units,Adults and Communities,Other Agencies - Third Party P,30092815,ML HOMES LTD,"1,417.24",25/09/2015
Delivery Units,Adults and Communities,Other Agencies - Third Party P,30092816,ML HOMES LTD,"1,428.68",25/09/2015
Delivery Units,Adults and Communities,Other Agencies - Third Party P,30092817,ML HOMES LTD,"1,765.80",25/09/2015
Delivery Units,Adults and Communities,Other Agencies - Third Party P,30092818,ML HOMES LTD,"1,751.16",25/09/2015
Delivery Units,Adults and Communities,Other Agencies - Third Party P,30092822,ML HOMES LTD,"1,767.40",25/09/2015
Delivery Units,Adults and Communities,Other Agencies - Third Party P,30092824,ML HOMES LTD,"1,780.00",25/09/2015
Delivery Units,Adults and Communities,Other Agencies - Third Party P,30092825,ML HOMES LTD,"1,780.80",25/09/2015
Delivery Units,Adults and Communities,Other Agencies - Third Party P,20023659,MOREWAYS HEALTHCARE,"1,800.00",17/09/2015
Delivery Units,Adults and Communities,Other Agencies - Third Party P,20023660,MOREWAYS HEALTHCARE,"2,600.00",17/09/2015
Delivery Units,Adults and Communities,Other Agencies - Third Party P,20023662,MOREWAYS HEALTHCARE,"1,800.00",17/09/2015
Delivery Units,Adults and Communities,Other Agencies - Third Party P,20023663,MOREWAYS HEALTHCARE,"1,800.00",17/09/2015
Delivery Units,Adults and Communities,Other Agencies - Third Party P,20023664,MOREWAYS HEALTHCARE,"1,800.00",17/09/2015
Delivery Units,Adults and Communities,Other Agencies - Third Party P,20023665,MOREWAYS HEALTHCARE,"1,800.00",17/09/2015
Delivery Units,Adults and Communities,Other Agencies - Third Party P,30093027,MOREWAYS HEALTHCARE,"1,800.00",25/09/2015
Delivery Units,Adults and Communities,Other Agencies - Third Party P,30091556,NAVJYOT CARE & SUPPORT LIMITED,"4,816.00",14/09/2015
Delivery Units,Adults and Communities,Other Agencies - Third Party P,30091557,NAVJYOT CARE & SUPPORT LIMITED,"4,816.00",14/09/2015
Delivery Units,Adults and Communities,Other Agencies - Third Party P,30091726,NAZARETH HOUSE,"2,001.92",11/09/2015
Delivery Units,Adults and Communities,Other Agencies - Third Party P,30091727,NAZARETH HOUSE,"2,001.92",11/09/2015
Delivery Units,Adults and Communities,Other Agencies - Third Party P,30091728,NAZARETH HOUSE,"2,650.40",11/09/2015
Delivery Units,Adults and Communities,Other Agencies - Third Party P,30091729,NAZARETH HOUSE,"2,001.92",11/09/2015
Delivery Units,Adults and Communities,Other Agencies - Third Party P,30091730,NAZARETH HOUSE,-505.20,11/09/2015
Delivery Units,Adults and Communities,Other Agencies - Third Party P,30091731,NAZARETH HOUSE,"2,001.92",11/09/2015
Delivery Units,Adults and Communities,Other Agencies - Third Party P,30091732,NAZARETH HOUSE,"-1,065.72",11/09/2015
Delivery Units,Adults and Communities,Other Agencies - Third Party P,30091733,NAZARETH HOUSE,"2,001.92",11/09/2015
Delivery Units,Adults and Communities,Other Agencies - Third Party P,30091734,NAZARETH HOUSE,"2,001.92",11/09/2015
Delivery Units,Adults and Communities,Other Agencies - Third Party P,30091873,NAZARETH HOUSE,"2,001.92",14/09/2015
Delivery Units,Adults and Communities,Other Agencies - Third Party P,20023212,NEEM TREE CARE CENTRE,"2,697.00",03/09/2015
Delivery Units,Adults and Communities,Other Agencies - Third Party P,20023213,NEEM TREE CARE CENTRE,"2,699.21",03/09/2015
Delivery Units,Adults and Communities,Other Agencies - Third Party P,30091868,NEXT STEP SUPPORT LIMITED,"2,240.00",14/09/2015
Delivery Units,Adults and Communities,Other Agencies - Third Party P,30091922,NEXT STEP SUPPORT LIMITED,"2,000.00",14/09/2015
Delivery Units,Adults and Communities,Other Agencies - Third Party P,30090542,NORTH LONDON CARE SERVICES LTD,"6,260.84",03/09/2015
Delivery Units,Adults and Communities,Other Agencies - Third Party P,30090543,NORTH LONDON CARE SERVICES LTD,-405.65,03/09/2015
Delivery Units,Adults and Communities,Other Agencies - Third Party P,30091774,NORWOOD RAVENSWOOD SCHOOLS LTD,433.03,14/09/2015
Delivery Units,Adults and Communities,Other Agencies - Third Party P,30091775,NORWOOD RAVENSWOOD SCHOOLS LTD,"-4,299.00",14/09/2015
Delivery Units,Adults and Communities,Other Agencies - Third Party P,30091776,NORWOOD RAVENSWOOD SCHOOLS LTD,"-2,866.00",14/09/2015
Delivery Units,Adults and Communities,Other Agencies - Third Party P,30091889,NORWOOD RAVENSWOOD SCHOOLS LTD,167.20,14/09/2015
Delivery Units,Adults and Communities,Other Agencies - Third Party P,30091891,NORWOOD RAVENSWOOD SCHOOLS LTD,"6,528.00",14/09/2015
Delivery Units,Adults and Communities,Other Agencies - Third Party P,30091892,NORWOOD RAVENSWOOD SCHOOLS LTD,-321.80,14/09/2015
Delivery Units,Adults and Communities,Other Agencies - Third Party P,30091893,NORWOOD RAVENSWOOD SCHOOLS LTD,"4,656.00",14/09/2015
Delivery Units,Adults and Communities,Other Agencies - Third Party P,30091894,NORWOOD RAVENSWOOD SCHOOLS LTD,-321.80,14/09/2015
Delivery Units,Adults and Communities,Other Agencies - Third Party P,30091897,NORWOOD RAVENSWOOD SCHOOLS LTD,"5,792.00",14/09/2015
Delivery Units,Adults and Communities,Other Agencies - Third Party P,30091898,NORWOOD RAVENSWOOD SCHOOLS LTD,-321.80,14/09/2015
Delivery Units,Adults and Communities,Other Agencies - Third Party P,30091899,NORWOOD RAVENSWOOD SCHOOLS LTD,"7,788.00",14/09/2015
Delivery Units,Adults and Communities,Other Agencies - Third Party P,30091900,NORWOOD RAVENSWOOD SCHOOLS LTD,-505.20,14/09/2015
Delivery Units,Adults and Communities,Other Agencies - Third Party P,30091907,NORWOOD RAVENSWOOD SCHOOLS LTD,"4,748.00",14/09/2015
Delivery Units,Adults and Communities,Other Agencies - Third Party P,30091908,NORWOOD RAVENSWOOD SCHOOLS LTD,-505.20,14/09/2015
Delivery Units,Adults and Communities,Other Agencies - Third Party P,30091909,NORWOOD RAVENSWOOD SCHOOLS LTD,"4,924.00",14/09/2015
Delivery Units,Adults and Communities,Other Agencies - Third Party P,30091910,NORWOOD RAVENSWOOD SCHOOLS LTD,-505.20,14/09/2015
Delivery Units,Adults and Communities,Other Agencies - Third Party P,30091913,NORWOOD RAVENSWOOD SCHOOLS LTD,"7,148.00",14/09/2015
Delivery Units,Adults and Communities,Other Agencies - Third Party P,30091914,NORWOOD RAVENSWOOD SCHOOLS LTD,-321.80,14/09/2015
Delivery Units,Adults and Communities,Other Agencies - Third Party P,30091915,NORWOOD RAVENSWOOD SCHOOLS LTD,"8,224.00",14/09/2015
Delivery Units,Adults and Communities,Other Agencies - Third Party P,30091916,NORWOOD RAVENSWOOD SCHOOLS LTD,-348.60,14/09/2015
Delivery Units,Adults and Communities,Other Agencies - Third Party P,30091919,NORWOOD RAVENSWOOD SCHOOLS LTD,"5,540.00",14/09/2015
Delivery Units,Adults and Communities,Other Agencies - Third Party P,30092853,NORWOOD RAVENSWOOD SCHOOLS LTD,"1,520.00",24/09/2015
Delivery Units,Adults and Communities,Other Agencies - Third Party P,30092854,NORWOOD RAVENSWOOD SCHOOLS LTD,729.60,24/09/2015
Delivery Units,Adults and Communities,Other Agencies - Third Party P,30092855,NORWOOD RAVENSWOOD SCHOOLS LTD,304.00,24/09/2015
Delivery Units,Adults and Communities,Other Agencies - Third Party P,30092856,NORWOOD RAVENSWOOD SCHOOLS LTD,182.40,24/09/2015
Delivery Units,Adults and Communities,Other Agencies - Third Party P,30092857,NORWOOD RAVENSWOOD SCHOOLS LTD,790.40,24/09/2015
Delivery Units,Adults and Communities,Other Agencies - Third Party P,30092858,NORWOOD RAVENSWOOD SCHOOLS LTD,243.20,24/09/2015
Delivery Units,Adults and Communities,Other Agencies - Third Party P,30093030,NORWOOD RAVENSWOOD SCHOOLS LTD,486.40,25/09/2015
Delivery Units,Adults and Communities,Other Agencies - Third Party P,30093035,NORWOOD RAVENSWOOD SCHOOLS LTD,"1,021.44",25/09/2015
Delivery Units,Adults and Communities,Other Agencies - Third Party P,30093041,NORWOOD RAVENSWOOD SCHOOLS LTD,"1,021.44",25/09/2015
Delivery Units,Adults and Communities,Other Agencies - Third Party P,30093046,NORWOOD RAVENSWOOD SCHOOLS LTD,121.60,25/09/2015
Delivery Units,Adults and Communities,Other Agencies - Third Party P,30093047,NORWOOD RAVENSWOOD SCHOOLS LTD,820.80,25/09/2015
Delivery Units,Adults and Communities,Other Agencies - Third Party P,30093050,NORWOOD RAVENSWOOD SCHOOLS LTD,364.80,25/09/2015
Delivery Units,Adults and Communities,Other Agencies - Third Party P,30093054,NORWOOD RAVENSWOOD SCHOOLS LTD,"5,810.92",25/09/2015
Delivery Units,Adults and Communities,Other Agencies - Third Party P,30093948,NORWOOD RAVENSWOOD SCHOOLS LTD,"4,656.00",28/09/2015
Delivery Units,Adults and Communities,Other Agencies - Third Party P,30093949,NORWOOD RAVENSWOOD SCHOOLS LTD,-321.80,28/09/2015
Delivery Units,Adults and Communities,Other Agencies - Third Party P,20023537,OAKLEIGH GARDENS,95.00,15/09/2015
Delivery Units,Adults and Communities,Other Agencies - Third Party P,30090964,OLYMPUS CARE SERVICES LTD,180.00,04/09/2015
Delivery Units,Adults and Communities,Other Agencies - Third Party P,30091770,ONE STEP (SUPPORT) LTD,"2,618.20",11/09/2015
Delivery Units,Adults and Communities,Other Agencies - Third Party P,30092255,ONE STEP (SUPPORT) LTD,"1,339.80",24/09/2015
Delivery Units,Adults and Communities,Other Agencies - Third Party P,30092256,ONE STEP (SUPPORT) LTD,"3,395.80",24/09/2015
Delivery Units,Adults and Communities,Other Agencies - Third Party P,30092257,ONE STEP (SUPPORT) LTD,638.00,24/09/2015
Delivery Units,Adults and Communities,Other Agencies - Third Party P,30092258,ONE STEP (SUPPORT) LTD,638.00,24/09/2015
Delivery Units,Adults and Communities,Other Agencies - Third Party P,30092259,ONE STEP (SUPPORT) LTD,956.00,24/09/2015
Delivery Units,Adults and Communities,Other Agencies - Third Party P,30092265,ONE STEP (SUPPORT) LTD,"2,618.20",24/09/2015
Delivery Units,Adults and Communities,Other Agencies - Third Party P,30091980,ORIGIN HOUSING LIMITED,"1,728.00",15/09/2015
Delivery Units,Adults and Communities,Other Agencies - Third Party P,30091981,ORIGIN HOUSING LIMITED,"1,152.00",15/09/2015
Delivery Units,Adults and Communities,Other Agencies - Third Party P,30093055,ORIGIN HOUSING LIMITED,"1,065.60",25/09/2015
Delivery Units,Adults and Communities,Other Agencies - Third Party P,30090533,PARKCARE HOMES (NO2) LIMITED,"5,486.91",03/09/2015
Delivery Units,Adults and Communities,Other Agencies - Third Party P,30090534,PARKCARE HOMES (NO2) LIMITED,-356.28,03/09/2015
Delivery Units,Adults and Communities,Other Agencies - Third Party P,30090535,PARKCARE HOMES (NO2) LIMITED,"4,796.41",03/09/2015
Delivery Units,Adults and Communities,Other Agencies - Third Party P,30090536,PARKCARE HOMES (NO2) LIMITED,-356.28,03/09/2015
Delivery Units,Adults and Communities,Other Agencies - Third Party P,30090553,PARKCARE HOMES (NO2) LIMITED,"4,813.42",03/09/2015
Delivery Units,Adults and Communities,Other Agencies - Third Party P,30090554,PARKCARE HOMES (NO2) LIMITED,-356.28,03/09/2015
Delivery Units,Adults and Communities,Other Agencies - Third Party P,30090555,PARKCARE HOMES (NO2) LIMITED,"5,155.04",03/09/2015
Delivery Units,Adults and Communities,Other Agencies - Third Party P,30090556,PARKCARE HOMES (NO2) LIMITED,-356.28,03/09/2015
Delivery Units,Adults and Communities,Other Agencies - Third Party P,30090557,PARKCARE HOMES (NO2) LIMITED,"5,155.04",03/09/2015
Delivery Units,Adults and Communities,Other Agencies - Third Party P,30090558,PARKCARE HOMES (NO2) LIMITED,-356.28,03/09/2015
Delivery Units,Adults and Communities,Other Agencies - Third Party P,30092248,PAULMAY RESIDENTIAL HOME,"4,368.08",24/09/2015
Delivery Units,Adults and Communities,Other Agencies - Third Party P,30092266,PAULMAY RESIDENTIAL HOME,"2,184.04",24/09/2015
Delivery Units,Adults and Communities,Other Agencies - Third Party P,30090253,PILLARCARE,"6,328.00",01/09/2015
Delivery Units,Adults and Communities,Other Agencies - Third Party P,30094041,PILLARCARE,"6,328.00",28/09/2015
Delivery Units,Adults and Communities,Other Agencies - Third Party P,20023709,PRIORY EDUCATION SERVICES LTD,"20,640.82",21/09/2015
Delivery Units,Adults and Communities,Other Agencies - Third Party P,20023710,PRIORY EDUCATION SERVICES LTD,"1,548.06",21/09/2015
Delivery Units,Adults and Communities,Other Agencies - Third Party P,30090240,PROSPECTS STAFF BUREAU LTD,373.75,01/09/2015
Delivery Units,Adults and Communities,Other Agencies - Third Party P,30090993,PROSPECTS STAFF BUREAU LTD,373.75,07/09/2015
Delivery Units,Adults and Communities,Other Agencies - Third Party P,30091336,PROSPECTS STAFF BUREAU LTD,373.75,10/09/2015
Delivery Units,Adults and Communities,Other Agencies - Third Party P,30092185,PROSPECTS STAFF BUREAU LTD,373.75,24/09/2015
Delivery Units,Adults and Communities,Other Agencies - Third Party P,30092198,QUANTUM CARE LIMITED,"2,288.53",24/09/2015
Delivery Units,Adults and Communities,Other Agencies - Third Party P,30092199,QUANTUM CARE LIMITED,"2,364.81",24/09/2015
Delivery Units,Adults and Communities,Other Agencies - Third Party P,30092200,QUANTUM CARE LIMITED,"2,922.86",24/09/2015
Delivery Units,Adults and Communities,Other Agencies - Third Party P,30093639,QUANTUM CARE LIMITED,"1,716.03",28/09/2015
Delivery Units,Adults and Communities,Other Agencies - Third Party P,30093640,QUANTUM CARE LIMITED,-389.56,28/09/2015
Delivery Units,Adults and Communities,Other Agencies - Third Party P,20023203,R.S. LOCKSMITHS,106.80,04/09/2015
Delivery Units,Adults and Communities,Other Agencies - Third Party P,20023538,R.S. LOCKSMITHS,150.00,15/09/2015
Delivery Units,Adults and Communities,Other Agencies - Third Party P,30091705,REAL LIFE OPTIONS,"5,252.28",11/09/2015
Delivery Units,Adults and Communities,Other Agencies - Third Party P,30091706,REAL LIFE OPTIONS,-321.80,11/09/2015
Delivery Units,Adults and Communities,Other Agencies - Third Party P,30090600,REDACTED - PERSONAL DATA,"4,862.75",03/09/2015
Delivery Units,Adults and Communities,Other Agencies - Third Party P,30090601,REDACTED - PERSONAL DATA,-356.28,03/09/2015
Delivery Units,Adults and Communities,Other Agencies - Third Party P,30093575,REHABILITATION EDUCATION AND,"3,348.00",28/09/2015
Delivery Units,Adults and Communities,Other Agencies - Third Party P,30093576,REHABILITATION EDUCATION AND,-505.20,28/09/2015
Delivery Units,Adults and Communities,Other Agencies - Third Party P,30091722,RESIDENTIAL CARE PROVIDERS LTD,"7,800.00",11/09/2015
Delivery Units,Adults and Communities,Other Agencies - Third Party P,30091723,RESIDENTIAL CARE PROVIDERS LTD,-321.80,11/09/2015
Delivery Units,Adults and Communities,Other Agencies - Third Party P,30091871,RESIDENTIAL CARE PROVIDERS LTD,"7,800.00",14/09/2015
Delivery Units,Adults and Communities,Other Agencies - Third Party P,30091872,RESIDENTIAL CARE PROVIDERS LTD,-321.80,14/09/2015
Delivery Units,Adults and Communities,Other Agencies - Third Party P,30090566,RIDGEWAY NURSING HOME,"2,435.67",03/09/2015
Delivery Units,Adults and Communities,Other Agencies - Third Party P,30091759,RIDGEWAY RESIDENTIAL HOME,"2,095.56",11/09/2015
Delivery Units,Adults and Communities,Other Agencies - Third Party P,30090520,ROBERT OWEN COMMUNITIES (ROC),"5,912.14",03/09/2015
Delivery Units,Adults and Communities,Other Agencies - Third Party P,30090521,ROBERT OWEN COMMUNITIES (ROC),-356.28,03/09/2015
Delivery Units,Adults and Communities,Other Agencies - Third Party P,30091718,ROLAND COMMUNITY CARE LTD,"2,088.00",11/09/2015
Delivery Units,Adults and Communities,Other Agencies - Third Party P,30091750,ROLAND COMMUNITY CARE LTD,"2,738.20",11/09/2015
Delivery Units,Adults and Communities,Other Agencies - Third Party P,30093023,ROLAND COMMUNITY CARE LTD,"2,088.00",25/09/2015
Delivery Units,Adults and Communities,Other Agencies - Third Party P,30093026,ROLAND COMMUNITY CARE LTD,"2,738.20",25/09/2015
Delivery Units,Adults and Communities,Other Agencies - Third Party P,30091169,ROLAND RESIDENTIAL CARE HOMES LTD,"3,225.24",09/09/2015
Delivery Units,Adults and Communities,Other Agencies - Third Party P,30091197,ROLAND RESIDENTIAL CARE HOMES LTD,"3,426.96",09/09/2015
Delivery Units,Adults and Communities,Other Agencies - Third Party P,30091202,ROSEACRES CARE HOME LIMITED,"2,418.04",09/09/2015
Delivery Units,Adults and Communities,Other Agencies - Third Party P,30091203,ROSEACRES CARE HOME LIMITED,"2,418.04",09/09/2015
Delivery Units,Adults and Communities,Other Agencies - Third Party P,30091204,ROSEACRES CARE HOME LIMITED,"2,418.04",09/09/2015
Delivery Units,Adults and Communities,Other Agencies - Third Party P,30091205,ROSEACRES CARE HOME LIMITED,"2,418.04",09/09/2015
Delivery Units,Adults and Communities,Other Agencies - Third Party P,30091206,ROSEACRES CARE HOME LIMITED,"2,418.04",09/09/2015
Delivery Units,Adults and Communities,Other Agencies - Third Party P,30091207,ROSEACRES CARE HOME LIMITED,"2,418.04",09/09/2015
Delivery Units,Adults and Communities,Other Agencies - Third Party P,30091487,ROSEACRES CARE HOME LIMITED,"2,418.04",10/09/2015
Delivery Units,Adults and Communities,Other Agencies - Third Party P,30091488,ROSEACRES CARE HOME LIMITED,"2,418.04",10/09/2015
Delivery Units,Adults and Communities,Other Agencies - Third Party P,30091489,ROSEACRES CARE HOME LIMITED,"1,404.03",10/09/2015
Delivery Units,Adults and Communities,Other Agencies - Third Party P,30091490,ROSEACRES CARE HOME LIMITED,"2,418.04",10/09/2015
Delivery Units,Adults and Communities,Other Agencies - Third Party P,30091491,ROSEACRES CARE HOME LIMITED,"2,418.04",10/09/2015
Delivery Units,Adults and Communities,Other Agencies - Third Party P,30091492,ROSEACRES CARE HOME LIMITED,"2,418.04",10/09/2015
Delivery Units,Adults and Communities,Other Agencies - Third Party P,30091493,ROSEACRES CARE HOME LIMITED,"2,418.04",10/09/2015
Delivery Units,Adults and Communities,Other Agencies - Third Party P,30090712,ROWAN HOUSE,"4,422.28",03/09/2015
Delivery Units,Adults and Communities,Other Agencies - Third Party P,30092914,ROYAL MENCAP SOCIETY,"1,722.60",25/09/2015
Delivery Units,Adults and Communities,Other Agencies - Third Party P,30092915,ROYAL MENCAP SOCIETY,"1,595.00",25/09/2015
Delivery Units,Adults and Communities,Other Agencies - Third Party P,30090708,SANCTUARY CARE LTD,"2,418.04",03/09/2015
Delivery Units,Adults and Communities,Other Agencies - Third Party P,30089996,SAXON COURT,"2,434.08",01/09/2015
Delivery Units,Adults and Communities,Other Agencies - Third Party P,30089997,SAXON COURT,-559.33,01/09/2015
Delivery Units,Adults and Communities,Other Agencies - Third Party P,30089998,SAXON COURT,"2,434.08",01/09/2015
Delivery Units,Adults and Communities,Other Agencies - Third Party P,30089999,SAXON COURT,-559.33,01/09/2015
Delivery Units,Adults and Communities,Other Agencies - Third Party P,30090702,SCIMITAR CARE HOTELS PLC,"2,418.04",03/09/2015
Delivery Units,Adults and Communities,Other Agencies - Third Party P,30090725,SCIMITAR CARE HOTELS PLC,"2,418.04",03/09/2015
Delivery Units,Adults and Communities,Other Agencies - Third Party P,30090726,SCIMITAR CARE HOTELS PLC,"3,321.43",03/09/2015
Delivery Units,Adults and Communities,Other Agencies - Third Party P,30091735,SCIMITAR CARE HOTELS PLC,"1,014.02",11/09/2015
Delivery Units,Adults and Communities,Other Agencies - Third Party P,30090942,SCOPE,322.28,10/09/2015
Delivery Units,Adults and Communities,Other Agencies - Third Party P,30091334,SCOPE,"4,000.00",10/09/2015
Delivery Units,Adults and Communities,Other Agencies - Third Party P,30091335,SCOPE,-366.40,10/09/2015
Delivery Units,Adults and Communities,Other Agencies - Third Party P,30091630,SCOTTISH SOCIETY FOR AUTISM,"5,783.64",11/09/2015
Delivery Units,Adults and Communities,Other Agencies - Third Party P,30091631,SCOTTISH SOCIETY FOR AUTISM,-402.00,11/09/2015
Delivery Units,Adults and Communities,Other Agencies - Third Party P,30091632,SCOTTISH SOCIETY FOR AUTISM,"1,172.08",11/09/2015
Delivery Units,Adults and Communities,Other Agencies - Third Party P,30090250,SELF UNLIMITED-LONDON REGION,"1,194.29",01/09/2015
Delivery Units,Adults and Communities,Other Agencies - Third Party P,30090251,SELF UNLIMITED-LONDON REGION,"3,040.00",01/09/2015
Delivery Units,Adults and Communities,Other Agencies - Third Party P,30090252,SELF UNLIMITED-LONDON REGION,"3,040.00",01/09/2015
Delivery Units,Adults and Communities,Other Agencies - Third Party P,30091425,SELF UNLIMITED-LONDON REGION,"3,920.00",10/09/2015
Delivery Units,Adults and Communities,Other Agencies - Third Party P,30091426,SELF UNLIMITED-LONDON REGION,"3,920.00",10/09/2015
Delivery Units,Adults and Communities,Other Agencies - Third Party P,30091427,SELF UNLIMITED-LONDON REGION,"3,920.00",10/09/2015
Delivery Units,Adults and Communities,Other Agencies - Third Party P,30091428,SELF UNLIMITED-LONDON REGION,"1,921.28",10/09/2015
Delivery Units,Adults and Communities,Other Agencies - Third Party P,30091429,SELF UNLIMITED-LONDON REGION,"2,120.72",10/09/2015
Delivery Units,Adults and Communities,Other Agencies - Third Party P,30091430,SELF UNLIMITED-LONDON REGION,"4,221.36",10/09/2015
Delivery Units,Adults and Communities,Other Agencies - Third Party P,30091431,SELF UNLIMITED-LONDON REGION,"1,520.00",10/09/2015
Delivery Units,Adults and Communities,Other Agencies - Third Party P,30091432,SELF UNLIMITED-LONDON REGION,"3,040.00",10/09/2015
Delivery Units,Adults and Communities,Other Agencies - Third Party P,30091433,SELF UNLIMITED-LONDON REGION,"3,947.12",10/09/2015
Delivery Units,Adults and Communities,Other Agencies - Third Party P,30091434,SELF UNLIMITED-LONDON REGION,"1,781.44",10/09/2015
Delivery Units,Adults and Communities,Other Agencies - Third Party P,30091435,SELF UNLIMITED-LONDON REGION,"1,690.24",10/09/2015
Delivery Units,Adults and Communities,Other Agencies - Third Party P,30091436,SELF UNLIMITED-LONDON REGION,"1,088.32",10/09/2015
Delivery Units,Adults and Communities,Other Agencies - Third Party P,30091437,SELF UNLIMITED-LONDON REGION,"4,025.56",10/09/2015
Delivery Units,Adults and Communities,Other Agencies - Third Party P,30091438,SELF UNLIMITED-LONDON REGION,"3,279.56",10/09/2015
Delivery Units,Adults and Communities,Other Agencies - Third Party P,30091439,SELF UNLIMITED-LONDON REGION,"1,459.20",10/09/2015
Delivery Units,Adults and Communities,Other Agencies - Third Party P,30091440,SELF UNLIMITED-LONDON REGION,"6,157.84",10/09/2015
Delivery Units,Adults and Communities,Other Agencies - Third Party P,30091441,SELF UNLIMITED-LONDON REGION,"3,240.64",10/09/2015
